Organisation Name,Organisation Code,Date Paid,Transaction Number,Amount,Supplier Name,Supplier ID,Supplier post code (first 4 digits),Directorate,Service Area,General Ledger code Description,BVACOP class,Revenue/ Capital Spend
Wiltshire,http://opendatacommunities.org/id/unitary-authority/wiltshire,12/01/2018,1902063294,962.5,1st Choice Cabs ,101285,SP4 ,Neighbourhood & Planning,SEN Primary,Transport Contracts,Third Party Payments,REVENUE
Wiltshire,http://opendatacommunities.org/id/unitary-authority/wiltshire,12/01/2018,1902063294,962.5,1st Choice Cabs ,101285,SP4 ,Neighbourhood & Planning,SEN Secondary,Transport Contracts,Third Party Payments,REVENUE
Wiltshire,http://opendatacommunities.org/id/unitary-authority/wiltshire,24/01/2018,1902073677,763.35,1st Choice Stairlifts ,113095,SN11,Wiltshire Council,Wiltshire Council,Other Contracts,Third Party Payments,CAPITAL
Wiltshire,http://opendatacommunities.org/id/unitary-authority/wiltshire,30/01/2018,1902075542,4135,1st Choice Stairlifts ,113095,SN11,Wiltshire Council,Wiltshire Council,Other Contracts,Third Party Payments,CAPITAL
Wiltshire,http://opendatacommunities.org/id/unitary-authority/wiltshire,30/01/2018,1902075573,3710,1st Choice Stairlifts ,113095,SN11,Wiltshire Council,Wiltshire Council,Other Contracts,Third Party Payments,CAPITAL
Wiltshire,http://opendatacommunities.org/id/unitary-authority/wiltshire,02/01/2018,5107154390,735.32,24-7 Staffing ,140662,SN15,Community Services,Bradbury Manor Resp,Agency Staff,Employee Related,REVENUE
Wiltshire,http://opendatacommunities.org/id/unitary-authority/wiltshire,10/01/2018,5107157156,867.27,24-7 Staffing ,140662,SN15,Community Services,Bradbury Manor Resp,Agency Staff,Employee Related,REVENUE
Wiltshire,http://opendatacommunities.org/id/unitary-authority/wiltshire,18/01/2018,5107164064,839.04,24-7 Staffing ,140662,SN15,Community Services,Chippenham Respite,Agency Staff,Employee Related,REVENUE
Wiltshire,http://opendatacommunities.org/id/unitary-authority/wiltshire,18/01/2018,5107164065,457.79,24-7 Staffing ,140662,SN15,Community Services,Chippenham Respite,Agency Staff,Employee Related,REVENUE
Wiltshire,http://opendatacommunities.org/id/unitary-authority/wiltshire,23/01/2018,5107164776,495.29,24-7 Staffing ,140662,SN15,Community Services,Chippenham Respite,Agency Staff,Employee Related,REVENUE
Wiltshire,http://opendatacommunities.org/id/unitary-authority/wiltshire,24/01/2018,5107164777,345.34,24-7 Staffing ,140662,SN15,Community Services,Chippenham Respite,Agency Staff,Employee Related,REVENUE
Wiltshire,http://opendatacommunities.org/id/unitary-authority/wiltshire,23/01/2018,5107164877,597.24,24-7 Staffing ,140662,SN15,Community Services,Bradbury Manor Resp,Agency Staff,Employee Related,REVENUE
Wiltshire,http://opendatacommunities.org/id/unitary-authority/wiltshire,23/01/2018,5107165066,1417.17,24-7 Staffing ,140662,SN15,Community Services,Bradbury Hse Respite,Agency Staff,Employee Related,REVENUE
Wiltshire,http://opendatacommunities.org/id/unitary-authority/wiltshire,24/01/2018,5107165067,469.95,24-7 Staffing ,140662,SN15,Community Services,Bradbury Manor Resp,Agency Staff,Employee Related,REVENUE
Wiltshire,http://opendatacommunities.org/id/unitary-authority/wiltshire,23/01/2018,5107165069,783.39,24-7 Staffing ,140662,SN15,Community Services,Bradbury Hse Respite,Agency Staff,Employee Related,REVENUE
Wiltshire,http://opendatacommunities.org/id/unitary-authority/wiltshire,31/01/2018,5107168807,544.49,24-7 Staffing ,140662,SN15,Community Services,Bradbury Hse Respite,Agency Staff,Employee Related,REVENUE
Wiltshire,http://opendatacommunities.org/id/unitary-authority/wiltshire,31/01/2018,5107168809,879.73,24-7 Staffing ,140662,SN15,Community Services,Bradbury Hse Respite,Agency Staff,Employee Related,REVENUE
Wiltshire,http://opendatacommunities.org/id/unitary-authority/wiltshire,05/01/2018,1902061296,1430,2get2 Taxi Services Ltd ,101102,SP4 ,Neighbourhood & Planning,SEN Secondary,Transport Contracts,Third Party Payments,REVENUE
Wiltshire,http://opendatacommunities.org/id/unitary-authority/wiltshire,05/01/2018,1902061300,990,2get2 Taxi Services Ltd ,101102,SP4 ,Neighbourhood & Planning,SEN Primary,Transport Contracts,Third Party Payments,REVENUE
Wiltshire,http://opendatacommunities.org/id/unitary-authority/wiltshire,04/01/2018,1902060657,747.5,A  and  S Private Hire ,101115,SN15,Neighbourhood & Planning,SEN Primary,Transport Contracts,Third Party Payments,REVENUE
Wiltshire,http://opendatacommunities.org/id/unitary-authority/wiltshire,04/01/2018,1902060657,747.5,A  and  S Private Hire ,101115,SN15,Neighbourhood & Planning,SEN Secondary,Transport Contracts,Third Party Payments,REVENUE
Wiltshire,http://opendatacommunities.org/id/unitary-authority/wiltshire,10/01/2018,1902062668,413.64,A  and  S Private Hire ,101115,SN15,Neighbourhood & Planning,SEN Secondary,Transport Contracts,Third Party Payments,REVENUE
Wiltshire,http://opendatacommunities.org/id/unitary-authority/wiltshire,10/01/2018,1902062668,561.36,A  and  S Private Hire ,101115,SN15,Neighbourhood & Planning,SEN Primary,Transport Contracts,Third Party Payments,REVENUE
Wiltshire,http://opendatacommunities.org/id/unitary-authority/wiltshire,16/01/2018,1902065151,627.28,A & P Taxis ,143342,SN12,Neighbourhood & Planning,SEN Secondary,Transport Contracts,Third Party Payments,REVENUE
Wiltshire,http://opendatacommunities.org/id/unitary-authority/wiltshire,16/01/2018,1902065151,752.72,A & P Taxis ,143342,SN12,Neighbourhood & Planning,SEN Primary,Transport Contracts,Third Party Payments,REVENUE
Wiltshire,http://opendatacommunities.org/id/unitary-authority/wiltshire,16/01/2018,1902065152,412.5,A & P Taxis ,143342,SN12,Neighbourhood & Planning,SEN Primary,Transport Contracts,Third Party Payments,REVENUE
Wiltshire,http://opendatacommunities.org/id/unitary-authority/wiltshire,16/01/2018,1902065152,1237.5,A & P Taxis ,143342,SN12,Neighbourhood & Planning,SEN Secondary,Transport Contracts,Third Party Payments,REVENUE
Wiltshire,http://opendatacommunities.org/id/unitary-authority/wiltshire,16/01/2018,1902065153,392,A & P Taxis ,143342,SN12,Neighbourhood & Planning,Mainstream Secondary,Transport Contracts,Third Party Payments,REVENUE
Wiltshire,http://opendatacommunities.org/id/unitary-authority/wiltshire,16/01/2018,1902065156,391.05,A & P Taxis ,143342,SN12,Neighbourhood & Planning,SEN Secondary,Transport Contracts,Third Party Payments,REVENUE
Wiltshire,http://opendatacommunities.org/id/unitary-authority/wiltshire,16/01/2018,1902065156,493.95,A & P Taxis ,143342,SN12,Neighbourhood & Planning,SEN 16+ Secondary,Transport Contracts,Third Party Payments,REVENUE
Wiltshire,http://opendatacommunities.org/id/unitary-authority/wiltshire,04/01/2018,1902060652,1583.33,A G Minibuses Ltd ,100878,BA12,Neighbourhood & Planning,Mainstream Secondary,Transport Contracts,Third Party Payments,REVENUE
Wiltshire,http://opendatacommunities.org/id/unitary-authority/wiltshire,04/01/2018,1902060652,4235.72,A G Minibuses Ltd ,100878,BA12,Neighbourhood & Planning,Public Transport,Transport Contracts,Third Party Payments,REVENUE
Wiltshire,http://opendatacommunities.org/id/unitary-authority/wiltshire,05/01/2018,1902061292,997.5,A G Minibuses Ltd ,100878,BA12,Neighbourhood & Planning,Mainstream Primary,Transport Contracts,Third Party Payments,REVENUE
Wiltshire,http://opendatacommunities.org/id/unitary-authority/wiltshire,05/01/2018,1902061292,3270.08,A G Minibuses Ltd ,100878,BA12,Neighbourhood & Planning,Public Transport,Transport Contracts,Third Party Payments,REVENUE
Wiltshire,http://opendatacommunities.org/id/unitary-authority/wiltshire,05/01/2018,1902061293,1583.33,A G Minibuses Ltd ,100878,BA12,Neighbourhood & Planning,Mainstream Secondary,Transport Contracts,Third Party Payments,REVENUE
Wiltshire,http://opendatacommunities.org/id/unitary-authority/wiltshire,05/01/2018,1902061293,3402.94,A G Minibuses Ltd ,100878,BA12,Neighbourhood & Planning,Public Transport,Transport Contracts,Third Party Payments,REVENUE
Wiltshire,http://opendatacommunities.org/id/unitary-authority/wiltshire,15/01/2018,1902063612,543.4,A G Minibuses Ltd ,100878,BA12,Neighbourhood & Planning,SEN Secondary,Transport Contracts,Third Party Payments,REVENUE
Wiltshire,http://opendatacommunities.org/id/unitary-authority/wiltshire,15/01/2018,1902063612,1086.8,A G Minibuses Ltd ,100878,BA12,Neighbourhood & Planning,SEN Primary,Transport Contracts,Third Party Payments,REVENUE
Wiltshire,http://opendatacommunities.org/id/unitary-authority/wiltshire,15/01/2018,1902063614,627.85,A G Minibuses Ltd ,100878,BA12,Neighbourhood & Planning,SEN Primary,Transport Contracts,Third Party Payments,REVENUE
Wiltshire,http://opendatacommunities.org/id/unitary-authority/wiltshire,15/01/2018,1902063614,627.85,A G Minibuses Ltd ,100878,BA12,Neighbourhood & Planning,SEN Secondary,Transport Contracts,Third Party Payments,REVENUE
Wiltshire,http://opendatacommunities.org/id/unitary-authority/wiltshire,15/01/2018,1902063615,971.5,A G Minibuses Ltd ,100878,BA12,Neighbourhood & Planning,SEN Primary,Transport Contracts,Third Party Payments,REVENUE
Wiltshire,http://opendatacommunities.org/id/unitary-authority/wiltshire,15/01/2018,1902063616,1787.4,A G Minibuses Ltd ,100878,BA12,Neighbourhood & Planning,SEN Secondary,Transport Contracts,Third Party Payments,REVENUE
Wiltshire,http://opendatacommunities.org/id/unitary-authority/wiltshire,15/01/2018,1902063627,676,A G Minibuses Ltd ,100878,BA12,Neighbourhood & Planning,SEN Secondary,Transport Contracts,Third Party Payments,REVENUE
Wiltshire,http://opendatacommunities.org/id/unitary-authority/wiltshire,15/01/2018,1902063627,1352,A G Minibuses Ltd ,100878,BA12,Neighbourhood & Planning,SEN Primary,Transport Contracts,Third Party Payments,REVENUE
Wiltshire,http://opendatacommunities.org/id/unitary-authority/wiltshire,15/01/2018,1902063628,1890.89,A G Minibuses Ltd ,100878,BA12,Neighbourhood & Planning,Mainstream Primary,Transport Contracts,Third Party Payments,REVENUE
Wiltshire,http://opendatacommunities.org/id/unitary-authority/wiltshire,15/01/2018,1902063629,436.14,A G Minibuses Ltd ,100878,BA12,Community Services,West Locality 18+ Ca,Transport Contracts,Third Party Payments,REVENUE
Wiltshire,http://opendatacommunities.org/id/unitary-authority/wiltshire,15/01/2018,1902063630,1988.79,A G Minibuses Ltd ,100878,BA12,Neighbourhood & Planning,Mainstream Primary,Transport Contracts,Third Party Payments,REVENUE
Wiltshire,http://opendatacommunities.org/id/unitary-authority/wiltshire,15/01/2018,1902063631,558,A G Minibuses Ltd ,100878,BA12,Community Services,West Locality 18+ Ca,Transport Contracts,Third Party Payments,REVENUE
Wiltshire,http://opendatacommunities.org/id/unitary-authority/wiltshire,15/01/2018,1902063632,880,A G Minibuses Ltd ,100878,BA12,Neighbourhood & Planning,Mainstream Secondary,Transport Contracts,Third Party Payments,REVENUE
Wiltshire,http://opendatacommunities.org/id/unitary-authority/wiltshire,15/01/2018,1902063634,1047.75,A G Minibuses Ltd ,100878,BA12,Neighbourhood & Planning,Mainstream Primary,Transport Contracts,Third Party Payments,REVENUE
Wiltshire,http://opendatacommunities.org/id/unitary-authority/wiltshire,15/01/2018,1902063635,905.3,A G Minibuses Ltd ,100878,BA12,Neighbourhood & Planning,Mainstream Secondary,Transport Contracts,Third Party Payments,REVENUE
Wiltshire,http://opendatacommunities.org/id/unitary-authority/wiltshire,15/01/2018,1902063635,905.3,A G Minibuses Ltd ,100878,BA12,Neighbourhood & Planning,Mainstream 16+ FE,Transport Contracts,Third Party Payments,REVENUE
Wiltshire,http://opendatacommunities.org/id/unitary-authority/wiltshire,15/01/2018,1902063636,262.6,A G Minibuses Ltd ,100878,BA12,Neighbourhood & Planning,SEN 16+ Secondary,Transport Contracts,Third Party Payments,REVENUE
Wiltshire,http://opendatacommunities.org/id/unitary-authority/wiltshire,15/01/2018,1902063636,525.2,A G Minibuses Ltd ,100878,BA12,Neighbourhood & Planning,SEN Primary,Transport Contracts,Third Party Payments,REVENUE
Wiltshire,http://opendatacommunities.org/id/unitary-authority/wiltshire,15/01/2018,1902063636,525.2,A G Minibuses Ltd ,100878,BA12,Neighbourhood & Planning,SEN Secondary,Transport Contracts,Third Party Payments,REVENUE
Wiltshire,http://opendatacommunities.org/id/unitary-authority/wiltshire,15/01/2018,1902063637,1050,A G Minibuses Ltd ,100878,BA12,Neighbourhood & Planning,SEN Secondary,Transport Contracts,Third Party Payments,REVENUE
Wiltshire,http://opendatacommunities.org/id/unitary-authority/wiltshire,15/01/2018,1902063638,1368,A G Minibuses Ltd ,100878,BA12,Neighbourhood & Planning,SEN Secondary,Transport Contracts,Third Party Payments,REVENUE
Wiltshire,http://opendatacommunities.org/id/unitary-authority/wiltshire,15/01/2018,1902063639,1946,A G Minibuses Ltd ,100878,BA12,Neighbourhood & Planning,SEN Secondary,Transport Contracts,Third Party Payments,REVENUE
Wiltshire,http://opendatacommunities.org/id/unitary-authority/wiltshire,15/01/2018,1902063640,1246.29,A G Minibuses Ltd ,100878,BA12,Neighbourhood & Planning,SEN Secondary,Transport Contracts,Third Party Payments,REVENUE
Wiltshire,http://opendatacommunities.org/id/unitary-authority/wiltshire,02/01/2018,1902059881,1200,A Meredith Associates ,130972,WR14,Neighbourhood & Planning,Cranbourn Chase AONB,Consultants Fees,Supplies and Services,REVENUE
Wiltshire,http://opendatacommunities.org/id/unitary-authority/wiltshire,16/01/2018,1902064705,1162.5,A Meredith Associates ,130972,WR14,Neighbourhood & Planning,CC Champions,Consultants Fees,Supplies and Services,REVENUE
Wiltshire,http://opendatacommunities.org/id/unitary-authority/wiltshire,08/01/2018,5107157725,280,A P Rosinger ,110018,SP5 ,Children & Education,HQ Social Care,Legal Fees,Supplies and Services,REVENUE
Wiltshire,http://opendatacommunities.org/id/unitary-authority/wiltshire,08/01/2018,5107157726,271,A P Rosinger ,110018,SP5 ,Children & Education,HQ Social Care,Legal Fees,Supplies and Services,REVENUE
Wiltshire,http://opendatacommunities.org/id/unitary-authority/wiltshire,16/01/2018,5107157775,569.26,A S A Awards Scheme ,110020,LE11,Neighbourhood & Planning,Marlborough,Traded Goods Purchases,Supplies and Services,REVENUE
Wiltshire,http://opendatacommunities.org/id/unitary-authority/wiltshire,11/01/2018,1902063072,952,A1 Cab Company ,101233,SP4 ,Neighbourhood & Planning,SEN Primary,Transport Contracts,Third Party Payments,REVENUE
Wiltshire,http://opendatacommunities.org/id/unitary-authority/wiltshire,11/01/2018,1902063077,350,A1 Cab Company ,101233,SP4 ,Children & Education,EOTAS Service,Transport Contracts,Third Party Payments,REVENUE
Wiltshire,http://opendatacommunities.org/id/unitary-authority/wiltshire,11/01/2018,1902063077,350,A1 Cab Company ,101233,SP4 ,Neighbourhood & Planning,SEN Primary,Transport Contracts,Third Party Payments,REVENUE
Wiltshire,http://opendatacommunities.org/id/unitary-authority/wiltshire,11/01/2018,1902063079,852.5,A1 Cab Company ,101233,SP4 ,Neighbourhood & Planning,SEN 16+ Secondary,Transport Contracts,Third Party Payments,REVENUE
Wiltshire,http://opendatacommunities.org/id/unitary-authority/wiltshire,15/01/2018,1902063613,1040,A1 Cab Company ,101233,SP4 ,Children & Education,CIC Team South,Transport Contracts,Third Party Payments,REVENUE
Wiltshire,http://opendatacommunities.org/id/unitary-authority/wiltshire,04/01/2018,1902060834,9473.67,A2 Winchester Ltd ,101167,SO23,Neighbourhood & Planning,Hsg Strat & Enabling,Other Contracts,Third Party Payments,REVENUE
Wiltshire,http://opendatacommunities.org/id/unitary-authority/wiltshire,04/01/2018,1902060628,340,A2B Taxis (Dorset) ,143353,SP8 ,Neighbourhood & Planning,Mainstream Secondary,Transport Contracts,Third Party Payments,REVENUE
Wiltshire,http://opendatacommunities.org/id/unitary-authority/wiltshire,10/01/2018,1902062734,40483,Aareon Uk Ltd ,113252,CV8 ,Community Services,HRA System Supp Perf,Software Maintenance,Supplies and Services,REVENUE
Wiltshire,http://opendatacommunities.org/id/unitary-authority/wiltshire,04/01/2018,1902060654,660,Abbey Taxis (Swindon) Ltd ,100920,SN2 ,Neighbourhood & Planning,Mainstream Primary,Transport Contracts,Third Party Payments,REVENUE
Wiltshire,http://opendatacommunities.org/id/unitary-authority/wiltshire,12/01/2018,1902063323,255,Abbey Taxis (Swindon) Ltd ,100920,SN2 ,Neighbourhood & Planning,SEN Secondary,Transport Contracts,Third Party Payments,REVENUE
Wiltshire,http://opendatacommunities.org/id/unitary-authority/wiltshire,12/01/2018,1902063324,1100,Abbey Taxis (Swindon) Ltd ,100920,SN2 ,Neighbourhood & Planning,SEN Primary,Transport Contracts,Third Party Payments,REVENUE
Wiltshire,http://opendatacommunities.org/id/unitary-authority/wiltshire,12/01/2018,1902063325,403.34,Abbey Taxis (Swindon) Ltd ,100920,SN2 ,Neighbourhood & Planning,SEN Secondary,Transport Contracts,Third Party Payments,REVENUE
Wiltshire,http://opendatacommunities.org/id/unitary-authority/wiltshire,12/01/2018,1902063325,806.66,Abbey Taxis (Swindon) Ltd ,100920,SN2 ,Neighbourhood & Planning,SEN Primary,Transport Contracts,Third Party Payments,REVENUE
Wiltshire,http://opendatacommunities.org/id/unitary-authority/wiltshire,12/01/2018,1902063326,396.66,Abbey Taxis (Swindon) Ltd ,100920,SN2 ,Neighbourhood & Planning,SEN Secondary,Transport Contracts,Third Party Payments,REVENUE
Wiltshire,http://opendatacommunities.org/id/unitary-authority/wiltshire,12/01/2018,1902063326,793.34,Abbey Taxis (Swindon) Ltd ,100920,SN2 ,Neighbourhood & Planning,SEN Primary,Transport Contracts,Third Party Payments,REVENUE
Wiltshire,http://opendatacommunities.org/id/unitary-authority/wiltshire,12/01/2018,1902063327,1100,Abbey Taxis (Swindon) Ltd ,100920,SN2 ,Neighbourhood & Planning,SEN Primary,Transport Contracts,Third Party Payments,REVENUE
Wiltshire,http://opendatacommunities.org/id/unitary-authority/wiltshire,12/01/2018,1902063328,1560,Abbey Taxis (Swindon) Ltd ,100920,SN2 ,Neighbourhood & Planning,SEN Secondary,Transport Contracts,Third Party Payments,REVENUE
Wiltshire,http://opendatacommunities.org/id/unitary-authority/wiltshire,12/01/2018,1902063329,1500,Abbey Taxis (Swindon) Ltd ,100920,SN2 ,Neighbourhood & Planning,SEN Primary,Transport Contracts,Third Party Payments,REVENUE
Wiltshire,http://opendatacommunities.org/id/unitary-authority/wiltshire,12/01/2018,1902063329,1500,Abbey Taxis (Swindon) Ltd ,100920,SN2 ,Neighbourhood & Planning,SEN Secondary,Transport Contracts,Third Party Payments,REVENUE
Wiltshire,http://opendatacommunities.org/id/unitary-authority/wiltshire,12/01/2018,1902063330,552.5,Abbey Taxis (Swindon) Ltd ,100920,SN2 ,Neighbourhood & Planning,SEN Secondary,Transport Contracts,Third Party Payments,REVENUE
Wiltshire,http://opendatacommunities.org/id/unitary-authority/wiltshire,12/01/2018,1902063330,552.5,Abbey Taxis (Swindon) Ltd ,100920,SN2 ,Neighbourhood & Planning,SEN 16+ Secondary,Transport Contracts,Third Party Payments,REVENUE
Wiltshire,http://opendatacommunities.org/id/unitary-authority/wiltshire,12/01/2018,1902063331,2760,Abbey Taxis (Swindon) Ltd ,100920,SN2 ,Neighbourhood & Planning,SEN Secondary,Transport Contracts,Third Party Payments,REVENUE
Wiltshire,http://opendatacommunities.org/id/unitary-authority/wiltshire,12/01/2018,1902063332,700,Abbey Taxis (Swindon) Ltd ,100920,SN2 ,Neighbourhood & Planning,SEN Secondary,Transport Contracts,Third Party Payments,REVENUE
Wiltshire,http://opendatacommunities.org/id/unitary-authority/wiltshire,12/01/2018,1902063334,1610,Abbey Taxis (Swindon) Ltd ,100920,SN2 ,Neighbourhood & Planning,Mainstream Secondary,Transport Contracts,Third Party Payments,REVENUE
Wiltshire,http://opendatacommunities.org/id/unitary-authority/wiltshire,12/01/2018,1902063335,525,Abbey Taxis (Swindon) Ltd ,100920,SN2 ,Neighbourhood & Planning,Mainstream Primary,Transport Contracts,Third Party Payments,REVENUE
Wiltshire,http://opendatacommunities.org/id/unitary-authority/wiltshire,12/01/2018,1902063335,1575,Abbey Taxis (Swindon) Ltd ,100920,SN2 ,Neighbourhood & Planning,SEN Primary,Transport Contracts,Third Party Payments,REVENUE
Wiltshire,http://opendatacommunities.org/id/unitary-authority/wiltshire,12/01/2018,1902063336,255,Abbey Taxis (Swindon) Ltd ,100920,SN2 ,Neighbourhood & Planning,SEN Secondary,Transport Contracts,Third Party Payments,REVENUE
Wiltshire,http://opendatacommunities.org/id/unitary-authority/wiltshire,12/01/2018,1902063336,255,Abbey Taxis (Swindon) Ltd ,100920,SN2 ,Neighbourhood & Planning,SEN 16+ Secondary,Transport Contracts,Third Party Payments,REVENUE
Wiltshire,http://opendatacommunities.org/id/unitary-authority/wiltshire,12/01/2018,1902063337,1100,Abbey Taxis (Swindon) Ltd ,100920,SN2 ,Neighbourhood & Planning,SEN Secondary,Transport Contracts,Third Party Payments,REVENUE
Wiltshire,http://opendatacommunities.org/id/unitary-authority/wiltshire,12/01/2018,1902063339,520,Abbey Taxis (Swindon) Ltd ,100920,SN2 ,Neighbourhood & Planning,SEN Primary,Transport Contracts,Third Party Payments,REVENUE
Wiltshire,http://opendatacommunities.org/id/unitary-authority/wiltshire,12/01/2018,1902063339,1300,Abbey Taxis (Swindon) Ltd ,100920,SN2 ,Neighbourhood & Planning,SEN Secondary,Transport Contracts,Third Party Payments,REVENUE
Wiltshire,http://opendatacommunities.org/id/unitary-authority/wiltshire,12/01/2018,1902063340,270,Abbey Taxis (Swindon) Ltd ,100920,SN2 ,Neighbourhood & Planning,SEN Primary,Transport Contracts,Third Party Payments,REVENUE
Wiltshire,http://opendatacommunities.org/id/unitary-authority/wiltshire,12/01/2018,1902063340,1620,Abbey Taxis (Swindon) Ltd ,100920,SN2 ,Neighbourhood & Planning,SEN Secondary,Transport Contracts,Third Party Payments,REVENUE
Wiltshire,http://opendatacommunities.org/id/unitary-authority/wiltshire,12/01/2018,1902063341,1400,Abbey Taxis (Swindon) Ltd ,100920,SN2 ,Neighbourhood & Planning,SEN Secondary,Transport Contracts,Third Party Payments,REVENUE
Wiltshire,http://opendatacommunities.org/id/unitary-authority/wiltshire,12/01/2018,1902063342,572,Abbey Taxis (Swindon) Ltd ,100920,SN2 ,Neighbourhood & Planning,Mainstream Secondary,Transport Contracts,Third Party Payments,REVENUE
Wiltshire,http://opendatacommunities.org/id/unitary-authority/wiltshire,12/01/2018,1902063343,324.5,Abbey Taxis (Swindon) Ltd ,100920,SN2 ,Neighbourhood & Planning,SEN 16+ Secondary,Transport Contracts,Third Party Payments,REVENUE
Wiltshire,http://opendatacommunities.org/id/unitary-authority/wiltshire,12/01/2018,1902063344,560,Abbey Taxis (Swindon) Ltd ,100920,SN2 ,Neighbourhood & Planning,Mainstream Primary,Transport Contracts,Third Party Payments,REVENUE
Wiltshire,http://opendatacommunities.org/id/unitary-authority/wiltshire,12/01/2018,1902063346,320,Abbey Taxis (Swindon) Ltd ,100920,SN2 ,Neighbourhood & Planning,Mainstream 16+ FE,Transport Contracts,Third Party Payments,REVENUE
Wiltshire,http://opendatacommunities.org/id/unitary-authority/wiltshire,12/01/2018,1902063347,480,Abbey Taxis (Swindon) Ltd ,100920,SN2 ,Neighbourhood & Planning,Mainstream 16+ FE,Transport Contracts,Third Party Payments,REVENUE
Wiltshire,http://opendatacommunities.org/id/unitary-authority/wiltshire,30/01/2018,1902075569,924,Abbey Taxis (Swindon) Ltd ,100920,SN2 ,Neighbourhood & Planning,SEN Primary,Transport Contracts,Third Party Payments,REVENUE
Wiltshire,http://opendatacommunities.org/id/unitary-authority/wiltshire,18/01/2018,1902071979,720,Abbey Taxis Ltd ,101080,BA2 ,Neighbourhood & Planning,SEN Secondary,Transport Contracts,Third Party Payments,REVENUE
Wiltshire,http://opendatacommunities.org/id/unitary-authority/wiltshire,08/01/2018,5107157575,1169.23,ABLE ,101029,BA14,Community Services,MH Commissioned Cont,Grants Expenditure,Supplies and Services,REVENUE
Wiltshire,http://opendatacommunities.org/id/unitary-authority/wiltshire,08/01/2018,5107157576,1926.6,ABLE ,101029,BA14,Community Services,MH Commissioned Cont,Grants Expenditure,Supplies and Services,REVENUE
Wiltshire,http://opendatacommunities.org/id/unitary-authority/wiltshire,11/01/2018,5107162567,440,Academy21 Ltd ,136859,SG1 ,Children & Education,EOTAS Service,Educational Fees,Supplies and Services,REVENUE
Wiltshire,http://opendatacommunities.org/id/unitary-authority/wiltshire,11/01/2018,5107162568,288,Academy21 Ltd ,136859,SG1 ,Children & Education,EOTAS Service,Educational Fees,Supplies and Services,REVENUE
Wiltshire,http://opendatacommunities.org/id/unitary-authority/wiltshire,11/01/2018,5107162569,912,Academy21 Ltd ,136859,SG1 ,Children & Education,EOTAS Service,Educational Fees,Supplies and Services,REVENUE
Wiltshire,http://opendatacommunities.org/id/unitary-authority/wiltshire,11/01/2018,5107162570,624,Academy21 Ltd ,136859,SG1 ,Children & Education,EOTAS Service,Educational Fees,Supplies and Services,REVENUE
Wiltshire,http://opendatacommunities.org/id/unitary-authority/wiltshire,11/01/2018,5107162571,1056,Academy21 Ltd ,136859,SG1 ,Children & Education,EOTAS Service,Educational Fees,Supplies and Services,REVENUE
Wiltshire,http://opendatacommunities.org/id/unitary-authority/wiltshire,31/01/2018,5107168690,384,Academy21 Ltd ,136859,SG1 ,Children & Education,EOTAS Service,Educational Fees,Supplies and Services,REVENUE
Wiltshire,http://opendatacommunities.org/id/unitary-authority/wiltshire,04/01/2018,1902060620,605,Ace Cabs ,139613,BA12,Neighbourhood & Planning,SEN 16+ Secondary,Transport Contracts,Third Party Payments,REVENUE
Wiltshire,http://opendatacommunities.org/id/unitary-authority/wiltshire,04/01/2018,1902060629,1287,Ace Cabs ,139613,BA12,Neighbourhood & Planning,SEN Secondary,Transport Contracts,Third Party Payments,REVENUE
Wiltshire,http://opendatacommunities.org/id/unitary-authority/wiltshire,18/01/2018,1902071972,909.72,Ace Taxis Warminster Ace Taxis,131208,BA12,Neighbourhood & Planning,Mainstream Secondary,Transport Contracts,Third Party Payments,REVENUE
Wiltshire,http://opendatacommunities.org/id/unitary-authority/wiltshire,18/01/2018,1902071973,400,Ace Taxis Warminster Ace Taxis,131208,BA12,Community Services,MH OP South Locality,Transport Contracts,Third Party Payments,REVENUE
Wiltshire,http://opendatacommunities.org/id/unitary-authority/wiltshire,18/01/2018,1902071974,971.28,Ace Taxis Warminster Ace Taxis,131208,BA12,Neighbourhood & Planning,SEN Primary,Transport Contracts,Third Party Payments,REVENUE
Wiltshire,http://opendatacommunities.org/id/unitary-authority/wiltshire,29/01/2018,1902075383,1049.7,Ace Taxis Warminster Ace Taxis,131208,BA12,Neighbourhood & Planning,SEN Secondary,Transport Contracts,Third Party Payments,REVENUE
Wiltshire,http://opendatacommunities.org/id/unitary-authority/wiltshire,30/01/2018,1902075570,974.48,Ace Taxis Warminster Ace Taxis,131208,BA12,Neighbourhood & Planning,SEN Secondary,Transport Contracts,Third Party Payments,REVENUE
Wiltshire,http://opendatacommunities.org/id/unitary-authority/wiltshire,30/01/2018,1902075571,260,Ace Taxis Warminster Ace Taxis,131208,BA12,Children & Education,BehaviourSuppCore,Transport Contracts,Third Party Payments,REVENUE
Wiltshire,http://opendatacommunities.org/id/unitary-authority/wiltshire,25/01/2018,5107165568,260,Acer Tree Surgeons Ltd ,113296,BA13,Neighbourhood & Planning,Countryside,Grounds Maintenance,Premises Related,REVENUE
Wiltshire,http://opendatacommunities.org/id/unitary-authority/wiltshire,10/01/2018,5107160496,1890,Action on Hearing Loss ,112215,N1 1,Community Services,Disabilities Comm Ct,Grants Expenditure,Supplies and Services,REVENUE
Wiltshire,http://opendatacommunities.org/id/unitary-authority/wiltshire,17/01/2018,5107163410,459.59,Adams Morey Ltd ,110053,SP2 ,Neighbourhood & Planning,Fleet,Vehicle Repairs & Maintenance,Transport Related,REVENUE
Wiltshire,http://opendatacommunities.org/id/unitary-authority/wiltshire,18/01/2018,5107163475,1292.73,Adams Morey Ltd ,110053,SP2 ,Neighbourhood & Planning,Fleet,Vehicle Parts,Transport Related,REVENUE
Wiltshire,http://opendatacommunities.org/id/unitary-authority/wiltshire,18/01/2018,5107163476,445.18,Adams Morey Ltd ,110053,SP2 ,Neighbourhood & Planning,Fleet,Vehicle Parts,Transport Related,REVENUE
Wiltshire,http://opendatacommunities.org/id/unitary-authority/wiltshire,24/01/2018,5107163502,532,Adams Morey Ltd ,110053,SP2 ,Neighbourhood & Planning,Fleet,Vehicle Parts,Transport Related,REVENUE
Wiltshire,http://opendatacommunities.org/id/unitary-authority/wiltshire,25/01/2018,5107163505,499.69,Adams Morey Ltd ,110053,SP2 ,Neighbourhood & Planning,Fleet,Vehicle Parts,Transport Related,REVENUE
Wiltshire,http://opendatacommunities.org/id/unitary-authority/wiltshire,18/01/2018,5107164024,276,Adams Morey Ltd ,110053,SP2 ,Neighbourhood & Planning,Fleet,Vehicle Repairs & Maintenance,Transport Related,REVENUE
Wiltshire,http://opendatacommunities.org/id/unitary-authority/wiltshire,18/01/2018,5107164029,695.2,Adams Morey Ltd ,110053,SP2 ,Neighbourhood & Planning,Fleet,Vehicle Parts,Transport Related,REVENUE
Wiltshire,http://opendatacommunities.org/id/unitary-authority/wiltshire,18/01/2018,5107164040,710.07,Adams Morey Ltd ,110053,SP2 ,Neighbourhood & Planning,Fleet,Vehicle Parts,Transport Related,REVENUE
Wiltshire,http://opendatacommunities.org/id/unitary-authority/wiltshire,18/01/2018,5107164042,506,Adams Morey Ltd ,110053,SP2 ,Neighbourhood & Planning,Fleet,Vehicle Parts,Transport Related,REVENUE
Wiltshire,http://opendatacommunities.org/id/unitary-authority/wiltshire,23/01/2018,1902072666,1748,ADASS [London] ,125245,SW1P,Community Services,Operations Manag,Professional Subscriptions/Memberships,Employee Related,REVENUE
Wiltshire,http://opendatacommunities.org/id/unitary-authority/wiltshire,12/01/2018,5107162993,6000,Adjacent Digital Politics Ltd ,145990,CW1 ,Neighbourhood & Planning,Swindon & Wilts LEP,Marketing and Promotions,Supplies and Services,REVENUE
Wiltshire,http://opendatacommunities.org/id/unitary-authority/wiltshire,18/01/2018,1902071948,1485.95,Adrains Engineering Psv ,100848,SN15,Neighbourhood & Planning,Mainstream Secondary,Transport Contracts,Third Party Payments,REVENUE
Wiltshire,http://opendatacommunities.org/id/unitary-authority/wiltshire,18/01/2018,1902071949,3039.73,Adrains Engineering Psv ,100848,SN15,Neighbourhood & Planning,Mainstream Secondary,Transport Contracts,Third Party Payments,REVENUE
Wiltshire,http://opendatacommunities.org/id/unitary-authority/wiltshire,18/01/2018,1902071950,2850.42,Adrains Engineering Psv ,100848,SN15,Neighbourhood & Planning,Mainstream Secondary,Transport Contracts,Third Party Payments,REVENUE
Wiltshire,http://opendatacommunities.org/id/unitary-authority/wiltshire,18/01/2018,1902071951,3968.3,Adrains Engineering Psv ,100848,SN15,Neighbourhood & Planning,Mainstream Secondary,Transport Contracts,Third Party Payments,REVENUE
Wiltshire,http://opendatacommunities.org/id/unitary-authority/wiltshire,18/01/2018,1902071952,3035.09,Adrains Engineering Psv ,100848,SN15,Neighbourhood & Planning,Mainstream Primary,Transport Contracts,Third Party Payments,REVENUE
Wiltshire,http://opendatacommunities.org/id/unitary-authority/wiltshire,18/01/2018,1902071953,2919.35,Adrains Engineering Psv ,100848,SN15,Neighbourhood & Planning,Mainstream Secondary,Transport Contracts,Third Party Payments,REVENUE
Wiltshire,http://opendatacommunities.org/id/unitary-authority/wiltshire,18/01/2018,1902071954,2909.8,Adrains Engineering Psv ,100848,SN15,Neighbourhood & Planning,Mainstream Secondary,Transport Contracts,Third Party Payments,REVENUE
Wiltshire,http://opendatacommunities.org/id/unitary-authority/wiltshire,18/01/2018,1902071955,352.35,Adrains Engineering Psv ,100848,SN15,Neighbourhood & Planning,Public Transport,Transport Contracts,Third Party Payments,REVENUE
Wiltshire,http://opendatacommunities.org/id/unitary-authority/wiltshire,18/01/2018,1902071955,3333.33,Adrains Engineering Psv ,100848,SN15,Neighbourhood & Planning,Mainstream Primary,Transport Contracts,Third Party Payments,REVENUE
Wiltshire,http://opendatacommunities.org/id/unitary-authority/wiltshire,18/01/2018,1902071957,3333.33,Adrains Engineering Psv ,100848,SN15,Neighbourhood & Planning,Mainstream Secondary,Transport Contracts,Third Party Payments,REVENUE
Wiltshire,http://opendatacommunities.org/id/unitary-authority/wiltshire,18/01/2018,1902071957,3455.42,Adrains Engineering Psv ,100848,SN15,Neighbourhood & Planning,Public Transport,Transport Contracts,Third Party Payments,REVENUE
Wiltshire,http://opendatacommunities.org/id/unitary-authority/wiltshire,18/01/2018,1902071958,3467.5,Adrains Engineering Psv ,100848,SN15,Neighbourhood & Planning,Mainstream Secondary,Transport Contracts,Third Party Payments,REVENUE
Wiltshire,http://opendatacommunities.org/id/unitary-authority/wiltshire,16/01/2018,1902065125,326.33,Adrian's Taxi ,138861,SN10,Neighbourhood & Planning,Mainstream Secondary,Transport Contracts,Third Party Payments,REVENUE
Wiltshire,http://opendatacommunities.org/id/unitary-authority/wiltshire,16/01/2018,1902065125,652.67,Adrian's Taxi ,138861,SN10,Neighbourhood & Planning,SEN Primary,Transport Contracts,Third Party Payments,REVENUE
Wiltshire,http://opendatacommunities.org/id/unitary-authority/wiltshire,16/01/2018,1902065126,302.4,Adrian's Taxi ,138861,SN10,Neighbourhood & Planning,Mainstream Secondary,Transport Contracts,Third Party Payments,REVENUE
Wiltshire,http://opendatacommunities.org/id/unitary-authority/wiltshire,16/01/2018,1902065126,302.4,Adrian's Taxi ,138861,SN10,Neighbourhood & Planning,SEN Primary,Transport Contracts,Third Party Payments,REVENUE
Wiltshire,http://opendatacommunities.org/id/unitary-authority/wiltshire,16/01/2018,1902065126,302.4,Adrian's Taxi ,138861,SN10,Neighbourhood & Planning,SEN Secondary,Transport Contracts,Third Party Payments,REVENUE
Wiltshire,http://opendatacommunities.org/id/unitary-authority/wiltshire,04/01/2018,1902060829,5326.03,Advance Housing  and  Support Ltd ,110060,OX28,Neighbourhood & Planning,Hsg Strat & Enabling,Other Contracts,Third Party Payments,REVENUE
Wiltshire,http://opendatacommunities.org/id/unitary-authority/wiltshire,04/01/2018,1902060627,851.2,Ady Cars ,136208,SP11,Neighbourhood & Planning,SEN Secondary,Transport Contracts,Third Party Payments,REVENUE
Wiltshire,http://opendatacommunities.org/id/unitary-authority/wiltshire,04/01/2018,5107156505,2000,AECOM Ltd ,127871,SW19,Wiltshire Council,Wiltshire Council,Consultants Fees,Supplies and Services,CAPITAL
Wiltshire,http://opendatacommunities.org/id/unitary-authority/wiltshire,04/01/2018,5107156506,2500,AECOM Ltd ,127871,SW19,Wiltshire Council,Wiltshire Council,Consultants Fees,Supplies and Services,CAPITAL
Wiltshire,http://opendatacommunities.org/id/unitary-authority/wiltshire,04/01/2018,5107156507,1000,AECOM Ltd ,127871,SW19,Wiltshire Council,Wiltshire Council,Consultants Fees,Supplies and Services,CAPITAL
Wiltshire,http://opendatacommunities.org/id/unitary-authority/wiltshire,04/01/2018,5107156508,1000,AECOM Ltd ,127871,SW19,Wiltshire Council,Wiltshire Council,Consultants Fees,Supplies and Services,CAPITAL
Wiltshire,http://opendatacommunities.org/id/unitary-authority/wiltshire,12/01/2018,5107162051,2011,AECOM Ltd ,127871,SW19,Wiltshire Council,Wiltshire Council,Consultants Fees,Supplies and Services,CAPITAL
Wiltshire,http://opendatacommunities.org/id/unitary-authority/wiltshire,16/01/2018,5107163667,2000,AECOM Ltd ,127871,SW19,Wiltshire Council,Wiltshire Council,Consultants Fees,Supplies and Services,CAPITAL
Wiltshire,http://opendatacommunities.org/id/unitary-authority/wiltshire,17/01/2018,1902071409,42000,Age UK Wiltshire ,100129,SN10,Community Services,ASC Community C&G,Grants Expenditure,Supplies and Services,REVENUE
Wiltshire,http://opendatacommunities.org/id/unitary-authority/wiltshire,18/01/2018,1902071536,92583.5,Age UK Wiltshire ,100129,SN10,Community Services,ASC Community C&G,Grants Expenditure,Supplies and Services,REVENUE
Wiltshire,http://opendatacommunities.org/id/unitary-authority/wiltshire,23/01/2018,1902073256,782,Agincare Ltd ,110069,DT5 ,Community Services,HTLAH - Neighbourhoo,Interim Support Plan - HTLAH,Third Party Payments,REVENUE
Wiltshire,http://opendatacommunities.org/id/unitary-authority/wiltshire,31/01/2018,5107168802,282,Airquee Ltd ,110080,NP44,Neighbourhood & Planning,Five Rivers,Chemicals,Premises Related,REVENUE
Wiltshire,http://opendatacommunities.org/id/unitary-authority/wiltshire,02/01/2018,5107154551,400,AIRSPACE SOLUTIONS COM LTD ,110081,NP22,Neighbourhood & Planning,Springfield Leisr Cn,Equipment Maintenance,Supplies and Services,REVENUE
Wiltshire,http://opendatacommunities.org/id/unitary-authority/wiltshire,05/01/2018,5107156749,300,AIRSPACE SOLUTIONS COM LTD ,110081,NP22,Neighbourhood & Planning,Amesbury,Equipment Purchase,Supplies and Services,REVENUE
Wiltshire,http://opendatacommunities.org/id/unitary-authority/wiltshire,05/01/2018,1902061320,1484,Akcess Ltd ,101402,SN2 ,Neighbourhood & Planning,Mainstream Secondary,Transport Contracts,Third Party Payments,REVENUE
Wiltshire,http://opendatacommunities.org/id/unitary-authority/wiltshire,05/01/2018,1902061325,2170,Akcess Ltd ,101402,SN2 ,Neighbourhood & Planning,SEN Secondary,Transport Contracts,Third Party Payments,REVENUE
Wiltshire,http://opendatacommunities.org/id/unitary-authority/wiltshire,05/01/2018,1902061326,1750,Akcess Ltd ,101402,SN2 ,Neighbourhood & Planning,SEN Secondary,Transport Contracts,Third Party Payments,REVENUE
Wiltshire,http://opendatacommunities.org/id/unitary-authority/wiltshire,05/01/2018,1902061328,776.16,Akcess Ltd ,101402,SN2 ,Neighbourhood & Planning,SEN 16+ Secondary,Transport Contracts,Third Party Payments,REVENUE
Wiltshire,http://opendatacommunities.org/id/unitary-authority/wiltshire,05/01/2018,1902061331,1311.05,Akcess Ltd ,101402,SN2 ,Neighbourhood & Planning,Mainstream Primary,Transport Contracts,Third Party Payments,REVENUE
Wiltshire,http://opendatacommunities.org/id/unitary-authority/wiltshire,05/01/2018,1902061332,2840.18,Akcess Ltd ,101402,SN2 ,Neighbourhood & Planning,SEN Secondary,Transport Contracts,Third Party Payments,REVENUE
Wiltshire,http://opendatacommunities.org/id/unitary-authority/wiltshire,05/01/2018,1902061333,1378,Akcess Ltd ,101402,SN2 ,Neighbourhood & Planning,Mainstream Secondary,Transport Contracts,Third Party Payments,REVENUE
Wiltshire,http://opendatacommunities.org/id/unitary-authority/wiltshire,05/01/2018,1902061334,306,Akcess Ltd ,101402,SN2 ,Neighbourhood & Planning,SEN 16+ Secondary,Transport Contracts,Third Party Payments,REVENUE
Wiltshire,http://opendatacommunities.org/id/unitary-authority/wiltshire,05/01/2018,1902061334,371.57,Akcess Ltd ,101402,SN2 ,Neighbourhood & Planning,SEN Secondary,Transport Contracts,Third Party Payments,REVENUE
Wiltshire,http://opendatacommunities.org/id/unitary-authority/wiltshire,05/01/2018,1902061334,1464.43,Akcess Ltd ,101402,SN2 ,Neighbourhood & Planning,SEN Primary,Transport Contracts,Third Party Payments,REVENUE
Wiltshire,http://opendatacommunities.org/id/unitary-authority/wiltshire,05/01/2018,1902061335,725.66,Akcess Ltd ,101402,SN2 ,Neighbourhood & Planning,SEN Primary,Transport Contracts,Third Party Payments,REVENUE
Wiltshire,http://opendatacommunities.org/id/unitary-authority/wiltshire,05/01/2018,1902061335,725.67,Akcess Ltd ,101402,SN2 ,Neighbourhood & Planning,SEN Secondary,Transport Contracts,Third Party Payments,REVENUE
Wiltshire,http://opendatacommunities.org/id/unitary-authority/wiltshire,05/01/2018,1902061335,725.67,Akcess Ltd ,101402,SN2 ,Neighbourhood & Planning,SEN 16+ Secondary,Transport Contracts,Third Party Payments,REVENUE
Wiltshire,http://opendatacommunities.org/id/unitary-authority/wiltshire,05/01/2018,1902061336,690.74,Akcess Ltd ,101402,SN2 ,Neighbourhood & Planning,SEN 16+ Secondary,Transport Contracts,Third Party Payments,REVENUE
Wiltshire,http://opendatacommunities.org/id/unitary-authority/wiltshire,05/01/2018,1902061336,1381.49,Akcess Ltd ,101402,SN2 ,Neighbourhood & Planning,SEN Secondary,Transport Contracts,Third Party Payments,REVENUE
Wiltshire,http://opendatacommunities.org/id/unitary-authority/wiltshire,05/01/2018,1902061337,307.18,Akcess Ltd ,101402,SN2 ,Neighbourhood & Planning,SEN Secondary,Transport Contracts,Third Party Payments,REVENUE
Wiltshire,http://opendatacommunities.org/id/unitary-authority/wiltshire,05/01/2018,1902061337,1601.72,Akcess Ltd ,101402,SN2 ,Neighbourhood & Planning,SEN Primary,Transport Contracts,Third Party Payments,REVENUE
Wiltshire,http://opendatacommunities.org/id/unitary-authority/wiltshire,05/01/2018,1902061338,1225,Akcess Ltd ,101402,SN2 ,Neighbourhood & Planning,Mainstream Primary,Transport Contracts,Third Party Payments,REVENUE
Wiltshire,http://opendatacommunities.org/id/unitary-authority/wiltshire,05/01/2018,1902061339,1833.17,Akcess Ltd ,101402,SN2 ,Neighbourhood & Planning,Mainstream Primary,Transport Contracts,Third Party Payments,REVENUE
Wiltshire,http://opendatacommunities.org/id/unitary-authority/wiltshire,05/01/2018,1902061340,1253,Akcess Ltd ,101402,SN2 ,Neighbourhood & Planning,Mainstream Primary,Transport Contracts,Third Party Payments,REVENUE
Wiltshire,http://opendatacommunities.org/id/unitary-authority/wiltshire,05/01/2018,1902061341,570.61,Akcess Ltd ,101402,SN2 ,Neighbourhood & Planning,Mainstream Secondary,Transport Contracts,Third Party Payments,REVENUE
Wiltshire,http://opendatacommunities.org/id/unitary-authority/wiltshire,05/01/2018,1902061342,1708,Akcess Ltd ,101402,SN2 ,Neighbourhood & Planning,SEN Primary,Transport Contracts,Third Party Payments,REVENUE
Wiltshire,http://opendatacommunities.org/id/unitary-authority/wiltshire,05/01/2018,1902061343,1682.45,Akcess Ltd ,101402,SN2 ,Neighbourhood & Planning,Mainstream Secondary,Transport Contracts,Third Party Payments,REVENUE
Wiltshire,http://opendatacommunities.org/id/unitary-authority/wiltshire,05/01/2018,1902061344,444,Akcess Ltd ,101402,SN2 ,Neighbourhood & Planning,SEN Rechargable Exp,Transport Contracts,Third Party Payments,REVENUE
Wiltshire,http://opendatacommunities.org/id/unitary-authority/wiltshire,05/01/2018,1902061344,11960.39,Akcess Ltd ,101402,SN2 ,Neighbourhood & Planning,SEN Secondary,Transport Contracts,Third Party Payments,REVENUE
Wiltshire,http://opendatacommunities.org/id/unitary-authority/wiltshire,05/01/2018,1902061344,11960.39,Akcess Ltd ,101402,SN2 ,Neighbourhood & Planning,SEN 16+ Secondary,Transport Contracts,Third Party Payments,REVENUE
Wiltshire,http://opendatacommunities.org/id/unitary-authority/wiltshire,05/01/2018,1902061344,15947.2,Akcess Ltd ,101402,SN2 ,Neighbourhood & Planning,SEN Primary,Transport Contracts,Third Party Payments,REVENUE
Wiltshire,http://opendatacommunities.org/id/unitary-authority/wiltshire,05/01/2018,1902061345,1690,Akcess Ltd ,101402,SN2 ,Neighbourhood & Planning,Mainstream Primary,Transport Contracts,Third Party Payments,REVENUE
Wiltshire,http://opendatacommunities.org/id/unitary-authority/wiltshire,05/01/2018,1902061346,1022.25,Akcess Ltd ,101402,SN2 ,Neighbourhood & Planning,Mainstream Primary,Transport Contracts,Third Party Payments,REVENUE
Wiltshire,http://opendatacommunities.org/id/unitary-authority/wiltshire,05/01/2018,1902061347,1022.25,Akcess Ltd ,101402,SN2 ,Neighbourhood & Planning,Mainstream Primary,Transport Contracts,Third Party Payments,REVENUE
Wiltshire,http://opendatacommunities.org/id/unitary-authority/wiltshire,05/01/2018,1902061348,2052.8,Akcess Ltd ,101402,SN2 ,Neighbourhood & Planning,Mainstream Secondary,Transport Contracts,Third Party Payments,REVENUE
Wiltshire,http://opendatacommunities.org/id/unitary-authority/wiltshire,05/01/2018,1902061349,1849.97,Akcess Ltd ,101402,SN2 ,Neighbourhood & Planning,Mainstream Primary,Transport Contracts,Third Party Payments,REVENUE
Wiltshire,http://opendatacommunities.org/id/unitary-authority/wiltshire,05/01/2018,1902061350,1996.39,Akcess Ltd ,101402,SN2 ,Neighbourhood & Planning,Mainstream Secondary,Transport Contracts,Third Party Payments,REVENUE
Wiltshire,http://opendatacommunities.org/id/unitary-authority/wiltshire,05/01/2018,1902061351,2939.28,Akcess Ltd ,101402,SN2 ,Neighbourhood & Planning,Mainstream Secondary,Transport Contracts,Third Party Payments,REVENUE
Wiltshire,http://opendatacommunities.org/id/unitary-authority/wiltshire,05/01/2018,1902061352,1564.33,Akcess Ltd ,101402,SN2 ,Neighbourhood & Planning,Mainstream Secondary,Transport Contracts,Third Party Payments,REVENUE
Wiltshire,http://opendatacommunities.org/id/unitary-authority/wiltshire,05/01/2018,1902061353,1332.97,Akcess Ltd ,101402,SN2 ,Neighbourhood & Planning,Mainstream Secondary,Transport Contracts,Third Party Payments,REVENUE
Wiltshire,http://opendatacommunities.org/id/unitary-authority/wiltshire,05/01/2018,1902061354,902.18,Akcess Ltd ,101402,SN2 ,Neighbourhood & Planning,Mainstream Primary,Transport Contracts,Third Party Payments,REVENUE
Wiltshire,http://opendatacommunities.org/id/unitary-authority/wiltshire,05/01/2018,1902061354,1675.49,Akcess Ltd ,101402,SN2 ,Neighbourhood & Planning,Mainstream Secondary,Transport Contracts,Third Party Payments,REVENUE
Wiltshire,http://opendatacommunities.org/id/unitary-authority/wiltshire,05/01/2018,1902061355,2166.67,Akcess Ltd ,101402,SN2 ,Neighbourhood & Planning,Mainstream Primary,Transport Contracts,Third Party Payments,REVENUE
Wiltshire,http://opendatacommunities.org/id/unitary-authority/wiltshire,05/01/2018,1902061356,529.2,Akcess Ltd ,101402,SN2 ,Community Services,N&E Localiity 18+ C,Transport Contracts,Third Party Payments,REVENUE
Wiltshire,http://opendatacommunities.org/id/unitary-authority/wiltshire,05/01/2018,1902061357,1607.94,Akcess Ltd ,101402,SN2 ,Neighbourhood & Planning,Mainstream Primary,Transport Contracts,Third Party Payments,REVENUE
Wiltshire,http://opendatacommunities.org/id/unitary-authority/wiltshire,05/01/2018,1902061358,1338.6,Akcess Ltd ,101402,SN2 ,Neighbourhood & Planning,Mainstream Secondary,Transport Contracts,Third Party Payments,REVENUE
Wiltshire,http://opendatacommunities.org/id/unitary-authority/wiltshire,05/01/2018,1902061359,803.38,Akcess Ltd ,101402,SN2 ,Neighbourhood & Planning,Mainstream Secondary,Transport Contracts,Third Party Payments,REVENUE
Wiltshire,http://opendatacommunities.org/id/unitary-authority/wiltshire,05/01/2018,1902061359,1104.62,Akcess Ltd ,101402,SN2 ,Neighbourhood & Planning,Mainstream Primary,Transport Contracts,Third Party Payments,REVENUE
Wiltshire,http://opendatacommunities.org/id/unitary-authority/wiltshire,31/01/2018,1902075977,343.92,Akcess Ltd ,101402,SN2 ,Neighbourhood & Planning,Mainstream Secondary,Transport Contracts,Third Party Payments,REVENUE
Wiltshire,http://opendatacommunities.org/id/unitary-authority/wiltshire,31/01/2018,1902075977,1175.07,Akcess Ltd ,101402,SN2 ,Neighbourhood & Planning,SEN Secondary,Transport Contracts,Third Party Payments,REVENUE
Wiltshire,http://opendatacommunities.org/id/unitary-authority/wiltshire,31/01/2018,1902075979,534.08,Akcess Ltd ,101402,SN2 ,Neighbourhood & Planning,SEN Primary,Transport Contracts,Third Party Payments,REVENUE
Wiltshire,http://opendatacommunities.org/id/unitary-authority/wiltshire,31/01/2018,1902075979,1233.92,Akcess Ltd ,101402,SN2 ,Neighbourhood & Planning,SEN Secondary,Transport Contracts,Third Party Payments,REVENUE
Wiltshire,http://opendatacommunities.org/id/unitary-authority/wiltshire,04/01/2018,1902060315,899.83,Alabare Christian Care Centre ,100837,SP2 ,Community Services,Area Board Devizes,Area Board Grants,Supplies and Services,REVENUE
Wiltshire,http://opendatacommunities.org/id/unitary-authority/wiltshire,04/01/2018,1902060316,899.83,Alabare Christian Care Centre ,100837,SP2 ,Community Services,Area Board Calne,Area Board Grants,Supplies and Services,REVENUE
Wiltshire,http://opendatacommunities.org/id/unitary-authority/wiltshire,04/01/2018,1902060317,899.83,Alabare Christian Care Centre ,100837,SP2 ,Community Services,Area Board Trow,Area Board Grants,Supplies and Services,REVENUE
Wiltshire,http://opendatacommunities.org/id/unitary-authority/wiltshire,04/01/2018,1902060816,1280.91,Alabare Christian Care Centre ,100837,SP2 ,Neighbourhood & Planning,Hsg Strat & Enabling,Other Contracts,Third Party Payments,REVENUE
Wiltshire,http://opendatacommunities.org/id/unitary-authority/wiltshire,04/01/2018,1902060818,1709.76,Alabare Christian Care Centre ,100837,SP2 ,Neighbourhood & Planning,Hsg Strat & Enabling,Other Contracts,Third Party Payments,REVENUE
Wiltshire,http://opendatacommunities.org/id/unitary-authority/wiltshire,04/01/2018,1902060823,2436.66,Alabare Christian Care Centre ,100837,SP2 ,Neighbourhood & Planning,Hsg Strat & Enabling,Other Contracts,Third Party Payments,REVENUE
Wiltshire,http://opendatacommunities.org/id/unitary-authority/wiltshire,04/01/2018,1902060826,3114.93,Alabare Christian Care Centre ,100837,SP2 ,Neighbourhood & Planning,Hsg Strat & Enabling,Other Contracts,Third Party Payments,REVENUE
Wiltshire,http://opendatacommunities.org/id/unitary-authority/wiltshire,04/01/2018,1902060827,3388.68,Alabare Christian Care Centre ,100837,SP2 ,Neighbourhood & Planning,Hsg Strat & Enabling,Other Contracts,Third Party Payments,REVENUE
Wiltshire,http://opendatacommunities.org/id/unitary-authority/wiltshire,04/01/2018,1902060833,8245.56,Alabare Christian Care Centre ,100837,SP2 ,Neighbourhood & Planning,Hsg Strat & Enabling,Other Contracts,Third Party Payments,REVENUE
Wiltshire,http://opendatacommunities.org/id/unitary-authority/wiltshire,04/01/2018,1902060838,21802.76,Alabare Christian Care Centre ,100837,SP2 ,Neighbourhood & Planning,Hsg Strat & Enabling,Other Contracts,Third Party Payments,REVENUE
Wiltshire,http://opendatacommunities.org/id/unitary-authority/wiltshire,12/01/2018,5107162728,1865.31,Alabare Christian Care Centre ,100837,SP2 ,Children & Education,Albare Contract,Childrens Agency Placement,Third Party Payments,REVENUE
Wiltshire,http://opendatacommunities.org/id/unitary-authority/wiltshire,12/01/2018,5107162729,1033.91,Alabare Christian Care Centre ,100837,SP2 ,Children & Education,Safeguarding Ass Nth,Childrens Agency Placement,Third Party Payments,REVENUE
Wiltshire,http://opendatacommunities.org/id/unitary-authority/wiltshire,12/01/2018,5107162730,2143.12,Alabare Christian Care Centre ,100837,SP2 ,Children & Education,Albare Contract,Childrens Agency Placement,Third Party Payments,REVENUE
Wiltshire,http://opendatacommunities.org/id/unitary-authority/wiltshire,12/01/2018,5107162731,2143.12,Alabare Christian Care Centre ,100837,SP2 ,Children & Education,Albare Contract,Childrens Agency Placement,Third Party Payments,REVENUE
Wiltshire,http://opendatacommunities.org/id/unitary-authority/wiltshire,12/01/2018,5107162732,1861.28,Alabare Christian Care Centre ,100837,SP2 ,Children & Education,Albare Contract,Childrens Agency Placement,Third Party Payments,REVENUE
Wiltshire,http://opendatacommunities.org/id/unitary-authority/wiltshire,12/01/2018,5107162796,2352.66,Alabare Christian Care Centre ,100837,SP2 ,Children & Education,Albare Contract,Childrens Agency Placement,Third Party Payments,REVENUE
Wiltshire,http://opendatacommunities.org/id/unitary-authority/wiltshire,12/01/2018,5107162797,2355.73,Alabare Christian Care Centre ,100837,SP2 ,Children & Education,Albare Contract,Childrens Agency Placement,Third Party Payments,REVENUE
Wiltshire,http://opendatacommunities.org/id/unitary-authority/wiltshire,12/01/2018,5107162812,1187.92,Alabare Christian Care Centre ,100837,SP2 ,Children & Education,Albare Contract,Childrens Agency Placement,Third Party Payments,REVENUE
Wiltshire,http://opendatacommunities.org/id/unitary-authority/wiltshire,12/01/2018,5107162825,990.14,Alabare Christian Care Centre ,100837,SP2 ,Children & Education,Albare Contract,Childrens Agency Placement,Third Party Payments,REVENUE
Wiltshire,http://opendatacommunities.org/id/unitary-authority/wiltshire,12/01/2018,5107162830,447.16,Alabare Christian Care Centre ,100837,SP2 ,Children & Education,Albare Contract,Childrens Agency Placement,Third Party Payments,REVENUE
Wiltshire,http://opendatacommunities.org/id/unitary-authority/wiltshire,12/01/2018,5107162837,3538.39,Alabare Christian Care Centre ,100837,SP2 ,Children & Education,Albare Contract,Childrens Agency Placement,Third Party Payments,REVENUE
Wiltshire,http://opendatacommunities.org/id/unitary-authority/wiltshire,12/01/2018,5107162838,254.13,Alabare Christian Care Centre ,100837,SP2 ,Children & Education,Albare Contract,Childrens Agency Placement,Third Party Payments,REVENUE
Wiltshire,http://opendatacommunities.org/id/unitary-authority/wiltshire,12/01/2018,5107162967,1104.23,Alabare Christian Care Centre ,100837,SP2 ,Children & Education,Albare Contract,Childrens Agency Placement,Third Party Payments,REVENUE
Wiltshire,http://opendatacommunities.org/id/unitary-authority/wiltshire,25/01/2018,5107165761,8475,Alabare Christian Care Centre ,100837,SP2 ,Community Services,KASH Ruth House,Substance Misuse Contracts,Third Party Payments,REVENUE
Wiltshire,http://opendatacommunities.org/id/unitary-authority/wiltshire,25/01/2018,5107165762,10795,Alabare Christian Care Centre ,100837,SP2 ,Community Services,KASH Ruth House,Substance Misuse Contracts,Third Party Payments,REVENUE
Wiltshire,http://opendatacommunities.org/id/unitary-authority/wiltshire,19/01/2018,1902072142,2499.33,Albino Builders Ltd ,141742,BA4 ,Wiltshire Council,Wiltshire Council,Other Contracts,Third Party Payments,CAPITAL
Wiltshire,http://opendatacommunities.org/id/unitary-authority/wiltshire,03/01/2018,5107154984,399,Alere Toxicology Plc ,131373,OX14,Children & Education,HQ Social Care,Witness / Jurors' / Justice's Expenses,Supplies and Services,REVENUE
Wiltshire,http://opendatacommunities.org/id/unitary-authority/wiltshire,03/01/2018,5107154985,505.4,Alere Toxicology Plc ,131373,OX14,Children & Education,HQ Social Care,Witness / Jurors' / Justice's Expenses,Supplies and Services,REVENUE
Wiltshire,http://opendatacommunities.org/id/unitary-authority/wiltshire,09/01/2018,5107157763,604,Alere Toxicology Plc ,131373,OX14,Children & Education,HQ Social Care,Witness / Jurors' / Justice's Expenses,Supplies and Services,REVENUE
Wiltshire,http://opendatacommunities.org/id/unitary-authority/wiltshire,11/01/2018,5107162204,307.75,ALLSPARES  AUTO  LTD ,110116,CF33,Neighbourhood & Planning,Fleet,Vehicle Parts,Transport Related,REVENUE
Wiltshire,http://opendatacommunities.org/id/unitary-authority/wiltshire,11/01/2018,5107162205,300,ALLSPARES  AUTO  LTD ,110116,CF33,Neighbourhood & Planning,Fleet,Vehicle Parts,Transport Related,REVENUE
Wiltshire,http://opendatacommunities.org/id/unitary-authority/wiltshire,11/01/2018,5107162207,415,ALLSPARES  AUTO  LTD ,110116,CF33,Neighbourhood & Planning,Fleet,Vehicle Parts,Transport Related,REVENUE
Wiltshire,http://opendatacommunities.org/id/unitary-authority/wiltshire,30/01/2018,5107162208,415,ALLSPARES  AUTO  LTD ,110116,CF33,Neighbourhood & Planning,Fleet,Vehicle Parts,Transport Related,REVENUE
Wiltshire,http://opendatacommunities.org/id/unitary-authority/wiltshire,10/01/2018,5107159695,295,Alpha Chemicals ,138904,SO31,Neighbourhood & Planning,Springfield Leisr Cn,Cleaning Materials - Buildings,Premises Related,REVENUE
Wiltshire,http://opendatacommunities.org/id/unitary-authority/wiltshire,16/01/2018,5107163728,390.67,Alpha Chemicals ,138904,SO31,Neighbourhood & Planning,Durrington SwimmingP,Cleaning Materials - Buildings,Premises Related,REVENUE
Wiltshire,http://opendatacommunities.org/id/unitary-authority/wiltshire,29/01/2018,5107164952,1049.11,Alpha Chemicals ,138904,SO31,Neighbourhood & Planning,Durrington SwimmingP,Cleaning Materials - Buildings,Premises Related,REVENUE
Wiltshire,http://opendatacommunities.org/id/unitary-authority/wiltshire,09/01/2018,5107156527,398,Alpha Plus Training  and  Translati Ltd,110120,TA4 ,Children & Education,SpecialistProvision,Educational Fees,Supplies and Services,REVENUE
Wiltshire,http://opendatacommunities.org/id/unitary-authority/wiltshire,11/01/2018,5107162021,325,Alpha Plus Training  and  Translati Ltd,110120,TA4 ,Children & Education,HQ Social Care,Other Social & Welfare Costs,Third Party Payments,REVENUE
Wiltshire,http://opendatacommunities.org/id/unitary-authority/wiltshire,10/01/2018,1902062702,548.3,Alpha Taxis ,100124,BA14,Neighbourhood & Planning,SEN Primary,Transport Contracts,Third Party Payments,REVENUE
Wiltshire,http://opendatacommunities.org/id/unitary-authority/wiltshire,10/01/2018,1902062703,1022,Alpha Taxis ,100124,BA14,Neighbourhood & Planning,SEN Primary,Transport Contracts,Third Party Payments,REVENUE
Wiltshire,http://opendatacommunities.org/id/unitary-authority/wiltshire,10/01/2018,1902062704,1545.6,Alpha Taxis ,100124,BA14,Neighbourhood & Planning,SEN Primary,Transport Contracts,Third Party Payments,REVENUE
Wiltshire,http://opendatacommunities.org/id/unitary-authority/wiltshire,10/01/2018,1902062706,1116,Alpha Taxis ,100124,BA14,Neighbourhood & Planning,SEN 16+ Secondary,Transport Contracts,Third Party Payments,REVENUE
Wiltshire,http://opendatacommunities.org/id/unitary-authority/wiltshire,10/01/2018,1902062708,1327.2,Alpha Taxis ,100124,BA14,Neighbourhood & Planning,SEN Primary,Transport Contracts,Third Party Payments,REVENUE
Wiltshire,http://opendatacommunities.org/id/unitary-authority/wiltshire,10/01/2018,1902062711,562.9,Alpha Taxis ,100124,BA14,Children & Education,BehaviourSuppCore,Transport Contracts,Third Party Payments,REVENUE
Wiltshire,http://opendatacommunities.org/id/unitary-authority/wiltshire,10/01/2018,1902062711,582.2,Alpha Taxis ,100124,BA14,Neighbourhood & Planning,SEN Primary,Transport Contracts,Third Party Payments,REVENUE
Wiltshire,http://opendatacommunities.org/id/unitary-authority/wiltshire,10/01/2018,1902062713,742,Alpha Taxis ,100124,BA14,Neighbourhood & Planning,Mainstream Secondary,Transport Contracts,Third Party Payments,REVENUE
Wiltshire,http://opendatacommunities.org/id/unitary-authority/wiltshire,10/01/2018,1902062715,252,Alpha Taxis ,100124,BA14,Neighbourhood & Planning,Mainstream Secondary,Transport Contracts,Third Party Payments,REVENUE
Wiltshire,http://opendatacommunities.org/id/unitary-authority/wiltshire,10/01/2018,1902062716,268.68,Alpha Taxis ,100124,BA14,Neighbourhood & Planning,Mainstream Primary,Transport Contracts,Third Party Payments,REVENUE
Wiltshire,http://opendatacommunities.org/id/unitary-authority/wiltshire,10/01/2018,1902062717,770.6,Alpha Taxis ,100124,BA14,Neighbourhood & Planning,Mainstream Secondary,Transport Contracts,Third Party Payments,REVENUE
Wiltshire,http://opendatacommunities.org/id/unitary-authority/wiltshire,10/01/2018,1902062721,1064,Alpha Taxis ,100124,BA14,Neighbourhood & Planning,SEN Primary,Transport Contracts,Third Party Payments,REVENUE
Wiltshire,http://opendatacommunities.org/id/unitary-authority/wiltshire,10/01/2018,1902062722,1663.6,Alpha Taxis ,100124,BA14,Children & Education,Safeguarding Ass Sth,Transport Contracts,Third Party Payments,REVENUE
Wiltshire,http://opendatacommunities.org/id/unitary-authority/wiltshire,16/01/2018,1902065205,892.5,Alpha Taxis ,100124,BA14,Neighbourhood & Planning,SEN Primary,Transport Contracts,Third Party Payments,REVENUE
Wiltshire,http://opendatacommunities.org/id/unitary-authority/wiltshire,16/01/2018,1902065205,892.5,Alpha Taxis ,100124,BA14,Neighbourhood & Planning,SEN Secondary,Transport Contracts,Third Party Payments,REVENUE
Wiltshire,http://opendatacommunities.org/id/unitary-authority/wiltshire,25/01/2018,1902074416,1680,Alpha Taxis (Tidworth) ,137541,SP9 ,Neighbourhood & Planning,SEN Primary,Transport Contracts,Third Party Payments,REVENUE
Wiltshire,http://opendatacommunities.org/id/unitary-authority/wiltshire,25/01/2018,1902074419,330,Alpha Taxis (Tidworth) ,137541,SP9 ,Community Services,MH OP South Locality,Transport Contracts,Third Party Payments,REVENUE
Wiltshire,http://opendatacommunities.org/id/unitary-authority/wiltshire,10/01/2018,5107157169,269.81,ALS Laboratories (UK) Ltd ,131122,WF14,Health & Wellbeing,Environmental Protec,Consumer Protection-Measurement Equipment,Supplies and Services,REVENUE
Wiltshire,http://opendatacommunities.org/id/unitary-authority/wiltshire,16/01/2018,1902065037,95176.81,Alun Griffiths Contractors Ltd ,110123,NP7 ,Wiltshire Council,Wiltshire Council,Materials,Supplies and Services,CAPITAL
Wiltshire,http://opendatacommunities.org/id/unitary-authority/wiltshire,17/01/2018,1902071231,424012.34,Alun Griffiths Contractors Ltd ,110123,NP7 ,Wiltshire Council,Wiltshire Council,Materials,Supplies and Services,CAPITAL
Wiltshire,http://opendatacommunities.org/id/unitary-authority/wiltshire,02/01/2018,5107154507,10192.7,Alzheimers Support ,110127,BA14,Community Services,MH Commissioned Cont,Grants Expenditure,Supplies and Services,REVENUE
Wiltshire,http://opendatacommunities.org/id/unitary-authority/wiltshire,02/01/2018,5107154508,21312,Alzheimers Support ,110127,BA14,Community Services,MH Commissioned Cont,Grants Expenditure,Supplies and Services,REVENUE
Wiltshire,http://opendatacommunities.org/id/unitary-authority/wiltshire,26/01/2018,5107164436,10192.7,Alzheimers Support ,110127,BA14,Community Services,MH Commissioned Cont,Grants Expenditure,Supplies and Services,REVENUE
Wiltshire,http://opendatacommunities.org/id/unitary-authority/wiltshire,26/01/2018,5107164437,21312,Alzheimers Support ,110127,BA14,Community Services,MH Commissioned Cont,Grants Expenditure,Supplies and Services,REVENUE
Wiltshire,http://opendatacommunities.org/id/unitary-authority/wiltshire,16/01/2018,1902064740,21875,Ameo Professional Services LLP ,137429,B80 ,Children & Education,Schools Traded Servi,Consultants Fees,Supplies and Services,REVENUE
Wiltshire,http://opendatacommunities.org/id/unitary-authority/wiltshire,16/01/2018,1902064741,12500,Ameo Professional Services LLP ,137429,B80 ,Children & Education,Schools Traded Servi,Consultants Fees,Supplies and Services,REVENUE
Wiltshire,http://opendatacommunities.org/id/unitary-authority/wiltshire,11/01/2018,1902059787,927.29,Amesbury Sports Community Centre ,113480,SP4 ,Resources,FM Leisure Centres,Electricity,Premises Related,REVENUE
Wiltshire,http://opendatacommunities.org/id/unitary-authority/wiltshire,08/01/2018,1902061400,1512.8,Amicus Foster Care Limited ,126050,BS2 ,Children & Education,Ext Placement & IFA,Childrens Agency Placement,Third Party Payments,REVENUE
Wiltshire,http://opendatacommunities.org/id/unitary-authority/wiltshire,12/01/2018,5107162724,3146.5,Amicus Foster Care Limited ,126050,BS2 ,Children & Education,Ext Placement & IFA,Childrens Agency Placement,Third Party Payments,REVENUE
Wiltshire,http://opendatacommunities.org/id/unitary-authority/wiltshire,12/01/2018,5107162734,4581.49,Amicus Foster Care Limited ,126050,BS2 ,Children & Education,Ext Placement & IFA,Childrens Agency Placement,Third Party Payments,REVENUE
Wiltshire,http://opendatacommunities.org/id/unitary-authority/wiltshire,12/01/2018,5107162735,3624.21,Amicus Foster Care Limited ,126050,BS2 ,Children & Education,Ext Placement & IFA,Childrens Agency Placement,Third Party Payments,REVENUE
Wiltshire,http://opendatacommunities.org/id/unitary-authority/wiltshire,12/01/2018,5107162736,3406.9,Amicus Foster Care Limited ,126050,BS2 ,Children & Education,Ext Placement & IFA,Childrens Agency Placement,Third Party Payments,REVENUE
Wiltshire,http://opendatacommunities.org/id/unitary-authority/wiltshire,12/01/2018,5107162739,3406.9,Amicus Foster Care Limited ,126050,BS2 ,Children & Education,Ext Placement & IFA,Childrens Agency Placement,Third Party Payments,REVENUE
Wiltshire,http://opendatacommunities.org/id/unitary-authority/wiltshire,12/01/2018,5107162835,3919.64,Amicus Foster Care Limited ,126050,BS2 ,Children & Education,Ext Placement & IFA,Childrens Agency Placement,Third Party Payments,REVENUE
Wiltshire,http://opendatacommunities.org/id/unitary-authority/wiltshire,18/01/2018,1902071908,1200,Andover Education Centre ,146362,SP11,Children & Education,Pupil Premium LAC,Educational Fees,Supplies and Services,REVENUE
Wiltshire,http://opendatacommunities.org/id/unitary-authority/wiltshire,17/01/2018,1902071257,13027.62,Andrew Ashcroft Planning Limited ,144319,HR1 ,Neighbourhood & Planning,Neighbourhood Planng,Professional Fees,Supplies and Services,REVENUE
Wiltshire,http://opendatacommunities.org/id/unitary-authority/wiltshire,10/01/2018,1902062661,350,Andy Taxis Limited ,100874,SP4 ,Neighbourhood & Planning,Mainstream Primary,Transport Contracts,Third Party Payments,REVENUE
Wiltshire,http://opendatacommunities.org/id/unitary-authority/wiltshire,10/01/2018,1902062661,1050,Andy Taxis Limited ,100874,SP4 ,Neighbourhood & Planning,Mainstream Secondary,Transport Contracts,Third Party Payments,REVENUE
Wiltshire,http://opendatacommunities.org/id/unitary-authority/wiltshire,08/01/2018,1902061407,1111.11,Andybus  and  Coach Ltd ,100132,SN16,Neighbourhood & Planning,Mainstream Primary,Transport Contracts,Third Party Payments,REVENUE
Wiltshire,http://opendatacommunities.org/id/unitary-authority/wiltshire,08/01/2018,1902061407,17253.34,Andybus  and  Coach Ltd ,100132,SN16,Neighbourhood & Planning,Mainstream Secondary,Transport Contracts,Third Party Payments,REVENUE
Wiltshire,http://opendatacommunities.org/id/unitary-authority/wiltshire,08/01/2018,1902061408,3087.34,Andybus  and  Coach Ltd ,100132,SN16,Neighbourhood & Planning,Mainstream Secondary,Transport Contracts,Third Party Payments,REVENUE
Wiltshire,http://opendatacommunities.org/id/unitary-authority/wiltshire,08/01/2018,1902061409,2972.22,Andybus  and  Coach Ltd ,100132,SN16,Neighbourhood & Planning,Mainstream Secondary,Transport Contracts,Third Party Payments,REVENUE
Wiltshire,http://opendatacommunities.org/id/unitary-authority/wiltshire,08/01/2018,1902061410,3174.11,Andybus  and  Coach Ltd ,100132,SN16,Neighbourhood & Planning,Mainstream Secondary,Transport Contracts,Third Party Payments,REVENUE
Wiltshire,http://opendatacommunities.org/id/unitary-authority/wiltshire,08/01/2018,1902061411,3215.23,Andybus  and  Coach Ltd ,100132,SN16,Neighbourhood & Planning,Mainstream Secondary,Transport Contracts,Third Party Payments,REVENUE
Wiltshire,http://opendatacommunities.org/id/unitary-authority/wiltshire,23/01/2018,5107165072,291.67,ANGEL HOTEL CHIPPENHAM ,110150,SN15,Children & Education,GovernorSupport,Premises Rental,Premises Related,REVENUE
Wiltshire,http://opendatacommunities.org/id/unitary-authority/wiltshire,05/01/2018,5107156817,1550,Anita Holford T/A Writing Services ,135962,NP25,Children & Education,Wilt Music Connct Hb,Consultants Fees,Supplies and Services,REVENUE
Wiltshire,http://opendatacommunities.org/id/unitary-authority/wiltshire,25/01/2018,5107165543,325.17,Antalis Limited ,122876,LE67,Resources,DesignPrintTrowbridg,Materials & Consumables (Non-Educational),Supplies and Services,REVENUE
Wiltshire,http://opendatacommunities.org/id/unitary-authority/wiltshire,10/01/2018,1902062610,3753.72,Aon Limited ,113554,LE1 ,Neighbourhood & Planning,Asset Management,Tenants� Contents Insurance,Premises Related,REVENUE
Wiltshire,http://opendatacommunities.org/id/unitary-authority/wiltshire,10/01/2018,1902062612,3006,Aon Limited ,113554,LE1 ,Neighbourhood & Planning,Asset Management,Tenants� Contents Insurance,Premises Related,REVENUE
Wiltshire,http://opendatacommunities.org/id/unitary-authority/wiltshire,10/01/2018,1902062623,3026.58,Aon Limited ,113554,LE1 ,Neighbourhood & Planning,Asset Management,Tenants� Contents Insurance,Premises Related,REVENUE
Wiltshire,http://opendatacommunities.org/id/unitary-authority/wiltshire,11/01/2018,5107159728,390,APA Consultants Ltd ,113361,SN10,Neighbourhood & Planning,Development Control,Consultants Fees,Supplies and Services,REVENUE
Wiltshire,http://opendatacommunities.org/id/unitary-authority/wiltshire,29/01/2018,5107164850,980,APA Consultants Ltd ,113361,SN10,Neighbourhood & Planning,Development Control,Consultants Fees,Supplies and Services,REVENUE
Wiltshire,http://opendatacommunities.org/id/unitary-authority/wiltshire,24/01/2018,5107165514,347.48,Arco Limited ,130295,HU1 ,Neighbourhood & Planning,DLO,Equipment Purchase,Supplies and Services,REVENUE
Wiltshire,http://opendatacommunities.org/id/unitary-authority/wiltshire,29/01/2018,5107164919,1000,Arthur Williams Consulting Ltd ,129581,BA14,Wiltshire Council,Wiltshire Council,Consultants Fees,Supplies and Services,CAPITAL
Wiltshire,http://opendatacommunities.org/id/unitary-authority/wiltshire,29/01/2018,5107164923,400,Arthur Williams Consulting Ltd ,129581,BA14,Wiltshire Council,Wiltshire Council,Consultants Fees,Supplies and Services,CAPITAL
Wiltshire,http://opendatacommunities.org/id/unitary-authority/wiltshire,12/01/2018,5107162696,415,ASCEL ,113625,DE3 ,Community Services,Libraries,Conference Fees,Supplies and Services,REVENUE
Wiltshire,http://opendatacommunities.org/id/unitary-authority/wiltshire,29/01/2018,1902075470,270,Asda Pharmacy ,137247,SN12,Community Services,(8)ShardCareOth(PCT),Public Health Commissioning,Supplies and Services,REVENUE
Wiltshire,http://opendatacommunities.org/id/unitary-authority/wiltshire,11/01/2018,5107162019,10997.2,Ashfords Solicitors ,113641,EX1 ,Wiltshire Council,Wiltshire Council,Legal Fees,Supplies and Services,CAPITAL
Wiltshire,http://opendatacommunities.org/id/unitary-authority/wiltshire,08/01/2018,5107157172,600,Ashton Farms Ltd ,131129,BA14,Neighbourhood & Planning,Winter Maintenance,Equipment Hire,Supplies and Services,REVENUE
Wiltshire,http://opendatacommunities.org/id/unitary-authority/wiltshire,15/01/2018,1902061143,577.61,Askews & Holts Library Services Ltd ,101034,PR1 ,Community Services,Erlestoke Library,Books & Publications,Supplies and Services,REVENUE
Wiltshire,http://opendatacommunities.org/id/unitary-authority/wiltshire,15/01/2018,1902061143,1265.26,Askews & Holts Library Services Ltd ,101034,PR1 ,Community Services,Libraries,Books & Publications,Supplies and Services,REVENUE
Wiltshire,http://opendatacommunities.org/id/unitary-authority/wiltshire,08/01/2018,1902061431,443.34,Aspire Taxis ,101274,SP2 ,Neighbourhood & Planning,SEN Primary,Transport Contracts,Third Party Payments,REVENUE
Wiltshire,http://opendatacommunities.org/id/unitary-authority/wiltshire,08/01/2018,1902061431,886.66,Aspire Taxis ,101274,SP2 ,Neighbourhood & Planning,Mainstream Primary,Transport Contracts,Third Party Payments,REVENUE
Wiltshire,http://opendatacommunities.org/id/unitary-authority/wiltshire,08/01/2018,1902061432,693,Aspire Taxis ,101274,SP2 ,Neighbourhood & Planning,Mainstream Secondary,Transport Contracts,Third Party Payments,REVENUE
Wiltshire,http://opendatacommunities.org/id/unitary-authority/wiltshire,08/01/2018,1902061433,1250,Aspire Taxis ,101274,SP2 ,Neighbourhood & Planning,SEN 16+ Secondary,Transport Contracts,Third Party Payments,REVENUE
Wiltshire,http://opendatacommunities.org/id/unitary-authority/wiltshire,08/01/2018,1902061434,689.4,Aspire Taxis ,101274,SP2 ,Neighbourhood & Planning,SEN 16+ Secondary,Transport Contracts,Third Party Payments,REVENUE
Wiltshire,http://opendatacommunities.org/id/unitary-authority/wiltshire,08/01/2018,1902061436,561.68,Aspire Taxis ,101274,SP2 ,Neighbourhood & Planning,Mainstream Primary,Transport Contracts,Third Party Payments,REVENUE
Wiltshire,http://opendatacommunities.org/id/unitary-authority/wiltshire,08/01/2018,1902061438,490,Aspire Taxis ,101274,SP2 ,Neighbourhood & Planning,Mainstream Primary,Transport Contracts,Third Party Payments,REVENUE
Wiltshire,http://opendatacommunities.org/id/unitary-authority/wiltshire,08/01/2018,1902061439,403.2,Aspire Taxis ,101274,SP2 ,Neighbourhood & Planning,Mainstream Secondary,Transport Contracts,Third Party Payments,REVENUE
Wiltshire,http://opendatacommunities.org/id/unitary-authority/wiltshire,08/01/2018,1902061439,604.8,Aspire Taxis ,101274,SP2 ,Neighbourhood & Planning,Mainstream Primary,Transport Contracts,Third Party Payments,REVENUE
Wiltshire,http://opendatacommunities.org/id/unitary-authority/wiltshire,08/01/2018,1902061440,686,Aspire Taxis ,101274,SP2 ,Neighbourhood & Planning,Mainstream Primary,Transport Contracts,Third Party Payments,REVENUE
Wiltshire,http://opendatacommunities.org/id/unitary-authority/wiltshire,08/01/2018,1902061441,1310,Aspire Taxis ,101274,SP2 ,Neighbourhood & Planning,SEN Primary,Transport Contracts,Third Party Payments,REVENUE
Wiltshire,http://opendatacommunities.org/id/unitary-authority/wiltshire,08/01/2018,1902061442,1120,Aspire Taxis ,101274,SP2 ,Neighbourhood & Planning,Mainstream Primary,Transport Contracts,Third Party Payments,REVENUE
Wiltshire,http://opendatacommunities.org/id/unitary-authority/wiltshire,08/01/2018,1902061443,756,Aspire Taxis ,101274,SP2 ,Neighbourhood & Planning,Mainstream Secondary,Transport Contracts,Third Party Payments,REVENUE
Wiltshire,http://opendatacommunities.org/id/unitary-authority/wiltshire,08/01/2018,1902061444,980,Aspire Taxis ,101274,SP2 ,Neighbourhood & Planning,Mainstream Primary,Transport Contracts,Third Party Payments,REVENUE
Wiltshire,http://opendatacommunities.org/id/unitary-authority/wiltshire,08/01/2018,1902061445,1105,Aspire Taxis ,101274,SP2 ,Neighbourhood & Planning,Mainstream Secondary,Transport Contracts,Third Party Payments,REVENUE
Wiltshire,http://opendatacommunities.org/id/unitary-authority/wiltshire,08/01/2018,1902061446,504,Aspire Taxis ,101274,SP2 ,Neighbourhood & Planning,Mainstream Primary,Transport Contracts,Third Party Payments,REVENUE
Wiltshire,http://opendatacommunities.org/id/unitary-authority/wiltshire,08/01/2018,1902061447,1120,Aspire Taxis ,101274,SP2 ,Neighbourhood & Planning,SEN Secondary,Transport Contracts,Third Party Payments,REVENUE
Wiltshire,http://opendatacommunities.org/id/unitary-authority/wiltshire,08/01/2018,1902061448,570,Aspire Taxis ,101274,SP2 ,Neighbourhood & Planning,Mainstream Secondary,Transport Contracts,Third Party Payments,REVENUE
Wiltshire,http://opendatacommunities.org/id/unitary-authority/wiltshire,08/01/2018,1902061449,880,Aspire Taxis ,101274,SP2 ,Neighbourhood & Planning,SEN 16+ Secondary,Transport Contracts,Third Party Payments,REVENUE
Wiltshire,http://opendatacommunities.org/id/unitary-authority/wiltshire,16/01/2018,5107163471,11775.29,Assoc Of Electoral Administrators ,113675,SR2 ,Resources,Parliamentary Electi,Consultants Fees,Supplies and Services,REVENUE
Wiltshire,http://opendatacommunities.org/id/unitary-authority/wiltshire,16/01/2018,5107163473,8687.98,Assoc Of Electoral Administrators ,113675,SR2 ,Resources,Parliamentary Electi,Consultants Fees,Supplies and Services,REVENUE
Wiltshire,http://opendatacommunities.org/id/unitary-authority/wiltshire,25/01/2018,5107165614,300,Association of Transport Co-Ordinat Officers (ATCO),113698,DY1 ,Neighbourhood & Planning,Pass Transport Group,Professional Subscriptions/Memberships,Employee Related,REVENUE
Wiltshire,http://opendatacommunities.org/id/unitary-authority/wiltshire,02/01/2018,1902059879,649,Aster ,135687,SN10,Wiltshire Council,Wiltshire Council,Professional Fees,Supplies and Services,CAPITAL
Wiltshire,http://opendatacommunities.org/id/unitary-authority/wiltshire,05/01/2018,1902059910,1307.5,Aster ,135687,SN10,Wiltshire Council,Wiltshire Council,Professional Fees,Supplies and Services,CAPITAL
Wiltshire,http://opendatacommunities.org/id/unitary-authority/wiltshire,05/01/2018,1902059911,385.01,Aster ,135687,SN10,Wiltshire Council,Wiltshire Council,Professional Fees,Supplies and Services,CAPITAL
Wiltshire,http://opendatacommunities.org/id/unitary-authority/wiltshire,05/01/2018,1902059912,412.64,Aster ,135687,SN10,Wiltshire Council,Wiltshire Council,Professional Fees,Supplies and Services,CAPITAL
Wiltshire,http://opendatacommunities.org/id/unitary-authority/wiltshire,03/01/2018,1902059934,737,Aster ,135687,SN10,Wiltshire Council,Wiltshire Council,Professional Fees,Supplies and Services,CAPITAL
Wiltshire,http://opendatacommunities.org/id/unitary-authority/wiltshire,24/01/2018,1902073911,551,Aster ,135687,SN10,Wiltshire Council,Wiltshire Council,Professional Fees,Supplies and Services,CAPITAL
Wiltshire,http://opendatacommunities.org/id/unitary-authority/wiltshire,19/01/2018,1902072129,15799,Aster Group Ltd  Ridgeway Care. ,113069,SN10,Community Services,WMS - Telecare & Res,Client Aids and Adaptations,Third Party Payments,REVENUE
Wiltshire,http://opendatacommunities.org/id/unitary-authority/wiltshire,19/01/2018,5107164282,400,Astill Tree Care Limited ,146406,BA9 ,Neighbourhood & Planning,Development Control,Consultants Fees,Supplies and Services,REVENUE
Wiltshire,http://opendatacommunities.org/id/unitary-authority/wiltshire,05/01/2018,5107156818,4021.75,Astor-bannerman Medical Limited ,113694,GL54,Children & Education,CanonsHouse,Medical Support & Supplies,Third Party Payments,REVENUE
Wiltshire,http://opendatacommunities.org/id/unitary-authority/wiltshire,05/01/2018,5107157140,12992.7,Astor-bannerman Medical Limited ,113694,GL54,Children & Education,CanonsHouse,Medical Support & Supplies,Third Party Payments,REVENUE
Wiltshire,http://opendatacommunities.org/id/unitary-authority/wiltshire,10/01/2018,5107159613,2153.7,Atkins Ltd ,110197,KT18,Wiltshire Council,Wiltshire Council,Consultants Fees,Supplies and Services,CAPITAL
Wiltshire,http://opendatacommunities.org/id/unitary-authority/wiltshire,10/01/2018,5107159616,3982.5,Atkins Ltd ,110197,KT18,Wiltshire Council,Wiltshire Council,Consultants Fees,Supplies and Services,CAPITAL
Wiltshire,http://opendatacommunities.org/id/unitary-authority/wiltshire,10/01/2018,5107159617,1821.63,Atkins Ltd ,110197,KT18,Wiltshire Council,Wiltshire Council,Consultants Fees,Supplies and Services,CAPITAL
Wiltshire,http://opendatacommunities.org/id/unitary-authority/wiltshire,16/01/2018,5107163730,6691.75,Atkins Ltd ,110197,KT18,Wiltshire Council,Wiltshire Council,Professional Fees,Supplies and Services,CAPITAL
Wiltshire,http://opendatacommunities.org/id/unitary-authority/wiltshire,16/01/2018,5107163731,4364.19,Atkins Ltd ,110197,KT18,Wiltshire Council,Wiltshire Council,Professional Fees,Supplies and Services,CAPITAL
Wiltshire,http://opendatacommunities.org/id/unitary-authority/wiltshire,19/01/2018,5107164299,2205,Atkins Ltd ,110197,KT18,Wiltshire Council,Wiltshire Council,Consultants Fees,Supplies and Services,CAPITAL
Wiltshire,http://opendatacommunities.org/id/unitary-authority/wiltshire,23/01/2018,5107164840,11760,Atkins Ltd ,110197,KT18,Wiltshire Council,Wiltshire Council,Consultants Fees,Supplies and Services,CAPITAL
Wiltshire,http://opendatacommunities.org/id/unitary-authority/wiltshire,24/01/2018,5107165490,910.82,Atkins Ltd ,110197,KT18,Wiltshire Council,Wiltshire Council,Consultants Fees,Supplies and Services,CAPITAL
Wiltshire,http://opendatacommunities.org/id/unitary-authority/wiltshire,24/01/2018,5107165492,1076.85,Atkins Ltd ,110197,KT18,Wiltshire Council,Wiltshire Council,Consultants Fees,Supplies and Services,CAPITAL
Wiltshire,http://opendatacommunities.org/id/unitary-authority/wiltshire,24/01/2018,5107165493,2205,Atkins Ltd ,110197,KT18,Wiltshire Council,Wiltshire Council,Consultants Fees,Supplies and Services,CAPITAL
Wiltshire,http://opendatacommunities.org/id/unitary-authority/wiltshire,24/01/2018,5107165495,1991.25,Atkins Ltd ,110197,KT18,Wiltshire Council,Wiltshire Council,Consultants Fees,Supplies and Services,CAPITAL
Wiltshire,http://opendatacommunities.org/id/unitary-authority/wiltshire,25/01/2018,5107165647,17658.99,Atkins Ltd ,110197,KT18,Wiltshire Council,Wiltshire Council,Consultants Fees,Supplies and Services,CAPITAL
Wiltshire,http://opendatacommunities.org/id/unitary-authority/wiltshire,25/01/2018,5107165648,1078.2,Atkins Ltd ,110197,KT18,Wiltshire Council,Wiltshire Council,Consultants Fees,Supplies and Services,CAPITAL
Wiltshire,http://opendatacommunities.org/id/unitary-authority/wiltshire,25/01/2018,5107165649,11760,Atkins Ltd ,110197,KT18,Wiltshire Council,Wiltshire Council,Consultants Fees,Supplies and Services,CAPITAL
Wiltshire,http://opendatacommunities.org/id/unitary-authority/wiltshire,26/01/2018,5107165878,4410,Atkins Ltd ,110197,KT18,Wiltshire Council,Wiltshire Council,Consultants Fees,Supplies and Services,CAPITAL
Wiltshire,http://opendatacommunities.org/id/unitary-authority/wiltshire,02/01/2018,5107154398,9722.85,Ats Euromaster Ltd ,113709,B6 5,Neighbourhood & Planning,Fleet,Vehicle Parts,Transport Related,REVENUE
Wiltshire,http://opendatacommunities.org/id/unitary-authority/wiltshire,25/01/2018,5107163995,5842.79,Ats Euromaster Ltd ,113709,B6 5,Neighbourhood & Planning,Fleet,Vehicle Parts,Transport Related,REVENUE
Wiltshire,http://opendatacommunities.org/id/unitary-authority/wiltshire,18/01/2018,1902071936,119702,Audience Systems Ltd ,125200,BA13,Wiltshire Council,Wiltshire Council,Buildings Minor Alterations,Premises Related,CAPITAL
Wiltshire,http://opendatacommunities.org/id/unitary-authority/wiltshire,23/01/2018,1902073190,702.2,Audley Care White Horse ,121958,SN8 ,Community Services,HTLAH - Neighbourhoo,Interim Support Plan - HTLAH,Third Party Payments,REVENUE
Wiltshire,http://opendatacommunities.org/id/unitary-authority/wiltshire,26/01/2018,1902073196,379.05,Audley Care White Horse ,121958,SN8 ,Community Services,HTLAH - Neighbourhoo,Interim Support Plan - HTLAH,Third Party Payments,REVENUE
Wiltshire,http://opendatacommunities.org/id/unitary-authority/wiltshire,26/01/2018,1902073198,605.2,Audley Care White Horse ,121958,SN8 ,Community Services,HTLAH - Neighbourhoo,Interim Support Plan - HTLAH,Third Party Payments,REVENUE
Wiltshire,http://opendatacommunities.org/id/unitary-authority/wiltshire,26/01/2018,1902073200,1853.3,Audley Care White Horse ,121958,SN8 ,Community Services,HTLAH - Neighbourhoo,Interim Support Plan - HTLAH,Third Party Payments,REVENUE
Wiltshire,http://opendatacommunities.org/id/unitary-authority/wiltshire,26/01/2018,1902073202,2991.3,Audley Care White Horse ,121958,SN8 ,Community Services,HTLAH - Neighbourhoo,Interim Support Plan - HTLAH,Third Party Payments,REVENUE
Wiltshire,http://opendatacommunities.org/id/unitary-authority/wiltshire,26/01/2018,1902073210,480.5,Audley Care White Horse ,121958,SN8 ,Community Services,HTLAH - Neighbourhoo,Interim Support Plan - HTLAH,Third Party Payments,REVENUE
Wiltshire,http://opendatacommunities.org/id/unitary-authority/wiltshire,26/01/2018,1902073214,315.4,Audley Care White Horse ,121958,SN8 ,Community Services,HTLAH - Neighbourhoo,Interim Support Plan - HTLAH,Third Party Payments,REVENUE
Wiltshire,http://opendatacommunities.org/id/unitary-authority/wiltshire,26/01/2018,1902073216,1718.5,Audley Care White Horse ,121958,SN8 ,Community Services,HTLAH - Neighbourhoo,Interim Support Plan - HTLAH,Third Party Payments,REVENUE
Wiltshire,http://opendatacommunities.org/id/unitary-authority/wiltshire,23/01/2018,1902073222,415,Audley Care White Horse ,121958,SN8 ,Community Services,HTLAH - Neighbourhoo,Interim Support Plan - HTLAH,Third Party Payments,REVENUE
Wiltshire,http://opendatacommunities.org/id/unitary-authority/wiltshire,23/01/2018,1902073224,425.7,Audley Care White Horse ,121958,SN8 ,Community Services,HTLAH - Neighbourhoo,Interim Support Plan - HTLAH,Third Party Payments,REVENUE
Wiltshire,http://opendatacommunities.org/id/unitary-authority/wiltshire,23/01/2018,1902073226,425.5,Audley Care White Horse ,121958,SN8 ,Community Services,HTLAH - Neighbourhoo,Interim Support Plan - HTLAH,Third Party Payments,REVENUE
Wiltshire,http://opendatacommunities.org/id/unitary-authority/wiltshire,23/01/2018,1902073228,315.6,Audley Care White Horse ,121958,SN8 ,Community Services,HTLAH - Neighbourhoo,Interim Support Plan - HTLAH,Third Party Payments,REVENUE
Wiltshire,http://opendatacommunities.org/id/unitary-authority/wiltshire,23/01/2018,1902073230,1405.7,Audley Care White Horse ,121958,SN8 ,Community Services,HTLAH - Neighbourhoo,Interim Support Plan - HTLAH,Third Party Payments,REVENUE
Wiltshire,http://opendatacommunities.org/id/unitary-authority/wiltshire,23/01/2018,1902073232,1496.4,Audley Care White Horse ,121958,SN8 ,Community Services,HTLAH - Neighbourhoo,Interim Support Plan - HTLAH,Third Party Payments,REVENUE
Wiltshire,http://opendatacommunities.org/id/unitary-authority/wiltshire,23/01/2018,1902073234,434.3,Audley Care White Horse ,121958,SN8 ,Community Services,HTLAH - Neighbourhoo,Interim Support Plan - HTLAH,Third Party Payments,REVENUE
Wiltshire,http://opendatacommunities.org/id/unitary-authority/wiltshire,23/01/2018,1902073264,407.8,Audley Care White Horse ,121958,SN8 ,Community Services,HTLAH - Neighbourhoo,Interim Support Plan - HTLAH,Third Party Payments,REVENUE
Wiltshire,http://opendatacommunities.org/id/unitary-authority/wiltshire,04/01/2018,5107154539,321.21,Automotive Leasing Ltd ,113729,SL1 ,Neighbourhood & Planning,Fleet,Commercial Leased Vehicles,Transport Related,REVENUE
Wiltshire,http://opendatacommunities.org/id/unitary-authority/wiltshire,10/01/2018,5107161945,11198.88,Autonomy Care Limited ,126128,SN10,Children & Education,0-25 extnl disabty p,Other Social & Welfare Costs,Third Party Payments,REVENUE
Wiltshire,http://opendatacommunities.org/id/unitary-authority/wiltshire,10/01/2018,5107161949,4727.62,Autonomy Care Limited ,126128,SN10,Children & Education,0-25 extnl disabty p,Other Social & Welfare Costs,Third Party Payments,REVENUE
Wiltshire,http://opendatacommunities.org/id/unitary-authority/wiltshire,10/01/2018,5107161954,7903.98,Autonomy Care Limited ,126128,SN10,Children & Education,0-25 extnl disabty p,Other Social & Welfare Costs,Third Party Payments,REVENUE
Wiltshire,http://opendatacommunities.org/id/unitary-authority/wiltshire,10/01/2018,5107161955,585.48,Autonomy Care Limited ,126128,SN10,Children & Education,0-25 extnl disabty p,Other Social & Welfare Costs,Third Party Payments,REVENUE
Wiltshire,http://opendatacommunities.org/id/unitary-authority/wiltshire,10/01/2018,5107161957,1377.6,Autonomy Care Limited ,126128,SN10,Children & Education,0-25 extnl disabty p,Other Social & Welfare Costs,Third Party Payments,REVENUE
Wiltshire,http://opendatacommunities.org/id/unitary-authority/wiltshire,18/01/2018,5107164206,735.9,Autonomy Care Limited ,126128,SN10,Children & Education,0-25 extnl disabty p,Other Social & Welfare Costs,Third Party Payments,REVENUE
Wiltshire,http://opendatacommunities.org/id/unitary-authority/wiltshire,18/01/2018,5107164207,1233,Autonomy Care Limited ,126128,SN10,Children & Education,0-25 extnl disabty p,Other Social & Welfare Costs,Third Party Payments,REVENUE
Wiltshire,http://opendatacommunities.org/id/unitary-authority/wiltshire,04/01/2018,5107156733,15777.14,Autonomy Plus Limited ,146109,SN10,Children & Education,0-25 extnl disabty p,Childrens Agency Placement,Third Party Payments,REVENUE
Wiltshire,http://opendatacommunities.org/id/unitary-authority/wiltshire,04/01/2018,5107156734,15777.14,Autonomy Plus Limited ,146109,SN10,Children & Education,0-25 extnl disabty p,Childrens Agency Placement,Third Party Payments,REVENUE
Wiltshire,http://opendatacommunities.org/id/unitary-authority/wiltshire,04/01/2018,5107156737,15777.14,Autonomy Plus Limited ,146109,SN10,Children & Education,0-25 extnl disabty p,Childrens Agency Placement,Third Party Payments,REVENUE
Wiltshire,http://opendatacommunities.org/id/unitary-authority/wiltshire,15/01/2018,1902063571,960,Avenue Surgery ,110214,BA12,Neighbourhood & Planning,Smoking-Mgt & Commss,Public Health Commissioning,Supplies and Services,REVENUE
Wiltshire,http://opendatacommunities.org/id/unitary-authority/wiltshire,23/01/2018,1902072962,1440,Avenue Surgery ,110214,BA12,Neighbourhood & Planning,NHS Health Checks,Public Health Commissioning,Supplies and Services,REVENUE
Wiltshire,http://opendatacommunities.org/id/unitary-authority/wiltshire,23/01/2018,1902073007,1880,Avenue Surgery ,110214,BA12,Neighbourhood & Planning,Sexual Health Commun,Public Health Commissioning,Supplies and Services,REVENUE
Wiltshire,http://opendatacommunities.org/id/unitary-authority/wiltshire,23/01/2018,1902073054,2451.6,Avenue Surgery ,110214,BA12,Neighbourhood & Planning,Sexual Health Commun,Public Health Commissioning,Supplies and Services,REVENUE
Wiltshire,http://opendatacommunities.org/id/unitary-authority/wiltshire,15/01/2018,1902063573,310,Avon Valley Practice ,131697,SN9 ,Neighbourhood & Planning,Smoking-Mgt & Commss,Public Health Commissioning,Supplies and Services,REVENUE
Wiltshire,http://opendatacommunities.org/id/unitary-authority/wiltshire,23/01/2018,1902073009,1334,Avon Valley Practice ,131697,SN9 ,Neighbourhood & Planning,Sexual Health Commun,Public Health Commissioning,Supplies and Services,REVENUE
Wiltshire,http://opendatacommunities.org/id/unitary-authority/wiltshire,23/01/2018,1902073056,612.9,Avon Valley Practice ,131697,SN9 ,Neighbourhood & Planning,Sexual Health Commun,Public Health Commissioning,Supplies and Services,REVENUE
Wiltshire,http://opendatacommunities.org/id/unitary-authority/wiltshire,26/01/2018,5107165802,1622,Axial Systems Ltd ,101147,SL6 ,Resources,ICT Corporate Networ,IT Hardware Maintenance,Supplies and Services,REVENUE
Wiltshire,http://opendatacommunities.org/id/unitary-authority/wiltshire,25/01/2018,1902073932,890,Axis Signs Limited ,140699,SN3 ,Resources,Corsham Campus,Property Maintenance,Premises Related,REVENUE
Wiltshire,http://opendatacommunities.org/id/unitary-authority/wiltshire,24/01/2018,5107165377,1430,Axis Signs Limited ,140699,SN3 ,Resources,News & Information,Publications / periodicals,Supplies and Services,REVENUE
Wiltshire,http://opendatacommunities.org/id/unitary-authority/wiltshire,05/01/2018,5107156780,1100,B & M Windows  and  Doors Ltd ,101694,SP2 ,Neighbourhood & Planning,DLO,Equipment Purchase,Supplies and Services,REVENUE
Wiltshire,http://opendatacommunities.org/id/unitary-authority/wiltshire,05/01/2018,5107156782,1320,B & M Windows  and  Doors Ltd ,101694,SP2 ,Neighbourhood & Planning,DLO,Equipment Purchase,Supplies and Services,REVENUE
Wiltshire,http://opendatacommunities.org/id/unitary-authority/wiltshire,05/01/2018,5107156789,1330,B & M Windows  and  Doors Ltd ,101694,SP2 ,Neighbourhood & Planning,DLO,Equipment Purchase,Supplies and Services,REVENUE
Wiltshire,http://opendatacommunities.org/id/unitary-authority/wiltshire,08/01/2018,5107157159,269.9,B & M Windows  and  Doors Ltd ,101694,SP2 ,Neighbourhood & Planning,DLO,Equipment Purchase,Supplies and Services,REVENUE
Wiltshire,http://opendatacommunities.org/id/unitary-authority/wiltshire,23/01/2018,5107164779,762.61,Bailey Employment Services Ltd t/a Bailey Care Services,100204,SN12,Community Services,Chippenham Respite,Agency Staff,Employee Related,REVENUE
Wiltshire,http://opendatacommunities.org/id/unitary-authority/wiltshire,23/01/2018,1902072953,920,Barcroft Practice ,110254,SP4 ,Neighbourhood & Planning,NHS Health Checks,Public Health Commissioning,Supplies and Services,REVENUE
Wiltshire,http://opendatacommunities.org/id/unitary-authority/wiltshire,23/01/2018,1902072998,1478,Barcroft Practice ,110254,SP4 ,Neighbourhood & Planning,Sexual Health Commun,Public Health Commissioning,Supplies and Services,REVENUE
Wiltshire,http://opendatacommunities.org/id/unitary-authority/wiltshire,23/01/2018,1902073045,1225.8,Barcroft Practice ,110254,SP4 ,Neighbourhood & Planning,Sexual Health Commun,Public Health Commissioning,Supplies and Services,REVENUE
Wiltshire,http://opendatacommunities.org/id/unitary-authority/wiltshire,10/01/2018,1902062695,3387.6,Barnes Coaches Ltd ,100190,SN3 ,Neighbourhood & Planning,Mainstream Secondary,Transport Contracts,Third Party Payments,REVENUE
Wiltshire,http://opendatacommunities.org/id/unitary-authority/wiltshire,10/01/2018,1902062698,18207,Barnes Coaches Ltd ,100190,SN3 ,Neighbourhood & Planning,Mainstream Secondary,Transport Contracts,Third Party Payments,REVENUE
Wiltshire,http://opendatacommunities.org/id/unitary-authority/wiltshire,10/01/2018,1902062700,3736.2,Barnes Coaches Ltd ,100190,SN3 ,Neighbourhood & Planning,Mainstream Secondary,Transport Contracts,Third Party Payments,REVENUE
Wiltshire,http://opendatacommunities.org/id/unitary-authority/wiltshire,10/01/2018,1902062701,3083.25,Barnes Coaches Ltd ,100190,SN3 ,Neighbourhood & Planning,Mainstream Primary,Transport Contracts,Third Party Payments,REVENUE
Wiltshire,http://opendatacommunities.org/id/unitary-authority/wiltshire,10/01/2018,5107159651,368.18,BARRETTINE ENVIRONMENTAL HEALTH ,110260,BS30,Health & Wellbeing,CommunityPestControl,Materials & Consumables (Non-Educational),Supplies and Services,REVENUE
Wiltshire,http://opendatacommunities.org/id/unitary-authority/wiltshire,18/01/2018,5107162697,288,BARRETTINE ENVIRONMENTAL HEALTH ,110260,BS30,Health & Wellbeing,CommunityPestControl,Materials & Consumables (Non-Educational),Supplies and Services,REVENUE
Wiltshire,http://opendatacommunities.org/id/unitary-authority/wiltshire,10/01/2018,5107159545,340,Barton Hyett Associates Ltd ,143843,WR10,Wiltshire Council,Wiltshire Council,Consultants Fees,Supplies and Services,CAPITAL
Wiltshire,http://opendatacommunities.org/id/unitary-authority/wiltshire,10/01/2018,5107159546,343,Barton Hyett Associates Ltd ,143843,WR10,Wiltshire Council,Wiltshire Council,Consultants Fees,Supplies and Services,CAPITAL
Wiltshire,http://opendatacommunities.org/id/unitary-authority/wiltshire,23/01/2018,5107164870,7300,BATH CATS  and  DOGS HOME ,110266,BA2 ,Neighbourhood & Planning,Technical (Env),Stray Dog & Other Animal Kennelling,Supplies and Services,REVENUE
Wiltshire,http://opendatacommunities.org/id/unitary-authority/wiltshire,08/01/2018,5107157583,545.83,Bath Mind ,134100,BA1 ,Community Services,MH Commissioned Cont,Grants Expenditure,Supplies and Services,REVENUE
Wiltshire,http://opendatacommunities.org/id/unitary-authority/wiltshire,22/01/2018,1902072526,294,Beeline Coaches ,101673,BA12,Neighbourhood & Planning,Concessionary Fares,Concessionary fares,Third Party Payments,REVENUE
Wiltshire,http://opendatacommunities.org/id/unitary-authority/wiltshire,30/01/2018,1902075557,2890.21,Beeline Coaches ,101673,BA12,Neighbourhood & Planning,Mainstream Secondary,Transport Contracts,Third Party Payments,REVENUE
Wiltshire,http://opendatacommunities.org/id/unitary-authority/wiltshire,30/01/2018,1902075558,434.57,Beeline Coaches ,101673,BA12,Neighbourhood & Planning,Mainstream 16+ Sec,Transport Contracts,Third Party Payments,REVENUE
Wiltshire,http://opendatacommunities.org/id/unitary-authority/wiltshire,30/01/2018,1902075558,1862.1,Beeline Coaches ,101673,BA12,Neighbourhood & Planning,Mainstream Secondary,Transport Contracts,Third Party Payments,REVENUE
Wiltshire,http://opendatacommunities.org/id/unitary-authority/wiltshire,30/01/2018,1902075559,1011.75,Beeline Coaches ,101673,BA12,Neighbourhood & Planning,Mainstream 16+ Sec,Transport Contracts,Third Party Payments,REVENUE
Wiltshire,http://opendatacommunities.org/id/unitary-authority/wiltshire,30/01/2018,1902075559,1618.86,Beeline Coaches ,101673,BA12,Neighbourhood & Planning,Mainstream Secondary,Transport Contracts,Third Party Payments,REVENUE
Wiltshire,http://opendatacommunities.org/id/unitary-authority/wiltshire,30/01/2018,1902075560,434.19,Beeline Coaches ,101673,BA12,Neighbourhood & Planning,Public Transport,Transport Contracts,Third Party Payments,REVENUE
Wiltshire,http://opendatacommunities.org/id/unitary-authority/wiltshire,30/01/2018,1902075561,2423.82,Beeline Coaches ,101673,BA12,Neighbourhood & Planning,Mainstream Primary,Transport Contracts,Third Party Payments,REVENUE
Wiltshire,http://opendatacommunities.org/id/unitary-authority/wiltshire,30/01/2018,1902075561,3635.73,Beeline Coaches ,101673,BA12,Neighbourhood & Planning,Public Transport,Transport Contracts,Third Party Payments,REVENUE
Wiltshire,http://opendatacommunities.org/id/unitary-authority/wiltshire,30/01/2018,1902075561,18178.64,Beeline Coaches ,101673,BA12,Neighbourhood & Planning,Mainstream Secondary,Transport Contracts,Third Party Payments,REVENUE
Wiltshire,http://opendatacommunities.org/id/unitary-authority/wiltshire,30/01/2018,1902075562,332.88,Beeline Coaches ,101673,BA12,Neighbourhood & Planning,Mainstream 16+ Sec,Transport Contracts,Third Party Payments,REVENUE
Wiltshire,http://opendatacommunities.org/id/unitary-authority/wiltshire,30/01/2018,1902075562,2663.04,Beeline Coaches ,101673,BA12,Neighbourhood & Planning,Mainstream Secondary,Transport Contracts,Third Party Payments,REVENUE
Wiltshire,http://opendatacommunities.org/id/unitary-authority/wiltshire,30/01/2018,1902075563,2729.76,Beeline Coaches ,101673,BA12,Neighbourhood & Planning,Mainstream 16+ FE,Transport Contracts,Third Party Payments,REVENUE
Wiltshire,http://opendatacommunities.org/id/unitary-authority/wiltshire,30/01/2018,1902075564,390,Beeline Coaches ,101673,BA12,Neighbourhood & Planning,Public Transport,Transport Contracts,Third Party Payments,REVENUE
Wiltshire,http://opendatacommunities.org/id/unitary-authority/wiltshire,30/01/2018,1902075565,390,Beeline Coaches ,101673,BA12,Neighbourhood & Planning,Public Transport,Transport Contracts,Third Party Payments,REVENUE
Wiltshire,http://opendatacommunities.org/id/unitary-authority/wiltshire,30/01/2018,1902075566,847.08,Beeline Coaches ,101673,BA12,Neighbourhood & Planning,Mainstream Primary,Transport Contracts,Third Party Payments,REVENUE
Wiltshire,http://opendatacommunities.org/id/unitary-authority/wiltshire,30/01/2018,1902075566,2541.25,Beeline Coaches ,101673,BA12,Neighbourhood & Planning,Mainstream Secondary,Transport Contracts,Third Party Payments,REVENUE
Wiltshire,http://opendatacommunities.org/id/unitary-authority/wiltshire,30/01/2018,1902075567,402.35,Beeline Coaches ,101673,BA12,Neighbourhood & Planning,Mainstream 16+ Sec,Transport Contracts,Third Party Payments,REVENUE
Wiltshire,http://opendatacommunities.org/id/unitary-authority/wiltshire,30/01/2018,1902075567,804.68,Beeline Coaches ,101673,BA12,Neighbourhood & Planning,SEN 16+ Secondary,Transport Contracts,Third Party Payments,REVENUE
Wiltshire,http://opendatacommunities.org/id/unitary-authority/wiltshire,30/01/2018,1902075567,3017.55,Beeline Coaches ,101673,BA12,Neighbourhood & Planning,Mainstream 16+ FE,Transport Contracts,Third Party Payments,REVENUE
Wiltshire,http://opendatacommunities.org/id/unitary-authority/wiltshire,30/01/2018,1902075568,1875.5,Beeline Coaches ,101673,BA12,Neighbourhood & Planning,Mainstream 16+ FE,Transport Contracts,Third Party Payments,REVENUE
Wiltshire,http://opendatacommunities.org/id/unitary-authority/wiltshire,10/01/2018,5107159612,30866.85,Bentley Systems International Ltd ,135473,DUBL,Resources,Applications SuppLOB,ICT Apps - Bentley (Exor),Supplies and Services,REVENUE
Wiltshire,http://opendatacommunities.org/id/unitary-authority/wiltshire,23/01/2018,1902073186,368.81,Berkeley Home Health Ltd ,110473,GU9 ,Community Services,HTLAH - Neighbourhoo,Interim Support Plan - HTLAH,Third Party Payments,REVENUE
Wiltshire,http://opendatacommunities.org/id/unitary-authority/wiltshire,29/01/2018,1902065237,322.21,Bertram Library Services ,101283,NR7 ,Community Services,Libraries,Books & Publications,Supplies and Services,REVENUE
Wiltshire,http://opendatacommunities.org/id/unitary-authority/wiltshire,15/01/2018,1902060301,525,Beversbrook Medical Centre ,110756,SN11,Wiltshire Council,Wiltshire Council,Area Board Grants,Supplies and Services,CAPITAL
Wiltshire,http://opendatacommunities.org/id/unitary-authority/wiltshire,18/01/2018,1902063598,310,Beversbrook Medical Centre ,110756,SN11,Neighbourhood & Planning,Smoking-Mgt & Commss,Public Health Commissioning,Supplies and Services,REVENUE
Wiltshire,http://opendatacommunities.org/id/unitary-authority/wiltshire,23/01/2018,1902072994,792,Beversbrook Medical Centre ,110756,SN11,Neighbourhood & Planning,NHS Health Checks,Public Health Commissioning,Supplies and Services,REVENUE
Wiltshire,http://opendatacommunities.org/id/unitary-authority/wiltshire,23/01/2018,1902073039,898,Beversbrook Medical Centre ,110756,SN11,Neighbourhood & Planning,Sexual Health Commun,Public Health Commissioning,Supplies and Services,REVENUE
Wiltshire,http://opendatacommunities.org/id/unitary-authority/wiltshire,23/01/2018,1902073083,735.48,Beversbrook Medical Centre ,110756,SN11,Neighbourhood & Planning,Sexual Health Commun,Public Health Commissioning,Supplies and Services,REVENUE
Wiltshire,http://opendatacommunities.org/id/unitary-authority/wiltshire,24/01/2018,1902073687,509.29,BGS Healthcare Ltd ,140588,SN11,Community Services,HTLAH - Neighbourhoo,Interim Support Plan - HTLAH,Third Party Payments,REVENUE
Wiltshire,http://opendatacommunities.org/id/unitary-authority/wiltshire,24/01/2018,1902073688,820.8,BGS Healthcare Ltd ,140588,SN11,Community Services,HTLAH - Neighbourhoo,Interim Support Plan - HTLAH,Third Party Payments,REVENUE
Wiltshire,http://opendatacommunities.org/id/unitary-authority/wiltshire,24/01/2018,1902073692,530.96,BGS Healthcare Ltd ,140588,SN11,Community Services,HTLAH - Neighbourhoo,Interim Support Plan - HTLAH,Third Party Payments,REVENUE
Wiltshire,http://opendatacommunities.org/id/unitary-authority/wiltshire,24/01/2018,1902073693,347.2,BGS Healthcare Ltd ,140588,SN11,Community Services,HTLAH - Neighbourhoo,Interim Support Plan - HTLAH,Third Party Payments,REVENUE
Wiltshire,http://opendatacommunities.org/id/unitary-authority/wiltshire,24/01/2018,1902073695,598.96,BGS Healthcare Ltd ,140588,SN11,Community Services,HTLAH - Neighbourhoo,Interim Support Plan - HTLAH,Third Party Payments,REVENUE
Wiltshire,http://opendatacommunities.org/id/unitary-authority/wiltshire,24/01/2018,1902073696,420.17,BGS Healthcare Ltd ,140588,SN11,Community Services,HTLAH - Neighbourhoo,Interim Support Plan - HTLAH,Third Party Payments,REVENUE
Wiltshire,http://opendatacommunities.org/id/unitary-authority/wiltshire,24/01/2018,1902073697,1077.08,BGS Healthcare Ltd ,140588,SN11,Community Services,HTLAH - Neighbourhoo,Interim Support Plan - HTLAH,Third Party Payments,REVENUE
Wiltshire,http://opendatacommunities.org/id/unitary-authority/wiltshire,15/01/2018,5107156446,600,Bibliotheca Ltd ,125688,SK8 ,Resources,Infrastructure,IT Hardware Maintenance,Supplies and Services,REVENUE
Wiltshire,http://opendatacommunities.org/id/unitary-authority/wiltshire,10/01/2018,1902062496,1013.86,Billington Bioenergy ,136801,L3 1,Neighbourhood & Planning,Biomass Prog Schools,Other Fuels,Premises Related,REVENUE
Wiltshire,http://opendatacommunities.org/id/unitary-authority/wiltshire,10/01/2018,1902062497,816.63,Billington Bioenergy ,136801,L3 1,Neighbourhood & Planning,Biomass Prog Schools,Other Fuels,Premises Related,REVENUE
Wiltshire,http://opendatacommunities.org/id/unitary-authority/wiltshire,10/01/2018,1902062498,652,Billington Bioenergy ,136801,L3 1,Resources,Unoccupied Sites,Other Fuels,Premises Related,REVENUE
Wiltshire,http://opendatacommunities.org/id/unitary-authority/wiltshire,23/01/2018,1902072652,815,Billington Bioenergy ,136801,L3 1,Neighbourhood & Planning,Biomass Prog Schools,Other Fuels,Premises Related,REVENUE
Wiltshire,http://opendatacommunities.org/id/unitary-authority/wiltshire,23/01/2018,1902072654,818.26,Billington Bioenergy ,136801,L3 1,Neighbourhood & Planning,Biomass Prog Schools,Other Fuels,Premises Related,REVENUE
Wiltshire,http://opendatacommunities.org/id/unitary-authority/wiltshire,30/01/2018,1902072656,1365.94,Billington Bioenergy ,136801,L3 1,Resources,Corsham Campus,Other Fuels,Premises Related,REVENUE
Wiltshire,http://opendatacommunities.org/id/unitary-authority/wiltshire,30/01/2018,1902072657,1127.96,Billington Bioenergy ,136801,L3 1,Resources,Unoccupied Sites,Other Fuels,Premises Related,REVENUE
Wiltshire,http://opendatacommunities.org/id/unitary-authority/wiltshire,30/01/2018,1902072660,1251.84,Billington Bioenergy ,136801,L3 1,Neighbourhood & Planning,Biomass Prog Schools,Other Fuels,Premises Related,REVENUE
Wiltshire,http://opendatacommunities.org/id/unitary-authority/wiltshire,26/01/2018,1902073915,1145.89,Billington Bioenergy ,136801,L3 1,Neighbourhood & Planning,Biomass Prog Schools,Other Fuels,Premises Related,REVENUE
Wiltshire,http://opendatacommunities.org/id/unitary-authority/wiltshire,26/01/2018,1902073916,696.01,Billington Bioenergy ,136801,L3 1,Neighbourhood & Planning,Biomass Prog Schools,Other Fuels,Premises Related,REVENUE
Wiltshire,http://opendatacommunities.org/id/unitary-authority/wiltshire,29/01/2018,1902075488,351,Bishopdown Pharmacy ,126614,SP1 ,Community Services,(8)ShardCareOth(PCT),Public Health Commissioning,Supplies and Services,REVENUE
Wiltshire,http://opendatacommunities.org/id/unitary-authority/wiltshire,02/01/2018,1902059899,270,Blue 9 Security Limited ,144177,SP1 ,Resources,FM Libraries,Premises Security Costs,Premises Related,REVENUE
Wiltshire,http://opendatacommunities.org/id/unitary-authority/wiltshire,02/01/2018,1902059899,307.5,Blue 9 Security Limited ,144177,SP1 ,Resources,Bourne Hill,Premises Security Costs,Premises Related,REVENUE
Wiltshire,http://opendatacommunities.org/id/unitary-authority/wiltshire,02/01/2018,1902059899,311,Blue 9 Security Limited ,144177,SP1 ,Children & Education,Aspire House,Premises Security Costs,Premises Related,REVENUE
Wiltshire,http://opendatacommunities.org/id/unitary-authority/wiltshire,02/01/2018,1902059899,386.67,Blue 9 Security Limited ,144177,SP1 ,Resources,Market Sales,Premises Security Costs,Premises Related,REVENUE
Wiltshire,http://opendatacommunities.org/id/unitary-authority/wiltshire,02/01/2018,1902059899,1268.5,Blue 9 Security Limited ,144177,SP1 ,Resources,County Hall Complex,Premises Security Costs,Premises Related,REVENUE
Wiltshire,http://opendatacommunities.org/id/unitary-authority/wiltshire,02/01/2018,1902059899,3126.55,Blue 9 Security Limited ,144177,SP1 ,Resources,Unoccupied Sites,Premises Security Costs,Premises Related,REVENUE
Wiltshire,http://opendatacommunities.org/id/unitary-authority/wiltshire,02/01/2018,1902059899,5254,Blue 9 Security Limited ,144177,SP1 ,Resources,FM Highway Depots,Premises Security Costs,Premises Related,REVENUE
Wiltshire,http://opendatacommunities.org/id/unitary-authority/wiltshire,30/01/2018,1902065260,270,Blue 9 Security Limited ,144177,SP1 ,Resources,FM Libraries,Premises Security Costs,Premises Related,REVENUE
Wiltshire,http://opendatacommunities.org/id/unitary-authority/wiltshire,30/01/2018,1902065260,307.5,Blue 9 Security Limited ,144177,SP1 ,Resources,Bourne Hill,Premises Security Costs,Premises Related,REVENUE
Wiltshire,http://opendatacommunities.org/id/unitary-authority/wiltshire,30/01/2018,1902065260,311,Blue 9 Security Limited ,144177,SP1 ,Children & Education,Aspire House,Premises Security Costs,Premises Related,REVENUE
Wiltshire,http://opendatacommunities.org/id/unitary-authority/wiltshire,30/01/2018,1902065260,386.67,Blue 9 Security Limited ,144177,SP1 ,Resources,Market Sales,Premises Security Costs,Premises Related,REVENUE
Wiltshire,http://opendatacommunities.org/id/unitary-authority/wiltshire,30/01/2018,1902065260,1273.5,Blue 9 Security Limited ,144177,SP1 ,Resources,County Hall Complex,Premises Security Costs,Premises Related,REVENUE
Wiltshire,http://opendatacommunities.org/id/unitary-authority/wiltshire,30/01/2018,1902065260,3390.92,Blue 9 Security Limited ,144177,SP1 ,Resources,Unoccupied Sites,Premises Security Costs,Premises Related,REVENUE
Wiltshire,http://opendatacommunities.org/id/unitary-authority/wiltshire,30/01/2018,1902065260,5254,Blue 9 Security Limited ,144177,SP1 ,Resources,FM Highway Depots,Premises Security Costs,Premises Related,REVENUE
Wiltshire,http://opendatacommunities.org/id/unitary-authority/wiltshire,03/01/2018,5107156410,2156.5,Blue Sky Fostering ,137768,HA1 ,Children & Education,Ext Placement & IFA,Childrens Agency Placement,Third Party Payments,REVENUE
Wiltshire,http://opendatacommunities.org/id/unitary-authority/wiltshire,03/01/2018,5107156411,2156.5,Blue Sky Fostering ,137768,HA1 ,Children & Education,Ext Placement & IFA,Childrens Agency Placement,Third Party Payments,REVENUE
Wiltshire,http://opendatacommunities.org/id/unitary-authority/wiltshire,03/01/2018,5107156412,1639.31,Blue Sky Fostering ,137768,HA1 ,Children & Education,Ext Placement & IFA,Childrens Agency Placement,Third Party Payments,REVENUE
Wiltshire,http://opendatacommunities.org/id/unitary-authority/wiltshire,12/01/2018,5107162742,3412.17,Blue Sky Fostering ,137768,HA1 ,Children & Education,Ext Placement & IFA,Childrens Agency Placement,Third Party Payments,REVENUE
Wiltshire,http://opendatacommunities.org/id/unitary-authority/wiltshire,12/01/2018,5107162744,3412.17,Blue Sky Fostering ,137768,HA1 ,Children & Education,Ext Placement & IFA,Childrens Agency Placement,Third Party Payments,REVENUE
Wiltshire,http://opendatacommunities.org/id/unitary-authority/wiltshire,12/01/2018,5107162745,6510,Blue Sky Fostering ,137768,HA1 ,Children & Education,Ext Placement & IFA,Childrens Agency Placement,Third Party Payments,REVENUE
Wiltshire,http://opendatacommunities.org/id/unitary-authority/wiltshire,12/01/2018,5107162746,3339.01,Blue Sky Fostering ,137768,HA1 ,Children & Education,Ext Placement & IFA,Childrens Agency Placement,Third Party Payments,REVENUE
Wiltshire,http://opendatacommunities.org/id/unitary-authority/wiltshire,12/01/2018,5107162747,3339.01,Blue Sky Fostering ,137768,HA1 ,Children & Education,Ext Placement & IFA,Childrens Agency Placement,Third Party Payments,REVENUE
Wiltshire,http://opendatacommunities.org/id/unitary-authority/wiltshire,12/01/2018,5107162789,5314.33,Blue Sky Fostering ,137768,HA1 ,Children & Education,Ext Placement & IFA,Childrens Agency Placement,Third Party Payments,REVENUE
Wiltshire,http://opendatacommunities.org/id/unitary-authority/wiltshire,12/01/2018,5107162806,3463.32,Blue Sky Fostering ,137768,HA1 ,Children & Education,Ext Placement & IFA,Childrens Agency Placement,Third Party Payments,REVENUE
Wiltshire,http://opendatacommunities.org/id/unitary-authority/wiltshire,12/01/2018,5107162807,6510,Blue Sky Fostering ,137768,HA1 ,Children & Education,Ext Placement & IFA,Childrens Agency Placement,Third Party Payments,REVENUE
Wiltshire,http://opendatacommunities.org/id/unitary-authority/wiltshire,12/01/2018,5107162826,6510,Blue Sky Fostering ,137768,HA1 ,Children & Education,Ext Placement & IFA,Childrens Agency Placement,Third Party Payments,REVENUE
Wiltshire,http://opendatacommunities.org/id/unitary-authority/wiltshire,12/01/2018,5107162863,8525,Blue Sky Fostering ,137768,HA1 ,Children & Education,Ext Placement & IFA,Childrens Agency Placement,Third Party Payments,REVENUE
Wiltshire,http://opendatacommunities.org/id/unitary-authority/wiltshire,12/01/2018,5107162868,3518.5,Blue Sky Fostering ,137768,HA1 ,Children & Education,Ext Placement & IFA,Childrens Agency Placement,Third Party Payments,REVENUE
Wiltshire,http://opendatacommunities.org/id/unitary-authority/wiltshire,12/01/2018,5107162869,3518.5,Blue Sky Fostering ,137768,HA1 ,Children & Education,Ext Placement & IFA,Childrens Agency Placement,Third Party Payments,REVENUE
Wiltshire,http://opendatacommunities.org/id/unitary-authority/wiltshire,12/01/2018,5107162870,2989.33,Blue Sky Fostering ,137768,HA1 ,Children & Education,Ext Placement & IFA,Childrens Agency Placement,Third Party Payments,REVENUE
Wiltshire,http://opendatacommunities.org/id/unitary-authority/wiltshire,15/01/2018,5107163257,479,Blue Sky Fostering ,137768,HA1 ,Children & Education,SpecialistProvision,Educational Fees,Supplies and Services,REVENUE
Wiltshire,http://opendatacommunities.org/id/unitary-authority/wiltshire,25/01/2018,5107165698,3321.96,Blue Sky Fostering ,137768,HA1 ,Children & Education,Ext Placement & IFA,Childrens Agency Placement,Third Party Payments,REVENUE
Wiltshire,http://opendatacommunities.org/id/unitary-authority/wiltshire,25/01/2018,5107165699,3321.96,Blue Sky Fostering ,137768,HA1 ,Children & Education,Ext Placement & IFA,Childrens Agency Placement,Third Party Payments,REVENUE
Wiltshire,http://opendatacommunities.org/id/unitary-authority/wiltshire,09/01/2018,5107157144,833.15,Booker Ltd ,131196,SP2 ,Neighbourhood & Planning,City Hall,Vending costs,Supplies and Services,REVENUE
Wiltshire,http://opendatacommunities.org/id/unitary-authority/wiltshire,29/01/2018,1902075472,297,Boots ,110321,SN9 ,Community Services,(8)ShardCareOth(PCT),Public Health Commissioning,Supplies and Services,REVENUE
Wiltshire,http://opendatacommunities.org/id/unitary-authority/wiltshire,29/01/2018,1902075462,432,Boots (Alliance) ,126581,SP4 ,Community Services,(8)ShardCareOth(PCT),Public Health Commissioning,Supplies and Services,REVENUE
Wiltshire,http://opendatacommunities.org/id/unitary-authority/wiltshire,03/01/2018,1902060242,252,Boots Pharmacy ,137245,BA14,Resources,SharedServHRHealSafe,Medical Support & Supplies,Third Party Payments,REVENUE
Wiltshire,http://opendatacommunities.org/id/unitary-authority/wiltshire,11/01/2018,1902062751,314.68,Boots Pharmacy ,137245,BA14,Neighbourhood & Planning,Sexual Health Commun,Public Health Commissioning,Supplies and Services,REVENUE
Wiltshire,http://opendatacommunities.org/id/unitary-authority/wiltshire,29/01/2018,1902075456,459,Boots Pharmacy ,137245,BA14,Community Services,(8)ShardCareOth(PCT),Public Health Commissioning,Supplies and Services,REVENUE
Wiltshire,http://opendatacommunities.org/id/unitary-authority/wiltshire,29/01/2018,1902075448,432,Boots Pharmacy ,137246,BA14,Community Services,(8)ShardCareOth(PCT),Public Health Commissioning,Supplies and Services,REVENUE
Wiltshire,http://opendatacommunities.org/id/unitary-authority/wiltshire,29/01/2018,1902075465,540,Boots the  Chemist ,110322,SN12,Community Services,(8)ShardCareOth(PCT),Public Health Commissioning,Supplies and Services,REVENUE
Wiltshire,http://opendatacommunities.org/id/unitary-authority/wiltshire,29/01/2018,1902075452,405,Boots the Chemist ,110323,BA12,Community Services,(8)ShardCareOth(PCT),Public Health Commissioning,Supplies and Services,REVENUE
Wiltshire,http://opendatacommunities.org/id/unitary-authority/wiltshire,29/01/2018,1902075450,594,Boots The Chemist ,110324,BA14,Community Services,(8)ShardCareOth(PCT),Public Health Commissioning,Supplies and Services,REVENUE
Wiltshire,http://opendatacommunities.org/id/unitary-authority/wiltshire,11/01/2018,1902062747,611.37,Boots the Chemist ,110325,SN15,Neighbourhood & Planning,Sexual Health Commun,Public Health Commissioning,Supplies and Services,REVENUE
Wiltshire,http://opendatacommunities.org/id/unitary-authority/wiltshire,29/01/2018,1902075423,475.64,Boots the Chemist ,110325,SN15,Community Services,(8)SharedCareCoordtr,Public Health Commissioning,Supplies and Services,REVENUE
Wiltshire,http://opendatacommunities.org/id/unitary-authority/wiltshire,29/01/2018,1902075447,648,Boots the Chemist ,110325,SN15,Community Services,(8)ShardCareOth(PCT),Public Health Commissioning,Supplies and Services,REVENUE
Wiltshire,http://opendatacommunities.org/id/unitary-authority/wiltshire,29/01/2018,1902075471,1350,Boots The Chemist ,110328,SP1 ,Community Services,(8)ShardCareOth(PCT),Public Health Commissioning,Supplies and Services,REVENUE
Wiltshire,http://opendatacommunities.org/id/unitary-authority/wiltshire,29/01/2018,1902075475,702,Boots the Chemist ,137600,BA13,Community Services,(8)ShardCareOth(PCT),Public Health Commissioning,Supplies and Services,REVENUE
Wiltshire,http://opendatacommunities.org/id/unitary-authority/wiltshire,29/01/2018,1902075489,594,Boots the Chemist (6260) ,110326,SN16,Community Services,(8)ShardCareOth(PCT),Public Health Commissioning,Supplies and Services,REVENUE
Wiltshire,http://opendatacommunities.org/id/unitary-authority/wiltshire,04/01/2018,1902060837,20179.52,Bournemouth Churches Housing Assoc ,143919,BH1 ,Neighbourhood & Planning,Hsg Strat & Enabling,Other Contracts,Third Party Payments,REVENUE
Wiltshire,http://opendatacommunities.org/id/unitary-authority/wiltshire,23/01/2018,1902072967,3640,Bradford on Avon and Melksham Health Partnership,112692,BA15,Neighbourhood & Planning,NHS Health Checks,Public Health Commissioning,Supplies and Services,REVENUE
Wiltshire,http://opendatacommunities.org/id/unitary-authority/wiltshire,23/01/2018,1902073012,2900,Bradford on Avon and Melksham Health Partnership,112692,BA15,Neighbourhood & Planning,Sexual Health Commun,Public Health Commissioning,Supplies and Services,REVENUE
Wiltshire,http://opendatacommunities.org/id/unitary-authority/wiltshire,23/01/2018,1902073059,1164.51,Bradford on Avon and Melksham Health Partnership,112692,BA15,Neighbourhood & Planning,Sexual Health Commun,Public Health Commissioning,Supplies and Services,REVENUE
Wiltshire,http://opendatacommunities.org/id/unitary-authority/wiltshire,16/01/2018,1902065141,440,Bradford-on-Avon Taxis ,133238,BA14,Neighbourhood & Planning,Mainstream Primary,Transport Contracts,Third Party Payments,REVENUE
Wiltshire,http://opendatacommunities.org/id/unitary-authority/wiltshire,04/01/2018,1902060926,405.2,Bradies Taxis ,100249,SN15,Community Services,MH OP N&E Locality,Transport Contracts,Third Party Payments,REVENUE
Wiltshire,http://opendatacommunities.org/id/unitary-authority/wiltshire,04/01/2018,1902060926,801.96,Bradies Taxis ,100249,SN15,Neighbourhood & Planning,Mainstream Primary,Transport Contracts,Third Party Payments,REVENUE
Wiltshire,http://opendatacommunities.org/id/unitary-authority/wiltshire,04/01/2018,1902060926,801.96,Bradies Taxis ,100249,SN15,Neighbourhood & Planning,Mainstream 16+ FE,Transport Contracts,Third Party Payments,REVENUE
Wiltshire,http://opendatacommunities.org/id/unitary-authority/wiltshire,04/01/2018,1902060926,810.4,Bradies Taxis ,100249,SN15,Community Services,N&E Localiity 18+ C,Transport Contracts,Third Party Payments,REVENUE
Wiltshire,http://opendatacommunities.org/id/unitary-authority/wiltshire,04/01/2018,1902060926,3999.15,Bradies Taxis ,100249,SN15,Neighbourhood & Planning,Public Transport,Transport Contracts,Third Party Payments,REVENUE
Wiltshire,http://opendatacommunities.org/id/unitary-authority/wiltshire,04/01/2018,1902060927,400,Bradies Taxis ,100249,SN15,Neighbourhood & Planning,Public Transport,Transport Contracts,Third Party Payments,REVENUE
Wiltshire,http://opendatacommunities.org/id/unitary-authority/wiltshire,04/01/2018,1902060930,1478.39,Bradies Taxis ,100249,SN15,Community Services,MH OP South Locality,Transport Contracts,Third Party Payments,REVENUE
Wiltshire,http://opendatacommunities.org/id/unitary-authority/wiltshire,04/01/2018,1902060931,400,Bradies Taxis ,100249,SN15,Neighbourhood & Planning,Public Transport,Transport Contracts,Third Party Payments,REVENUE
Wiltshire,http://opendatacommunities.org/id/unitary-authority/wiltshire,04/01/2018,1902060936,534.8,Bradies Taxis ,100249,SN15,Neighbourhood & Planning,Mainstream Secondary,Transport Contracts,Third Party Payments,REVENUE
Wiltshire,http://opendatacommunities.org/id/unitary-authority/wiltshire,04/01/2018,1902060936,534.8,Bradies Taxis ,100249,SN15,Neighbourhood & Planning,SEN Secondary,Transport Contracts,Third Party Payments,REVENUE
Wiltshire,http://opendatacommunities.org/id/unitary-authority/wiltshire,04/01/2018,1902060937,1099,Bradies Taxis ,100249,SN15,Neighbourhood & Planning,Mainstream Secondary,Transport Contracts,Third Party Payments,REVENUE
Wiltshire,http://opendatacommunities.org/id/unitary-authority/wiltshire,04/01/2018,1902060938,541.24,Bradies Taxis ,100249,SN15,Neighbourhood & Planning,Mainstream Primary,Transport Contracts,Third Party Payments,REVENUE
Wiltshire,http://opendatacommunities.org/id/unitary-authority/wiltshire,04/01/2018,1902060939,459.16,Bradies Taxis ,100249,SN15,Neighbourhood & Planning,Mainstream Secondary,Transport Contracts,Third Party Payments,REVENUE
Wiltshire,http://opendatacommunities.org/id/unitary-authority/wiltshire,04/01/2018,1902060940,442,Bradies Taxis ,100249,SN15,Neighbourhood & Planning,Mainstream Secondary,Transport Contracts,Third Party Payments,REVENUE
Wiltshire,http://opendatacommunities.org/id/unitary-authority/wiltshire,22/01/2018,1902072532,7380.84,Bradies Taxis - Concession Scheme O ,114143,SN15,Neighbourhood & Planning,Concessionary Fares,Concessionary fares,Third Party Payments,REVENUE
Wiltshire,http://opendatacommunities.org/id/unitary-authority/wiltshire,22/01/2018,5107164465,2020.59,Bradsons ,142248,BA9 ,Neighbourhood & Planning,Highways Asset Mgt,Materials,Supplies and Services,REVENUE
Wiltshire,http://opendatacommunities.org/id/unitary-authority/wiltshire,11/01/2018,1902063139,365.27,Brakes Bros Ltd ,110344,TN24,Neighbourhood & Planning,Marlborough LC Cafe,Catering,Supplies and Services,REVENUE
Wiltshire,http://opendatacommunities.org/id/unitary-authority/wiltshire,23/01/2018,1902072614,418.85,Brakes Bros Ltd ,110344,TN24,Neighbourhood & Planning,Marlborough LC Cafe,Catering,Supplies and Services,REVENUE
Wiltshire,http://opendatacommunities.org/id/unitary-authority/wiltshire,23/01/2018,1902073109,274.06,Brakes Bros Ltd ,110344,TN24,Neighbourhood & Planning,Marlborough LC Cafe,Catering,Supplies and Services,REVENUE
Wiltshire,http://opendatacommunities.org/id/unitary-authority/wiltshire,12/01/2018,5107163020,421.82,Brakes Bros Ltd ,110344,TN24,Children & Education,Oxenwood,Catering,Supplies and Services,REVENUE
Wiltshire,http://opendatacommunities.org/id/unitary-authority/wiltshire,23/01/2018,1902073247,459.62,Bramley Homecare ,140933,SP7 ,Community Services,HTLAH - Neighbourhoo,Interim Support Plan - HTLAH,Third Party Payments,REVENUE
Wiltshire,http://opendatacommunities.org/id/unitary-authority/wiltshire,30/01/2018,1902073248,427.03,Bramley Homecare ,140933,SP7 ,Community Services,HTLAH - Neighbourhoo,Interim Support Plan - HTLAH,Third Party Payments,REVENUE
Wiltshire,http://opendatacommunities.org/id/unitary-authority/wiltshire,30/01/2018,1902073249,755.29,Bramley Homecare ,140933,SP7 ,Community Services,HTLAH - Neighbourhoo,Interim Support Plan - HTLAH,Third Party Payments,REVENUE
Wiltshire,http://opendatacommunities.org/id/unitary-authority/wiltshire,11/01/2018,5107162022,18821.43,Branas ISAF Personal Development Ce ,134485,LL21,Children & Education,Ext Placement & IFA,Childrens Agency Placement,Third Party Payments,REVENUE
Wiltshire,http://opendatacommunities.org/id/unitary-authority/wiltshire,19/01/2018,5107164229,19928.57,Branas ISAF Personal Development Ce ,134485,LL21,Children & Education,Ext Placement & IFA,Childrens Agency Placement,Third Party Payments,REVENUE
Wiltshire,http://opendatacommunities.org/id/unitary-authority/wiltshire,15/01/2018,5107156489,267.2,Brandon Hire ,130758,SP2 ,Neighbourhood & Planning,DLO,Equipment Purchase,Supplies and Services,REVENUE
Wiltshire,http://opendatacommunities.org/id/unitary-authority/wiltshire,12/01/2018,1902063558,16100,Bray Valley Associates Ltd T/A Bluefields Consultants,125322,BH19,Community Services,ASC Transformation,Agency Staff,Employee Related,REVENUE
Wiltshire,http://opendatacommunities.org/id/unitary-authority/wiltshire,18/01/2018,5107164098,4710,Bredon School ,138231,GL20,Children & Education,IndepSpecialSchFees,Educational Fees,Supplies and Services,REVENUE
Wiltshire,http://opendatacommunities.org/id/unitary-authority/wiltshire,18/01/2018,5107164101,2853.86,Bredon School ,138231,GL20,Children & Education,IndepSpecialSchFees,Educational Fees,Supplies and Services,REVENUE
Wiltshire,http://opendatacommunities.org/id/unitary-authority/wiltshire,25/01/2018,5107165574,405.58,Brenntag UK Ltd ,100412,LS19,Neighbourhood & Planning,Springfield Leisr Cn,Chemicals,Premises Related,REVENUE
Wiltshire,http://opendatacommunities.org/id/unitary-authority/wiltshire,02/01/2018,5107154563,450,Brian White Transport ,140155,BH24,Wiltshire Council,Wiltshire Council,Premises Related Other Maintenance Costs,Premises Related,CAPITAL
Wiltshire,http://opendatacommunities.org/id/unitary-authority/wiltshire,12/01/2018,5107162790,681.39,Bridging the Gap ,145190,ME7 ,Children & Education,Ext Placement & IFA,Childrens Agency Placement,Third Party Payments,REVENUE
Wiltshire,http://opendatacommunities.org/id/unitary-authority/wiltshire,12/01/2018,5107162791,1438.49,Bridging the Gap ,145190,ME7 ,Children & Education,Ext Placement & IFA,Childrens Agency Placement,Third Party Payments,REVENUE
Wiltshire,http://opendatacommunities.org/id/unitary-authority/wiltshire,25/01/2018,5107165772,885,Bright Interactive Ltd ,126832,BN1 ,Resources,News & Information,Printing,Supplies and Services,REVENUE
Wiltshire,http://opendatacommunities.org/id/unitary-authority/wiltshire,09/01/2018,5107154523,896.63,Bristol Auto Electrics ,114191,BA13,Neighbourhood & Planning,Fleet,Vehicle 3rd Party Repairs,Transport Related,REVENUE
Wiltshire,http://opendatacommunities.org/id/unitary-authority/wiltshire,10/01/2018,5107154524,422.5,Bristol Auto Electrics ,114191,BA13,Neighbourhood & Planning,Fleet,Vehicle 3rd Party Repairs,Transport Related,REVENUE
Wiltshire,http://opendatacommunities.org/id/unitary-authority/wiltshire,10/01/2018,5107154526,567.11,Bristol Auto Electrics ,114191,BA13,Neighbourhood & Planning,Fleet,Vehicle 3rd Party Repairs,Transport Related,REVENUE
Wiltshire,http://opendatacommunities.org/id/unitary-authority/wiltshire,26/01/2018,5107162173,867.5,Bristol Auto Electrics ,114191,BA13,Neighbourhood & Planning,Fleet,Vehicle Parts,Transport Related,REVENUE
Wiltshire,http://opendatacommunities.org/id/unitary-authority/wiltshire,15/01/2018,5107163024,1279.29,Bristol Auto Electrics ,114191,BA13,Neighbourhood & Planning,Fleet,Vehicle 3rd Party Repairs,Transport Related,REVENUE
Wiltshire,http://opendatacommunities.org/id/unitary-authority/wiltshire,19/01/2018,5107163084,762.5,Bristol Auto Electrics ,114191,BA13,Neighbourhood & Planning,Fleet,Vehicle Parts,Transport Related,REVENUE
Wiltshire,http://opendatacommunities.org/id/unitary-authority/wiltshire,19/01/2018,5107163086,1002.21,Bristol Auto Electrics ,114191,BA13,Neighbourhood & Planning,Fleet,Vehicle Parts,Transport Related,REVENUE
Wiltshire,http://opendatacommunities.org/id/unitary-authority/wiltshire,26/01/2018,5107163884,867.5,Bristol Auto Electrics ,114191,BA13,Neighbourhood & Planning,Fleet,Vehicle 3rd Party Repairs,Transport Related,REVENUE
Wiltshire,http://opendatacommunities.org/id/unitary-authority/wiltshire,18/01/2018,5107164139,260,Bristol CC Finance Operations ,145411,BS3 ,Children & Education,SpecialistProvision,Educational Fees,Supplies and Services,REVENUE
Wiltshire,http://opendatacommunities.org/id/unitary-authority/wiltshire,17/01/2018,1902071164,481.99,Bristow & Sutor ,132631,B98 ,Resources,Revs&Bens-Revenues,Cash Collection / Bailiff's Fees,Supplies and Services,REVENUE
Wiltshire,http://opendatacommunities.org/id/unitary-authority/wiltshire,17/01/2018,1902071230,683.51,Bristow & Sutor ,132631,B98 ,Resources,Revs&Bens-Revenues,Cash Collection / Bailiff's Fees,Supplies and Services,REVENUE
Wiltshire,http://opendatacommunities.org/id/unitary-authority/wiltshire,24/01/2018,1902073746,390.95,Bristow & Sutor ,132631,B98 ,Resources,Revs&Bens-Revenues,Cash Collection / Bailiff's Fees,Supplies and Services,REVENUE
Wiltshire,http://opendatacommunities.org/id/unitary-authority/wiltshire,08/01/2018,1902062239,29200.8,British Telecom ,100310,DH98,Resources,Main xchg phon lines,Telephones - Landlines,Supplies and Services,REVENUE
Wiltshire,http://opendatacommunities.org/id/unitary-authority/wiltshire,18/01/2018,1902064946,12782.99,British Telecom ,100310,DH98,Resources,Main xchg phon lines,Telephones - Landlines,Supplies and Services,REVENUE
Wiltshire,http://opendatacommunities.org/id/unitary-authority/wiltshire,30/01/2018,1902071482,29200.8,British Telecom ,100310,DH98,Resources,Main xchg phon lines,Telephones - Landlines,Supplies and Services,REVENUE
Wiltshire,http://opendatacommunities.org/id/unitary-authority/wiltshire,29/01/2018,1902072598,153304.61,British Telecom ,100310,DH98,Resources,Main xchg phon lines,Telephones - Landlines,Supplies and Services,REVENUE
Wiltshire,http://opendatacommunities.org/id/unitary-authority/wiltshire,10/01/2018,5107156765,5160,Buckman Associates Ltd ,146150,TQ13,Neighbourhood & Planning,Swindon & Wilts LEP,Professional Fees,Supplies and Services,REVENUE
Wiltshire,http://opendatacommunities.org/id/unitary-authority/wiltshire,26/01/2018,1902074632,395,Business Forums International ,125773,PO37,Resources,HR Central Training,Staff Training - Service Specific,Employee Related,REVENUE
Wiltshire,http://opendatacommunities.org/id/unitary-authority/wiltshire,10/01/2018,1902062501,1104.75,Butler Fuels ,122063,FK5 ,Resources,FM Leisure Centres,Other Fuels,Premises Related,REVENUE
Wiltshire,http://opendatacommunities.org/id/unitary-authority/wiltshire,22/01/2018,5107164688,2020,"Buttons, John Edwards Care Homes ",133661,SN2 ,Children & Education,0-25 extnl disabty p,Other Social & Welfare Costs,Third Party Payments,REVENUE
Wiltshire,http://opendatacommunities.org/id/unitary-authority/wiltshire,22/01/2018,5107164689,5954.8,"Buttons, John Edwards Care Homes ",133661,SN2 ,Children & Education,0-25 extnl disabty p,Other Social & Welfare Costs,Third Party Payments,REVENUE
Wiltshire,http://opendatacommunities.org/id/unitary-authority/wiltshire,19/01/2018,5107164230,2918.69,By The Bridge North West Ltd ,136982,TN15,Children & Education,Ext Placement & IFA,Childrens Agency Placement,Third Party Payments,REVENUE
Wiltshire,http://opendatacommunities.org/id/unitary-authority/wiltshire,19/01/2018,5107164231,2704.71,By The Bridge North West Ltd ,136982,TN15,Children & Education,Ext Placement & IFA,Childrens Agency Placement,Third Party Payments,REVENUE
Wiltshire,http://opendatacommunities.org/id/unitary-authority/wiltshire,29/01/2018,5107167374,781.44,C C S Media ,114362,S40 ,Community Services,Emergency Duty Servc,Stationery,Supplies and Services,REVENUE
Wiltshire,http://opendatacommunities.org/id/unitary-authority/wiltshire,10/01/2018,5107159494,1900,CACI Ltd ,110172,RG12,Children & Education,Coordination,ICT - Support arrangements,Supplies and Services,REVENUE
Wiltshire,http://opendatacommunities.org/id/unitary-authority/wiltshire,02/01/2018,5107154584,1760,Caenhill Countryside Centre ,136331,SN10,Children & Education,SpecialistProvision,Educational Fees,Supplies and Services,REVENUE
Wiltshire,http://opendatacommunities.org/id/unitary-authority/wiltshire,16/01/2018,1902065162,891.67,Calne Taxis ,101502,SN11,Neighbourhood & Planning,Mainstream Primary,Transport Contracts,Third Party Payments,REVENUE
Wiltshire,http://opendatacommunities.org/id/unitary-authority/wiltshire,16/01/2018,1902065163,504,Calne Taxis ,101502,SN11,Neighbourhood & Planning,Mainstream Secondary,Transport Contracts,Third Party Payments,REVENUE
Wiltshire,http://opendatacommunities.org/id/unitary-authority/wiltshire,16/01/2018,1902065168,546,Calne Taxis ,101502,SN11,Neighbourhood & Planning,Mainstream Secondary,Transport Contracts,Third Party Payments,REVENUE
Wiltshire,http://opendatacommunities.org/id/unitary-authority/wiltshire,16/01/2018,1902065172,520,Calne Taxis ,101502,SN11,Neighbourhood & Planning,Mainstream Primary,Transport Contracts,Third Party Payments,REVENUE
Wiltshire,http://opendatacommunities.org/id/unitary-authority/wiltshire,05/01/2018,1902061288,3062.67,Calne Travel ,100267,SN11,Neighbourhood & Planning,Mainstream Secondary,Transport Contracts,Third Party Payments,REVENUE
Wiltshire,http://opendatacommunities.org/id/unitary-authority/wiltshire,05/01/2018,1902061289,439.02,Calne Travel ,100267,SN11,Neighbourhood & Planning,Mainstream Secondary,Transport Contracts,Third Party Payments,REVENUE
Wiltshire,http://opendatacommunities.org/id/unitary-authority/wiltshire,05/01/2018,1902061289,3731.61,Calne Travel ,100267,SN11,Neighbourhood & Planning,Mainstream 16+ FE,Transport Contracts,Third Party Payments,REVENUE
Wiltshire,http://opendatacommunities.org/id/unitary-authority/wiltshire,12/01/2018,5107162748,3458.98,Capstone Foster Care ,125793,TQ12,Children & Education,Ext Placement & IFA,Childrens Agency Placement,Third Party Payments,REVENUE
Wiltshire,http://opendatacommunities.org/id/unitary-authority/wiltshire,12/01/2018,5107162749,3458.98,Capstone Foster Care ,125793,TQ12,Children & Education,Ext Placement & IFA,Childrens Agency Placement,Third Party Payments,REVENUE
Wiltshire,http://opendatacommunities.org/id/unitary-authority/wiltshire,12/01/2018,5107162750,3337.46,Capstone Foster Care ,125793,TQ12,Children & Education,Ext Placement & IFA,Childrens Agency Placement,Third Party Payments,REVENUE
Wiltshire,http://opendatacommunities.org/id/unitary-authority/wiltshire,12/01/2018,5107162752,360,Capstone Foster Care ,125793,TQ12,Children & Education,Ext Placement & IFA,Childrens Agency Placement,Third Party Payments,REVENUE
Wiltshire,http://opendatacommunities.org/id/unitary-authority/wiltshire,12/01/2018,5107162754,3389.85,Capstone Foster Care ,125793,TQ12,Children & Education,Ext Placement & IFA,Childrens Agency Placement,Third Party Payments,REVENUE
Wiltshire,http://opendatacommunities.org/id/unitary-authority/wiltshire,12/01/2018,5107162755,3389.85,Capstone Foster Care ,125793,TQ12,Children & Education,Ext Placement & IFA,Childrens Agency Placement,Third Party Payments,REVENUE
Wiltshire,http://opendatacommunities.org/id/unitary-authority/wiltshire,12/01/2018,5107162756,4123,Capstone Foster Care ,125793,TQ12,Children & Education,Ext Placement & IFA,Childrens Agency Placement,Third Party Payments,REVENUE
Wiltshire,http://opendatacommunities.org/id/unitary-authority/wiltshire,12/01/2018,5107162792,3671.33,Capstone Foster Care ,125793,TQ12,Children & Education,Ext Placement & IFA,Childrens Agency Placement,Third Party Payments,REVENUE
Wiltshire,http://opendatacommunities.org/id/unitary-authority/wiltshire,12/01/2018,5107162814,3498.66,Capstone Foster Care ,125793,TQ12,Children & Education,Ext Placement & IFA,Childrens Agency Placement,Third Party Payments,REVENUE
Wiltshire,http://opendatacommunities.org/id/unitary-authority/wiltshire,12/01/2018,5107162815,3498.66,Capstone Foster Care ,125793,TQ12,Children & Education,Ext Placement & IFA,Childrens Agency Placement,Third Party Payments,REVENUE
Wiltshire,http://opendatacommunities.org/id/unitary-authority/wiltshire,12/01/2018,5107162817,3534,Capstone Foster Care ,125793,TQ12,Children & Education,Ext Placement & IFA,Childrens Agency Placement,Third Party Payments,REVENUE
Wiltshire,http://opendatacommunities.org/id/unitary-authority/wiltshire,12/01/2018,5107162819,323.9,Capstone Foster Care ,125793,TQ12,Children & Education,Ext Placement & IFA,Childrens Agency Placement,Third Party Payments,REVENUE
Wiltshire,http://opendatacommunities.org/id/unitary-authority/wiltshire,12/01/2018,5107162820,3671.33,Capstone Foster Care ,125793,TQ12,Children & Education,Ext Placement & IFA,Childrens Agency Placement,Third Party Payments,REVENUE
Wiltshire,http://opendatacommunities.org/id/unitary-authority/wiltshire,26/01/2018,1902073240,428.16,Care Matters (Wiltshire) Ltd ,126011,BA12,Community Services,HTLAH - Neighbourhoo,Interim Support Plan - HTLAH,Third Party Payments,REVENUE
Wiltshire,http://opendatacommunities.org/id/unitary-authority/wiltshire,23/01/2018,1902073244,426.16,Care Matters (Wiltshire) Ltd ,126011,BA12,Community Services,HTLAH - Neighbourhoo,Interim Support Plan - HTLAH,Third Party Payments,REVENUE
Wiltshire,http://opendatacommunities.org/id/unitary-authority/wiltshire,23/01/2018,1902073246,426.16,Care Matters (Wiltshire) Ltd ,126011,BA12,Community Services,HTLAH - Neighbourhoo,Interim Support Plan - HTLAH,Third Party Payments,REVENUE
Wiltshire,http://opendatacommunities.org/id/unitary-authority/wiltshire,25/01/2018,1902074406,254.38,Carewatch North West Wiltshire ,110465,BA14,Resources,AP Dom Care,Reasonable Adjustment,Employee Related,REVENUE
Wiltshire,http://opendatacommunities.org/id/unitary-authority/wiltshire,25/01/2018,5107165616,18750,Caring for Communities and People ,146411,GL50,Children & Education,C&F Services,Other Social & Welfare Costs,Third Party Payments,REVENUE
Wiltshire,http://opendatacommunities.org/id/unitary-authority/wiltshire,08/01/2018,1902061369,1350,Carpetwise Ltd ,110469,SP1 ,Children & Education,Supp & Safe South,Other Social & Welfare Costs,Third Party Payments,REVENUE
Wiltshire,http://opendatacommunities.org/id/unitary-authority/wiltshire,05/01/2018,5107157149,1200,Carter Brown The Expert Service ,133141,B60 ,Children & Education,HQ Social Care,Witness / Jurors' / Justice's Expenses,Supplies and Services,REVENUE
Wiltshire,http://opendatacommunities.org/id/unitary-authority/wiltshire,18/01/2018,1902059855,4696.27,Castle Water Ltd ,145216,PH10,Neighbourhood & Planning,Manor House Enterpri,Water,Premises Related,REVENUE
Wiltshire,http://opendatacommunities.org/id/unitary-authority/wiltshire,18/01/2018,1902059856,388.87,Castle Water Ltd ,145216,PH10,Resources,FM Leisure Centres,Water,Premises Related,REVENUE
Wiltshire,http://opendatacommunities.org/id/unitary-authority/wiltshire,17/01/2018,5107163808,406,Catleys Gas Centre ,100115,SN10,Resources,Primary Schools,Premises Related Other Maintenance Costs,Premises Related,REVENUE
Wiltshire,http://opendatacommunities.org/id/unitary-authority/wiltshire,17/01/2018,5107163015,585,CB Skip Hire ,110484,SP1 ,Neighbourhood & Planning,DLO,Equipment Purchase,Supplies and Services,REVENUE
Wiltshire,http://opendatacommunities.org/id/unitary-authority/wiltshire,30/01/2018,5107163343,1079.17,CCBT Ltd ,143343,W1H ,Resources,SharedServHRHealSafe,Professional Subscriptions/Memberships,Employee Related,REVENUE
Wiltshire,http://opendatacommunities.org/id/unitary-authority/wiltshire,15/01/2018,5107156746,338,Centre For Public Scrutiny Ltd ,114598,E1 8,Resources,MembersCosts,Conference Fees,Supplies and Services,REVENUE
Wiltshire,http://opendatacommunities.org/id/unitary-authority/wiltshire,02/01/2018,1902059908,762.08,CFH Total Document ,133330,BA3 ,Resources,Revs&Bens-Housng Ben,Postage,Supplies and Services,REVENUE
Wiltshire,http://opendatacommunities.org/id/unitary-authority/wiltshire,02/01/2018,1902059908,762.08,CFH Total Document ,133330,BA3 ,Resources,Revs&Bens-Revenues,Postage,Supplies and Services,REVENUE
Wiltshire,http://opendatacommunities.org/id/unitary-authority/wiltshire,05/01/2018,1902061142,744.21,CFH Total Document ,133330,BA3 ,Resources,Revs&Bens-Revenues,Postage,Supplies and Services,REVENUE
Wiltshire,http://opendatacommunities.org/id/unitary-authority/wiltshire,10/01/2018,1902062652,455.21,CFH Total Document ,133330,BA3 ,Resources,Revs&Bens-Revenues,Postage,Supplies and Services,REVENUE
Wiltshire,http://opendatacommunities.org/id/unitary-authority/wiltshire,17/01/2018,1902065246,530.72,CFH Total Document ,133330,BA3 ,Resources,Revs&Bens-Revenues,Postage,Supplies and Services,REVENUE
Wiltshire,http://opendatacommunities.org/id/unitary-authority/wiltshire,18/01/2018,1902072020,1870.44,CFH Total Document ,133330,BA3 ,Resources,Revs&Bens-Housng Ben,Postage,Supplies and Services,REVENUE
Wiltshire,http://opendatacommunities.org/id/unitary-authority/wiltshire,18/01/2018,1902072020,1870.44,CFH Total Document ,133330,BA3 ,Resources,Revs&Bens-Revenues,Postage,Supplies and Services,REVENUE
Wiltshire,http://opendatacommunities.org/id/unitary-authority/wiltshire,18/01/2018,1902072022,633.82,CFH Total Document ,133330,BA3 ,Resources,Revs&Bens-Revenues,Postage,Supplies and Services,REVENUE
Wiltshire,http://opendatacommunities.org/id/unitary-authority/wiltshire,18/01/2018,1902072022,633.83,CFH Total Document ,133330,BA3 ,Resources,Revs&Bens-Housng Ben,Postage,Supplies and Services,REVENUE
Wiltshire,http://opendatacommunities.org/id/unitary-authority/wiltshire,19/01/2018,1902072153,663.84,CFH Total Document ,133330,BA3 ,Resources,Revs&Bens-Revenues,Other Contracts,Third Party Payments,REVENUE
Wiltshire,http://opendatacommunities.org/id/unitary-authority/wiltshire,19/01/2018,1902072153,663.85,CFH Total Document ,133330,BA3 ,Resources,Revs&Bens-Housng Ben,Other Contracts,Third Party Payments,REVENUE
Wiltshire,http://opendatacommunities.org/id/unitary-authority/wiltshire,24/01/2018,1902072650,364.42,CFH Total Document ,133330,BA3 ,Resources,Revs&Bens-Revenues,Postage,Supplies and Services,REVENUE
Wiltshire,http://opendatacommunities.org/id/unitary-authority/wiltshire,30/01/2018,1902072653,601.01,CFH Total Document ,133330,BA3 ,Resources,Revs&Bens-Revenues,Postage,Supplies and Services,REVENUE
Wiltshire,http://opendatacommunities.org/id/unitary-authority/wiltshire,23/01/2018,1902072663,769.08,CFH Total Document ,133330,BA3 ,Resources,Revs&Bens-Housng Ben,Postage,Supplies and Services,REVENUE
Wiltshire,http://opendatacommunities.org/id/unitary-authority/wiltshire,12/01/2018,5107162693,2071,CGI IT UK Ltd ,136337,RG2 ,Resources,Central HR Mgt,ICT - Support arrangements,Supplies and Services,REVENUE
Wiltshire,http://opendatacommunities.org/id/unitary-authority/wiltshire,08/01/2018,5107157585,1484.98,Channel Fostercare Ltd ,136744,TA9 ,Children & Education,Ext Placement & IFA,Childrens Agency Placement,Third Party Payments,REVENUE
Wiltshire,http://opendatacommunities.org/id/unitary-authority/wiltshire,25/01/2018,5107165701,1484.98,Channel Fostercare Ltd ,136744,TA9 ,Children & Education,Ext Placement & IFA,Childrens Agency Placement,Third Party Payments,REVENUE
Wiltshire,http://opendatacommunities.org/id/unitary-authority/wiltshire,11/01/2018,1902063147,360.86,Chapple  and  Jenkins Limited ,110503,BS15,Neighbourhood & Planning,Marlborough LC Cafe,Catering,Supplies and Services,REVENUE
Wiltshire,http://opendatacommunities.org/id/unitary-authority/wiltshire,16/01/2018,1902063149,379.43,Chapple  and  Jenkins Limited ,110503,BS15,Neighbourhood & Planning,Marlborough LC Cafe,Catering,Supplies and Services,REVENUE
Wiltshire,http://opendatacommunities.org/id/unitary-authority/wiltshire,16/01/2018,1902064906,777.09,Chapple  and  Jenkins Limited ,110503,BS15,Neighbourhood & Planning,Five Rivers,Vending costs,Supplies and Services,REVENUE
Wiltshire,http://opendatacommunities.org/id/unitary-authority/wiltshire,17/01/2018,1902071470,285.97,Chapple  and  Jenkins Limited ,110503,BS15,Neighbourhood & Planning,Five Rivers,Vending costs,Supplies and Services,REVENUE
Wiltshire,http://opendatacommunities.org/id/unitary-authority/wiltshire,09/01/2018,1902062332,803,Chariots Of Hire ,101456,BA12,Neighbourhood & Planning,SEN Secondary,Transport Contracts,Third Party Payments,REVENUE
Wiltshire,http://opendatacommunities.org/id/unitary-authority/wiltshire,17/01/2018,1902071160,7286.8,Charisma Spatial Planning Ltd ,141498,CM2 ,Neighbourhood & Planning,Neighbourhood Planng,Professional Fees,Supplies and Services,REVENUE
Wiltshire,http://opendatacommunities.org/id/unitary-authority/wiltshire,09/01/2018,1902062247,847.55,Chelsea & Westminster Hospital NHS Foundation Trust,138260,WF3 ,Neighbourhood & Planning,Sexual Health Commun,Public Health Commissioning,Supplies and Services,REVENUE
Wiltshire,http://opendatacommunities.org/id/unitary-authority/wiltshire,17/01/2018,1902071491,3656.76,Chelsea & Westminster Hospital NHS Foundation Trust,138260,WF3 ,Neighbourhood & Planning,Sexual Health Commun,Public Health Commissioning,Supplies and Services,REVENUE
Wiltshire,http://opendatacommunities.org/id/unitary-authority/wiltshire,25/01/2018,1902074458,782.55,Chelsea & Westminster Hospital NHS Foundation Trust,138260,WF3 ,Neighbourhood & Planning,Sexual Health Commun,Public Health Commissioning,Supplies and Services,REVENUE
Wiltshire,http://opendatacommunities.org/id/unitary-authority/wiltshire,11/01/2018,5107162243,3714.2,Child Care Bureau Ltd ,129462,WR2 ,Children & Education,Ext Placement & IFA,Childrens Agency Placement,Third Party Payments,REVENUE
Wiltshire,http://opendatacommunities.org/id/unitary-authority/wiltshire,04/01/2018,1902060663,4600.16,Chippenham BID ,141656,SN15,Wiltshire Council,Wiltshire Council,NNDR - Chippenham,Balance Sheet Accounts,REVENUE
Wiltshire,http://opendatacommunities.org/id/unitary-authority/wiltshire,11/01/2018,1902063011,1169.97,Chippenham BID ,141656,SN15,Wiltshire Council,Wiltshire Council,NNDR - Chippenham,Balance Sheet Accounts,REVENUE
Wiltshire,http://opendatacommunities.org/id/unitary-authority/wiltshire,10/01/2018,1902062666,1015,CHIPPENHAM CAB CO ,132146,SN16,Neighbourhood & Planning,Mainstream Secondary,Transport Contracts,Third Party Payments,REVENUE
Wiltshire,http://opendatacommunities.org/id/unitary-authority/wiltshire,10/01/2018,1902062667,894.85,CHIPPENHAM CAB CO ,132146,SN16,Neighbourhood & Planning,SEN Secondary,Transport Contracts,Third Party Payments,REVENUE
Wiltshire,http://opendatacommunities.org/id/unitary-authority/wiltshire,16/01/2018,1902064955,1912.25,Chippenham Town Council ,110525,SN15,Resources,Chippnhm AreaBd S106,CIL Parish Council Share,Balance Sheet Accounts,REVENUE
Wiltshire,http://opendatacommunities.org/id/unitary-authority/wiltshire,16/01/2018,1902065210,2440.66,Chippenham Town Council ,110525,SN15,Resources,FM Libraries,Electricity,Premises Related,REVENUE
Wiltshire,http://opendatacommunities.org/id/unitary-authority/wiltshire,16/01/2018,1902065215,686.13,Chippenham Town Council ,110525,SN15,Resources,Unoccupied Sites,Electricity,Premises Related,REVENUE
Wiltshire,http://opendatacommunities.org/id/unitary-authority/wiltshire,17/01/2018,1902065254,300,Chippenham Town Council ,110525,SN15,Community Services,Area Board Chippen,Area Board Grants,Supplies and Services,REVENUE
Wiltshire,http://opendatacommunities.org/id/unitary-authority/wiltshire,17/01/2018,1902071265,36493.64,Chippenham Town Council ,110525,SN15,Resources,Chippnhm AreaBd S106,CIL Parish Council Share,Balance Sheet Accounts,REVENUE
Wiltshire,http://opendatacommunities.org/id/unitary-authority/wiltshire,22/01/2018,5107164750,5125.09,Chipside Limited ,110526,SN5 ,Neighbourhood & Planning,Car Park Admin,ICT - Support arrangements,Supplies and Services,REVENUE
Wiltshire,http://opendatacommunities.org/id/unitary-authority/wiltshire,30/01/2018,5107164752,5193.4,Chipside Limited ,110526,SN5 ,Neighbourhood & Planning,Car Park Admin,ICT - Support arrangements,Supplies and Services,REVENUE
Wiltshire,http://opendatacommunities.org/id/unitary-authority/wiltshire,30/01/2018,5107164754,2572.23,Chipside Limited ,110526,SN5 ,Neighbourhood & Planning,Car Park Admin,ICT - Support arrangements,Supplies and Services,REVENUE
Wiltshire,http://opendatacommunities.org/id/unitary-authority/wiltshire,26/01/2018,5107165808,40848.04,Chipside Limited ,110526,SN5 ,Wiltshire Council,Wiltshire Council,Materials,Supplies and Services,CAPITAL
Wiltshire,http://opendatacommunities.org/id/unitary-authority/wiltshire,02/01/2018,5107154413,2000,Chris Brennan Limited ,110352,SN8 ,Wiltshire Council,Wiltshire Council,Materials,Supplies and Services,CAPITAL
Wiltshire,http://opendatacommunities.org/id/unitary-authority/wiltshire,19/01/2018,5107163628,10150,Chris Brennan Limited ,110352,SN8 ,Wiltshire Council,Wiltshire Council,Materials,Supplies and Services,CAPITAL
Wiltshire,http://opendatacommunities.org/id/unitary-authority/wiltshire,24/01/2018,5107165262,1501,Chris White Funeral Director ,114737,SP2 ,Health & Wellbeing,Environmental Protec,Funeral Costs,Supplies and Services,REVENUE
Wiltshire,http://opendatacommunities.org/id/unitary-authority/wiltshire,17/01/2018,1902065256,255.95,Churchill Contract Services Ltd ,135047,AL5 ,Resources,FM Libraries,Cleaning,Premises Related,REVENUE
Wiltshire,http://opendatacommunities.org/id/unitary-authority/wiltshire,17/01/2018,1902065256,258,Churchill Contract Services Ltd ,135047,AL5 ,Resources,FM Leisure Centres,Cleaning,Premises Related,REVENUE
Wiltshire,http://opendatacommunities.org/id/unitary-authority/wiltshire,17/01/2018,1902065256,324,Churchill Contract Services Ltd ,135047,AL5 ,Resources,5 Rivers LC,Cleaning,Premises Related,REVENUE
Wiltshire,http://opendatacommunities.org/id/unitary-authority/wiltshire,17/01/2018,1902065256,872.4,Churchill Contract Services Ltd ,135047,AL5 ,Resources,Bourne Hill,Cleaning,Premises Related,REVENUE
Wiltshire,http://opendatacommunities.org/id/unitary-authority/wiltshire,17/01/2018,1902065256,907.2,Churchill Contract Services Ltd ,135047,AL5 ,Resources,County Hall Complex,Cleaning,Premises Related,REVENUE
Wiltshire,http://opendatacommunities.org/id/unitary-authority/wiltshire,17/01/2018,1902071235,1242.84,Churchill Contract Services Ltd ,135047,AL5 ,Resources,FM Libraries,Cleaning,Premises Related,REVENUE
Wiltshire,http://opendatacommunities.org/id/unitary-authority/wiltshire,17/01/2018,1902071352,262.9,Churchill Contract Services Ltd ,135047,AL5 ,Neighbourhood & Planning,The Old Fire Sttn EC,Cleaning,Premises Related,REVENUE
Wiltshire,http://opendatacommunities.org/id/unitary-authority/wiltshire,17/01/2018,1902071352,317.99,Churchill Contract Services Ltd ,135047,AL5 ,Resources,FM Leisure Centres,Cleaning,Premises Related,REVENUE
Wiltshire,http://opendatacommunities.org/id/unitary-authority/wiltshire,17/01/2018,1902071352,332.55,Churchill Contract Services Ltd ,135047,AL5 ,Resources,Special Schools,Cleaning,Premises Related,REVENUE
Wiltshire,http://opendatacommunities.org/id/unitary-authority/wiltshire,17/01/2018,1902071352,353.43,Churchill Contract Services Ltd ,135047,AL5 ,Neighbourhood & Planning,Manor House Enterpri,Cleaning,Premises Related,REVENUE
Wiltshire,http://opendatacommunities.org/id/unitary-authority/wiltshire,17/01/2018,1902071352,394.12,Churchill Contract Services Ltd ,135047,AL5 ,Resources,Investment Estate,Cleaning,Premises Related,REVENUE
Wiltshire,http://opendatacommunities.org/id/unitary-authority/wiltshire,17/01/2018,1902071352,437.06,Churchill Contract Services Ltd ,135047,AL5 ,Children & Education,Aspire House,Cleaning,Premises Related,REVENUE
Wiltshire,http://opendatacommunities.org/id/unitary-authority/wiltshire,17/01/2018,1902071352,437.89,Churchill Contract Services Ltd ,135047,AL5 ,Neighbourhood & Planning,Kingsbury Hostel,Cleaning,Premises Related,REVENUE
Wiltshire,http://opendatacommunities.org/id/unitary-authority/wiltshire,17/01/2018,1902071352,784.98,Churchill Contract Services Ltd ,135047,AL5 ,Community Services,Bradbury Manor Resp,Cleaning,Premises Related,REVENUE
Wiltshire,http://opendatacommunities.org/id/unitary-authority/wiltshire,17/01/2018,1902071352,1459.14,Churchill Contract Services Ltd ,135047,AL5 ,Resources,Salisbury City Hall,Cleaning,Premises Related,REVENUE
Wiltshire,http://opendatacommunities.org/id/unitary-authority/wiltshire,17/01/2018,1902071352,2654.3,Churchill Contract Services Ltd ,135047,AL5 ,Resources,Bourne Hill,Cleaning,Premises Related,REVENUE
Wiltshire,http://opendatacommunities.org/id/unitary-authority/wiltshire,17/01/2018,1902071352,4147,Churchill Contract Services Ltd ,135047,AL5 ,Resources,FM Highway Depots,Cleaning,Premises Related,REVENUE
Wiltshire,http://opendatacommunities.org/id/unitary-authority/wiltshire,17/01/2018,1902071352,4369.36,Churchill Contract Services Ltd ,135047,AL5 ,Resources,Monkton Park,Cleaning,Premises Related,REVENUE
Wiltshire,http://opendatacommunities.org/id/unitary-authority/wiltshire,17/01/2018,1902071352,5639.18,Churchill Contract Services Ltd ,135047,AL5 ,Resources,5 Rivers LC,Cleaning,Premises Related,REVENUE
Wiltshire,http://opendatacommunities.org/id/unitary-authority/wiltshire,17/01/2018,1902071352,7715.3,Churchill Contract Services Ltd ,135047,AL5 ,Resources,Unoccupied Sites,Cleaning,Premises Related,REVENUE
Wiltshire,http://opendatacommunities.org/id/unitary-authority/wiltshire,17/01/2018,1902071352,13621.66,Churchill Contract Services Ltd ,135047,AL5 ,Resources,County Hall Complex,Cleaning,Premises Related,REVENUE
Wiltshire,http://opendatacommunities.org/id/unitary-authority/wiltshire,17/01/2018,1902071352,15238.7,Churchill Contract Services Ltd ,135047,AL5 ,Resources,FM Libraries,Cleaning,Premises Related,REVENUE
Wiltshire,http://opendatacommunities.org/id/unitary-authority/wiltshire,09/01/2018,1902062298,360,Churchill Environmental Services ,143816,AL5 ,Children & Education,Sch Compliance Schem,Premises Related Other Maintenance Costs,Premises Related,REVENUE
Wiltshire,http://opendatacommunities.org/id/unitary-authority/wiltshire,09/01/2018,1902062299,453.06,Churchill Environmental Services ,143816,AL5 ,Resources,FM Leisure Centres,Property Maintenance,Premises Related,REVENUE
Wiltshire,http://opendatacommunities.org/id/unitary-authority/wiltshire,09/01/2018,1902062299,704.17,Churchill Environmental Services ,143816,AL5 ,Resources,Unoccupied Sites,Property Maintenance,Premises Related,REVENUE
Wiltshire,http://opendatacommunities.org/id/unitary-authority/wiltshire,09/01/2018,1902062299,2905.24,Churchill Environmental Services ,143816,AL5 ,Children & Education,Sch Compliance Schem,Premises Related Other Maintenance Costs,Premises Related,REVENUE
Wiltshire,http://opendatacommunities.org/id/unitary-authority/wiltshire,26/01/2018,1902072680,360,Churchill Environmental Services ,143816,AL5 ,Resources,FM Leisure Centres,Property Maintenance,Premises Related,REVENUE
Wiltshire,http://opendatacommunities.org/id/unitary-authority/wiltshire,26/01/2018,1902072680,540,Churchill Environmental Services ,143816,AL5 ,Children & Education,Sch Compliance Schem,Premises Related Other Maintenance Costs,Premises Related,REVENUE
Wiltshire,http://opendatacommunities.org/id/unitary-authority/wiltshire,26/01/2018,1902072680,540,Churchill Environmental Services ,143816,AL5 ,Resources,Unoccupied Sites,Property Maintenance,Premises Related,REVENUE
Wiltshire,http://opendatacommunities.org/id/unitary-authority/wiltshire,04/01/2018,1902060911,2055.64,City Cabs (South) Ltd ,100168,SP2 ,Neighbourhood & Planning,Mainstream Primary,Transport Contracts,Third Party Payments,REVENUE
Wiltshire,http://opendatacommunities.org/id/unitary-authority/wiltshire,04/01/2018,1902060921,748,City Cabs (South) Ltd ,100168,SP2 ,Neighbourhood & Planning,SEN 16+ Secondary,Transport Contracts,Third Party Payments,REVENUE
Wiltshire,http://opendatacommunities.org/id/unitary-authority/wiltshire,04/01/2018,1902060922,621.6,City Cabs (South) Ltd ,100168,SP2 ,Neighbourhood & Planning,SEN Primary,Transport Contracts,Third Party Payments,REVENUE
Wiltshire,http://opendatacommunities.org/id/unitary-authority/wiltshire,04/01/2018,1902060922,932.4,City Cabs (South) Ltd ,100168,SP2 ,Neighbourhood & Planning,SEN Secondary,Transport Contracts,Third Party Payments,REVENUE
Wiltshire,http://opendatacommunities.org/id/unitary-authority/wiltshire,04/01/2018,1902060923,434,City Cabs (South) Ltd ,100168,SP2 ,Neighbourhood & Planning,SEN Primary,Transport Contracts,Third Party Payments,REVENUE
Wiltshire,http://opendatacommunities.org/id/unitary-authority/wiltshire,04/01/2018,1902060923,1302,City Cabs (South) Ltd ,100168,SP2 ,Neighbourhood & Planning,SEN Secondary,Transport Contracts,Third Party Payments,REVENUE
Wiltshire,http://opendatacommunities.org/id/unitary-authority/wiltshire,11/01/2018,5107154501,560,Civil Ceremonies Ltd ,126270,NN15,Resources,Registration Service,Conference Fees,Supplies and Services,REVENUE
Wiltshire,http://opendatacommunities.org/id/unitary-authority/wiltshire,03/01/2018,1902059916,1636.25,ClarkeBond (UK) Limited ,127555,BS1 ,Community Services,One Public Estate,Consultants Fees,Supplies and Services,REVENUE
Wiltshire,http://opendatacommunities.org/id/unitary-authority/wiltshire,29/01/2018,5107167372,4737.2,ClarkeBond (UK) Limited ,127555,BS1 ,Wiltshire Council,Wiltshire Council,Consultants Fees,Supplies and Services,CAPITAL
Wiltshire,http://opendatacommunities.org/id/unitary-authority/wiltshire,16/01/2018,1902065165,700,Classic Cabs  grimstead  Ltd ,101259,SP5 ,Neighbourhood & Planning,Mainstream Primary,Transport Contracts,Third Party Payments,REVENUE
Wiltshire,http://opendatacommunities.org/id/unitary-authority/wiltshire,16/01/2018,1902065173,358.8,Classic Cabs  grimstead  Ltd ,101259,SP5 ,Neighbourhood & Planning,SEN 16+ Secondary,Transport Contracts,Third Party Payments,REVENUE
Wiltshire,http://opendatacommunities.org/id/unitary-authority/wiltshire,05/01/2018,1902061323,392,Classic Cabs of Salisbury ,101662,SP1 ,Neighbourhood & Planning,Mainstream Primary,Transport Contracts,Third Party Payments,REVENUE
Wiltshire,http://opendatacommunities.org/id/unitary-authority/wiltshire,05/01/2018,1902061323,588,Classic Cabs of Salisbury ,101662,SP1 ,Neighbourhood & Planning,Mainstream Secondary,Transport Contracts,Third Party Payments,REVENUE
Wiltshire,http://opendatacommunities.org/id/unitary-authority/wiltshire,05/01/2018,1902061329,1080,Classic Cabs of Salisbury ,101662,SP1 ,Neighbourhood & Planning,SEN 16+ Secondary,Transport Contracts,Third Party Payments,REVENUE
Wiltshire,http://opendatacommunities.org/id/unitary-authority/wiltshire,04/01/2018,1902060669,34325,Clifton Diocese Dept Schools  and Colleges,114829,BS5 ,Wiltshire Council,Wiltshire Council,Miscellaneous Costs,Supplies and Services,CAPITAL
Wiltshire,http://opendatacommunities.org/id/unitary-authority/wiltshire,04/01/2018,1902061132,22155.3,Climate Integrated Solutions ,146114,CR0 ,Wiltshire Council,Wiltshire Council,Buildings Minor Alterations,Premises Related,CAPITAL
Wiltshire,http://opendatacommunities.org/id/unitary-authority/wiltshire,04/01/2018,1902061133,77152,Climate Integrated Solutions ,146114,CR0 ,Wiltshire Council,Wiltshire Council,Buildings Minor Alterations,Premises Related,CAPITAL
Wiltshire,http://opendatacommunities.org/id/unitary-authority/wiltshire,18/01/2018,5107164077,420,Cloud 9 Digital Design Ltd ,144922,B94 ,Neighbourhood & Planning,Employment & Skills,ICT - Support arrangements,Supplies and Services,REVENUE
Wiltshire,http://opendatacommunities.org/id/unitary-authority/wiltshire,08/01/2018,1902061420,3333.33,Coachstyle Ltd ,100176,SN14,Neighbourhood & Planning,Mainstream Secondary,Transport Contracts,Third Party Payments,REVENUE
Wiltshire,http://opendatacommunities.org/id/unitary-authority/wiltshire,08/01/2018,1902061420,9999.99,Coachstyle Ltd ,100176,SN14,Neighbourhood & Planning,Mainstream 16+ Sec,Transport Contracts,Third Party Payments,REVENUE
Wiltshire,http://opendatacommunities.org/id/unitary-authority/wiltshire,08/01/2018,1902061420,9999.99,Coachstyle Ltd ,100176,SN14,Neighbourhood & Planning,Mainstream 16+ FE,Transport Contracts,Third Party Payments,REVENUE
Wiltshire,http://opendatacommunities.org/id/unitary-authority/wiltshire,08/01/2018,1902061420,30750.02,Coachstyle Ltd ,100176,SN14,Neighbourhood & Planning,Public Transport,Transport Contracts,Third Party Payments,REVENUE
Wiltshire,http://opendatacommunities.org/id/unitary-authority/wiltshire,08/01/2018,1902061421,1040,Coachstyle Ltd ,100176,SN14,Neighbourhood & Planning,Public Transport,Transport Contracts,Third Party Payments,REVENUE
Wiltshire,http://opendatacommunities.org/id/unitary-authority/wiltshire,08/01/2018,1902061422,3467.5,Coachstyle Ltd ,100176,SN14,Neighbourhood & Planning,Mainstream Secondary,Transport Contracts,Third Party Payments,REVENUE
Wiltshire,http://opendatacommunities.org/id/unitary-authority/wiltshire,08/01/2018,1902061423,3309.16,Coachstyle Ltd ,100176,SN14,Neighbourhood & Planning,Mainstream Secondary,Transport Contracts,Third Party Payments,REVENUE
Wiltshire,http://opendatacommunities.org/id/unitary-authority/wiltshire,08/01/2018,1902061424,2866.42,Coachstyle Ltd ,100176,SN14,Neighbourhood & Planning,Mainstream Secondary,Transport Contracts,Third Party Payments,REVENUE
Wiltshire,http://opendatacommunities.org/id/unitary-authority/wiltshire,08/01/2018,1902061425,2992.5,Coachstyle Ltd ,100176,SN14,Neighbourhood & Planning,Mainstream Secondary,Transport Contracts,Third Party Payments,REVENUE
Wiltshire,http://opendatacommunities.org/id/unitary-authority/wiltshire,08/01/2018,1902061426,360,Coachstyle Ltd ,100176,SN14,Neighbourhood & Planning,Mainstream 16+ FE,Transport Contracts,Third Party Payments,REVENUE
Wiltshire,http://opendatacommunities.org/id/unitary-authority/wiltshire,08/01/2018,1902061427,1990.37,Coachstyle Ltd ,100176,SN14,Neighbourhood & Planning,Mainstream Secondary,Transport Contract -  Bus Season Tickets,Third Party Payments,REVENUE
Wiltshire,http://opendatacommunities.org/id/unitary-authority/wiltshire,08/01/2018,1902061428,3970.99,Coachstyle Ltd ,100176,SN14,Neighbourhood & Planning,Mainstream Secondary,Transport Contract -  Bus Season Tickets,Third Party Payments,REVENUE
Wiltshire,http://opendatacommunities.org/id/unitary-authority/wiltshire,08/01/2018,1902061429,323.49,Coachstyle Ltd ,100176,SN14,Neighbourhood & Planning,SEN 16+ Secondary,Transport Contracts,Third Party Payments,REVENUE
Wiltshire,http://opendatacommunities.org/id/unitary-authority/wiltshire,08/01/2018,1902061429,3019.34,Coachstyle Ltd ,100176,SN14,Neighbourhood & Planning,Mainstream 16+ FE,Transport Contracts,Third Party Payments,REVENUE
Wiltshire,http://opendatacommunities.org/id/unitary-authority/wiltshire,22/01/2018,1902072520,8346.57,Coachstyle Ltd ,100176,SN14,Neighbourhood & Planning,Concessionary Fares,Concessionary fares,Third Party Payments,REVENUE
Wiltshire,http://opendatacommunities.org/id/unitary-authority/wiltshire,15/01/2018,5107163130,270.39,Coate Auto Repair Services ,141902,SN10,Neighbourhood & Planning,Fleet,Vehicle Parts,Transport Related,REVENUE
Wiltshire,http://opendatacommunities.org/id/unitary-authority/wiltshire,25/01/2018,1902073955,385,Codelocks Ltd ,100980,RG14,Resources,Facilities Managemen,Materials & Consumables (Non-Educational),Supplies and Services,REVENUE
Wiltshire,http://opendatacommunities.org/id/unitary-authority/wiltshire,16/01/2018,1902064694,5000,Community First ,110596,SN10,Neighbourhood & Planning,Community Transport,Grants Expenditure,Supplies and Services,REVENUE
Wiltshire,http://opendatacommunities.org/id/unitary-authority/wiltshire,16/01/2018,1902065136,627.9,Community First Trading Limited ,143759,SN10,Neighbourhood & Planning,Mainstream Primary,Transport Contracts,Third Party Payments,REVENUE
Wiltshire,http://opendatacommunities.org/id/unitary-authority/wiltshire,16/01/2018,1902065136,1255.8,Community First Trading Limited ,143759,SN10,Neighbourhood & Planning,SEN Primary,Transport Contracts,Third Party Payments,REVENUE
Wiltshire,http://opendatacommunities.org/id/unitary-authority/wiltshire,16/01/2018,1902065146,350.08,Community First Trading Limited ,143759,SN10,Neighbourhood & Planning,Mainstream Primary,Transport Contracts,Third Party Payments,REVENUE
Wiltshire,http://opendatacommunities.org/id/unitary-authority/wiltshire,16/01/2018,1902065146,650.15,Community First Trading Limited ,143759,SN10,Neighbourhood & Planning,Mainstream Secondary,Transport Contracts,Third Party Payments,REVENUE
Wiltshire,http://opendatacommunities.org/id/unitary-authority/wiltshire,16/01/2018,1902065149,440,Community First Trading Limited ,143759,SN10,Neighbourhood & Planning,Public Transport,Transport Contracts,Third Party Payments,REVENUE
Wiltshire,http://opendatacommunities.org/id/unitary-authority/wiltshire,16/01/2018,1902065158,300,Community First Trading Limited ,143759,SN10,Neighbourhood & Planning,SEN 16+ Secondary,Transport Contracts,Third Party Payments,REVENUE
Wiltshire,http://opendatacommunities.org/id/unitary-authority/wiltshire,31/01/2018,1902075972,911.15,Community First Trading Limited ,143759,SN10,Neighbourhood & Planning,Mainstream Primary,Transport Contracts,Third Party Payments,REVENUE
Wiltshire,http://opendatacommunities.org/id/unitary-authority/wiltshire,31/01/2018,1902075972,1913.4,Community First Trading Limited ,143759,SN10,Neighbourhood & Planning,SEN Primary,Transport Contracts,Third Party Payments,REVENUE
Wiltshire,http://opendatacommunities.org/id/unitary-authority/wiltshire,31/01/2018,1902075973,638.8,Community First Trading Limited ,143759,SN10,Neighbourhood & Planning,Mainstream Primary,Transport Contracts,Third Party Payments,REVENUE
Wiltshire,http://opendatacommunities.org/id/unitary-authority/wiltshire,31/01/2018,1902075973,1277.62,Community First Trading Limited ,143759,SN10,Neighbourhood & Planning,SEN Primary,Transport Contracts,Third Party Payments,REVENUE
Wiltshire,http://opendatacommunities.org/id/unitary-authority/wiltshire,11/01/2018,5107162244,3675.67,Community Foster Care Ltd ,110597,GL19,Children & Education,Ext Placement & IFA,Childrens Agency Placement,Third Party Payments,REVENUE
Wiltshire,http://opendatacommunities.org/id/unitary-authority/wiltshire,22/01/2018,1902072517,3444.99,Community Transport for South Wilts ,100761,SP2 ,Neighbourhood & Planning,Concessionary Fares,Concessionary fares,Third Party Payments,REVENUE
Wiltshire,http://opendatacommunities.org/id/unitary-authority/wiltshire,29/01/2018,1902075372,2100,Community Transport for South Wilts ,100761,SP2 ,Neighbourhood & Planning,Mainstream Primary,Transport Contracts,Third Party Payments,REVENUE
Wiltshire,http://opendatacommunities.org/id/unitary-authority/wiltshire,16/01/2018,5107096855,1028.6,Compass Fostering South Rustington Office,143637,LE11,Children & Education,Ext Placement & IFA,Childrens Agency Placement,Third Party Payments,REVENUE
Wiltshire,http://opendatacommunities.org/id/unitary-authority/wiltshire,16/01/2018,5107163536,2489.97,Compass Fostering South Rustington Office,143637,LE11,Children & Education,Ext Placement & IFA,Childrens Agency Placement,Third Party Payments,REVENUE
Wiltshire,http://opendatacommunities.org/id/unitary-authority/wiltshire,05/01/2018,5107156819,4879.5,Concerto Support Services ,143558,WA6 ,Wiltshire Council,Wiltshire Council,Consultants Fees,Supplies and Services,CAPITAL
Wiltshire,http://opendatacommunities.org/id/unitary-authority/wiltshire,05/01/2018,5107156833,3075,Concerto Support Services ,143558,WA6 ,Wiltshire Council,Wiltshire Council,Consultants Fees,Supplies and Services,CAPITAL
Wiltshire,http://opendatacommunities.org/id/unitary-authority/wiltshire,16/01/2018,5107163474,281.53,Connect Assist ,142600,CF15,Neighbourhood & Planning,Development Control,Fire Alarms maintenance,Premises Related,REVENUE
Wiltshire,http://opendatacommunities.org/id/unitary-authority/wiltshire,09/01/2018,5107154397,2260,Conservation Contractors ,114941,SN10,Neighbourhood & Planning,Countryside,Grounds Maintenance,Premises Related,REVENUE
Wiltshire,http://opendatacommunities.org/id/unitary-authority/wiltshire,23/01/2018,5107164835,1130,Conservation Contractors ,114941,SN10,Neighbourhood & Planning,Highw Hedges & Trees,Grounds Maintenance,Premises Related,REVENUE
Wiltshire,http://opendatacommunities.org/id/unitary-authority/wiltshire,23/01/2018,5107164837,750,Conservation Contractors ,114941,SN10,Neighbourhood & Planning,Highw Hedges & Trees,Grounds Maintenance,Premises Related,REVENUE
Wiltshire,http://opendatacommunities.org/id/unitary-authority/wiltshire,23/01/2018,5107164838,2745,Conservation Contractors ,114941,SN10,Neighbourhood & Planning,Highw Hedges & Trees,Grounds Maintenance,Premises Related,REVENUE
Wiltshire,http://opendatacommunities.org/id/unitary-authority/wiltshire,23/01/2018,5107164839,2100,Conservation Contractors ,114941,SN10,Neighbourhood & Planning,Highw Hedges & Trees,Grounds Maintenance,Premises Related,REVENUE
Wiltshire,http://opendatacommunities.org/id/unitary-authority/wiltshire,24/01/2018,5107165471,1395,Conservation Contractors ,114941,SN10,Neighbourhood & Planning,Rights of Way,Materials,Supplies and Services,REVENUE
Wiltshire,http://opendatacommunities.org/id/unitary-authority/wiltshire,08/01/2018,5107155001,269.98,Consortium Purchasing Distribution ,101676,BA14,Neighbourhood & Planning,Springfield Leisr Cn,Equipment Purchase,Supplies and Services,REVENUE
Wiltshire,http://opendatacommunities.org/id/unitary-authority/wiltshire,29/01/2018,5107164812,376.68,Consortium Purchasing Distribution ,101676,BA14,Community Services,Chippenham Respite,Cleaning Materials - Buildings,Premises Related,REVENUE
Wiltshire,http://opendatacommunities.org/id/unitary-authority/wiltshire,19/01/2018,1902072175,2068,Corsham Taxis ,100434,SN13,Neighbourhood & Planning,SEN Secondary,Transport Contracts,Third Party Payments,REVENUE
Wiltshire,http://opendatacommunities.org/id/unitary-authority/wiltshire,19/01/2018,1902072177,924,Corsham Taxis ,100434,SN13,Neighbourhood & Planning,Mainstream Primary,Transport Contracts,Third Party Payments,REVENUE
Wiltshire,http://opendatacommunities.org/id/unitary-authority/wiltshire,19/01/2018,1902072178,650.26,Corsham Taxis ,100434,SN13,Community Services,N&E Localiity 18+ C,Transport Contracts,Third Party Payments,REVENUE
Wiltshire,http://opendatacommunities.org/id/unitary-authority/wiltshire,19/01/2018,1902072178,794.74,Corsham Taxis ,100434,SN13,Community Services,MH OP N&E Locality,Transport Contracts,Third Party Payments,REVENUE
Wiltshire,http://opendatacommunities.org/id/unitary-authority/wiltshire,19/01/2018,1902072179,924,Corsham Taxis ,100434,SN13,Neighbourhood & Planning,Mainstream Primary,Transport Contracts,Third Party Payments,REVENUE
Wiltshire,http://opendatacommunities.org/id/unitary-authority/wiltshire,19/01/2018,1902072180,616,Corsham Taxis ,100434,SN13,Neighbourhood & Planning,Mainstream Primary,Transport Contracts,Third Party Payments,REVENUE
Wiltshire,http://opendatacommunities.org/id/unitary-authority/wiltshire,19/01/2018,1902072181,438.67,Corsham Taxis ,100434,SN13,Neighbourhood & Planning,Mainstream Primary,Transport Contracts,Third Party Payments,REVENUE
Wiltshire,http://opendatacommunities.org/id/unitary-authority/wiltshire,19/01/2018,1902072181,877.33,Corsham Taxis ,100434,SN13,Neighbourhood & Planning,SEN Primary,Transport Contracts,Third Party Payments,REVENUE
Wiltshire,http://opendatacommunities.org/id/unitary-authority/wiltshire,19/01/2018,1902072182,1246,Corsham Taxis ,100434,SN13,Neighbourhood & Planning,SEN Primary,Transport Contracts,Third Party Payments,REVENUE
Wiltshire,http://opendatacommunities.org/id/unitary-authority/wiltshire,19/01/2018,1902072183,638.4,Corsham Taxis ,100434,SN13,Children & Education,CiC Team North,Transport Contracts,Third Party Payments,REVENUE
Wiltshire,http://opendatacommunities.org/id/unitary-authority/wiltshire,19/01/2018,1902072184,1792,Corsham Taxis ,100434,SN13,Children & Education,Safeguarding Ass Nth,Transport Contracts,Third Party Payments,REVENUE
Wiltshire,http://opendatacommunities.org/id/unitary-authority/wiltshire,19/01/2018,1902072185,440,Corsham Taxis ,100434,SN13,Neighbourhood & Planning,SEN 16+ Secondary,Transport Contracts,Third Party Payments,REVENUE
Wiltshire,http://opendatacommunities.org/id/unitary-authority/wiltshire,19/01/2018,1902072186,712,Corsham Taxis ,100434,SN13,Neighbourhood & Planning,SEN 16+ Secondary,Transport Contracts,Third Party Payments,REVENUE
Wiltshire,http://opendatacommunities.org/id/unitary-authority/wiltshire,19/01/2018,1902072198,332,Corsham Taxis ,100434,SN13,Neighbourhood & Planning,Mainstream 16+ Sec,Transport Contracts,Third Party Payments,REVENUE
Wiltshire,http://opendatacommunities.org/id/unitary-authority/wiltshire,19/01/2018,1902072198,830,Corsham Taxis ,100434,SN13,Neighbourhood & Planning,Mainstream Secondary,Transport Contracts,Third Party Payments,REVENUE
Wiltshire,http://opendatacommunities.org/id/unitary-authority/wiltshire,19/01/2018,1902072199,616,Corsham Taxis ,100434,SN13,Neighbourhood & Planning,Mainstream Secondary,Transport Contracts,Third Party Payments,REVENUE
Wiltshire,http://opendatacommunities.org/id/unitary-authority/wiltshire,22/01/2018,1902072495,560,Corsham Taxis ,100434,SN13,Community Services,MH AOWA N&E Locality,Transport Contracts,Third Party Payments,REVENUE
Wiltshire,http://opendatacommunities.org/id/unitary-authority/wiltshire,17/01/2018,1902071314,75350.8,Corsham Town Council - PWLD Etc. ,114990,SN13,Resources,Corsham Area Bd S106,CIL Parish Council Share,Balance Sheet Accounts,REVENUE
Wiltshire,http://opendatacommunities.org/id/unitary-authority/wiltshire,17/01/2018,1902071315,42842.4,Corsham Town Council - PWLD Etc. ,114990,SN13,Resources,Corsham Area Bd S106,CIL Parish Council Share,Balance Sheet Accounts,REVENUE
Wiltshire,http://opendatacommunities.org/id/unitary-authority/wiltshire,11/01/2018,5107162093,2200,Corvid Paygate ,130847,UB6 ,Resources,Applications SuppLOB,ICT - Support arrangements,Supplies and Services,REVENUE
Wiltshire,http://opendatacommunities.org/id/unitary-authority/wiltshire,05/01/2018,1902061301,566.58,Country Cars ,126487,SP7 ,Neighbourhood & Planning,Mainstream Primary,Transport Contracts,Third Party Payments,REVENUE
Wiltshire,http://opendatacommunities.org/id/unitary-authority/wiltshire,05/01/2018,1902061305,769.78,Country Cars ,126487,SP7 ,Neighbourhood & Planning,Mainstream Secondary,Transport Contracts,Third Party Payments,REVENUE
Wiltshire,http://opendatacommunities.org/id/unitary-authority/wiltshire,18/01/2018,5107164104,1050,County Councils Network ,110635,SW1P,Resources,MembersCosts,Conference Fees,Supplies and Services,REVENUE
Wiltshire,http://opendatacommunities.org/id/unitary-authority/wiltshire,23/01/2018,5107164868,690,County Councils Network ,110635,SW1P,Resources,MembersCosts,Conference Fees,Supplies and Services,REVENUE
Wiltshire,http://opendatacommunities.org/id/unitary-authority/wiltshire,23/01/2018,1902072989,1200,Courtyard Surgery ,115016,SN10,Neighbourhood & Planning,NHS Health Checks,Public Health Commissioning,Supplies and Services,REVENUE
Wiltshire,http://opendatacommunities.org/id/unitary-authority/wiltshire,23/01/2018,1902073080,306.45,Courtyard Surgery ,115016,SN10,Neighbourhood & Planning,Sexual Health Commun,Public Health Commissioning,Supplies and Services,REVENUE
Wiltshire,http://opendatacommunities.org/id/unitary-authority/wiltshire,08/01/2018,5107157181,3600,Craggs Environmental Ltd ,146329,HX7 ,Neighbourhood & Planning,Fleet,Equipment Maintenance,Supplies and Services,REVENUE
Wiltshire,http://opendatacommunities.org/id/unitary-authority/wiltshire,04/01/2018,5107156521,390,Create Studios ,141423,SN1 ,Neighbourhood & Planning,Swindon & Wilts LEP,Marketing and Promotions,Supplies and Services,REVENUE
Wiltshire,http://opendatacommunities.org/id/unitary-authority/wiltshire,23/01/2018,1902072986,840,Cricklade Surgery ,128505,SN6 ,Neighbourhood & Planning,NHS Health Checks,Public Health Commissioning,Supplies and Services,REVENUE
Wiltshire,http://opendatacommunities.org/id/unitary-authority/wiltshire,18/01/2018,1902065235,532.53,Cricklade Town Council ,115056,SN6 ,Resources,RW Basstt AreaBdS106,CIL Parish Council Share,Balance Sheet Accounts,REVENUE
Wiltshire,http://opendatacommunities.org/id/unitary-authority/wiltshire,25/01/2018,1902074459,922,Cricklade Town Council ,115056,SN6 ,Resources,RW Basstt AreaBdS106,S106 Public Open Spaces Contributions,Balance Sheet Accounts,REVENUE
Wiltshire,http://opendatacommunities.org/id/unitary-authority/wiltshire,25/01/2018,1902074524,882.76,Cricklade Town Council ,115056,SN6 ,Resources,Investment Estate,Electricity,Premises Related,REVENUE
Wiltshire,http://opendatacommunities.org/id/unitary-authority/wiltshire,19/01/2018,1902072213,375,Cross Street Radio Cars ,131328,SN1 ,Neighbourhood & Planning,SEN 16+ Secondary,Transport Contracts,Third Party Payments,REVENUE
Wiltshire,http://opendatacommunities.org/id/unitary-authority/wiltshire,19/01/2018,1902072214,564,Cross Street Radio Cars ,131328,SN1 ,Neighbourhood & Planning,SEN 16+ Secondary,Transport Contracts,Third Party Payments,REVENUE
Wiltshire,http://opendatacommunities.org/id/unitary-authority/wiltshire,19/01/2018,1902072217,1400.8,Cross Street Radio Cars ,131328,SN1 ,Neighbourhood & Planning,SEN Primary,Transport Contracts,Third Party Payments,REVENUE
Wiltshire,http://opendatacommunities.org/id/unitary-authority/wiltshire,11/01/2018,5107162242,14516.99,Crossways Care ,127645,EX16,Children & Education,0-25 extnl disabty p,Childrens Agency Placement,Third Party Payments,REVENUE
Wiltshire,http://opendatacommunities.org/id/unitary-authority/wiltshire,11/01/2018,5107162253,15035,Crossways Care ,127645,EX16,Children & Education,Ext Placement & IFA,Childrens Agency Placement,Third Party Payments,REVENUE
Wiltshire,http://opendatacommunities.org/id/unitary-authority/wiltshire,11/01/2018,5107162259,18250.01,Crossways Care ,127645,EX16,Children & Education,Ext Placement & IFA,Childrens Agency Placement,Third Party Payments,REVENUE
Wiltshire,http://opendatacommunities.org/id/unitary-authority/wiltshire,11/01/2018,5107162267,18250.01,Crossways Care ,127645,EX16,Children & Education,Ext Placement & IFA,Childrens Agency Placement,Third Party Payments,REVENUE
Wiltshire,http://opendatacommunities.org/id/unitary-authority/wiltshire,16/01/2018,1902065164,1040,Crossways Care Ltd ,144424,EX16,Neighbourhood & Planning,SEN Secondary,Transport Contracts,Third Party Payments,REVENUE
Wiltshire,http://opendatacommunities.org/id/unitary-authority/wiltshire,02/01/2018,1902059858,334,CSS ,130460,SP2 ,Neighbourhood & Planning,SH Crane Lodge,Cleaning,Premises Related,REVENUE
Wiltshire,http://opendatacommunities.org/id/unitary-authority/wiltshire,02/01/2018,1902059858,502.2,CSS ,130460,SP2 ,Neighbourhood & Planning,SH Nadder Close,Cleaning,Premises Related,REVENUE
Wiltshire,http://opendatacommunities.org/id/unitary-authority/wiltshire,26/01/2018,1902072141,317.68,CSS ,130460,SP2 ,Neighbourhood & Planning,SH Westwood House,Cleaning,Premises Related,REVENUE
Wiltshire,http://opendatacommunities.org/id/unitary-authority/wiltshire,26/01/2018,1902072141,334,CSS ,130460,SP2 ,Neighbourhood & Planning,SH Crane Lodge,Cleaning,Premises Related,REVENUE
Wiltshire,http://opendatacommunities.org/id/unitary-authority/wiltshire,26/01/2018,1902072141,502.2,CSS ,130460,SP2 ,Neighbourhood & Planning,SH Nadder Close,Cleaning,Premises Related,REVENUE
Wiltshire,http://opendatacommunities.org/id/unitary-authority/wiltshire,25/01/2018,5107165586,550.92,CSS ,130460,SP2 ,Neighbourhood & Planning,SH - Grouped,Cleaning,Premises Related,REVENUE
Wiltshire,http://opendatacommunities.org/id/unitary-authority/wiltshire,15/01/2018,5107162090,3000,Currie & Brown UK Limited ,110663,WC1X,Wiltshire Council,Wiltshire Council,Consultants Fees,Supplies and Services,CAPITAL
Wiltshire,http://opendatacommunities.org/id/unitary-authority/wiltshire,11/01/2018,5107162092,4950,Currie & Brown UK Limited ,110663,WC1X,Wiltshire Council,Wiltshire Council,Consultants Fees,Supplies and Services,CAPITAL
Wiltshire,http://opendatacommunities.org/id/unitary-authority/wiltshire,16/01/2018,5107163537,7550,Currie & Brown UK Limited ,110663,WC1X,Wiltshire Council,Wiltshire Council,Professional Fees,Supplies and Services,CAPITAL
Wiltshire,http://opendatacommunities.org/id/unitary-authority/wiltshire,18/01/2018,5107163752,3416,Currie & Brown UK Limited ,110663,WC1X,Wiltshire Council,Wiltshire Council,Consultants Fees,Supplies and Services,CAPITAL
Wiltshire,http://opendatacommunities.org/id/unitary-authority/wiltshire,11/01/2018,1902063130,654.14,Cyclescheme Ltd ,137260,BA1 ,Wiltshire Council,Wiltshire Council,Staff Cycle to Work Scheme,Balance Sheet Accounts,REVENUE
Wiltshire,http://opendatacommunities.org/id/unitary-authority/wiltshire,18/01/2018,1902071966,1161,D Js Taxis ,101306,BA12,Neighbourhood & Planning,SEN Secondary,Transport Contracts,Third Party Payments,REVENUE
Wiltshire,http://opendatacommunities.org/id/unitary-authority/wiltshire,18/01/2018,1902071967,315,D Js Taxis ,101306,BA12,Neighbourhood & Planning,SEN Primary,Transport Contracts,Third Party Payments,REVENUE
Wiltshire,http://opendatacommunities.org/id/unitary-authority/wiltshire,18/01/2018,1902071967,315,D Js Taxis ,101306,BA12,Neighbourhood & Planning,SEN Secondary,Transport Contracts,Third Party Payments,REVENUE
Wiltshire,http://opendatacommunities.org/id/unitary-authority/wiltshire,18/01/2018,1902071969,2655,D Js Taxis ,101306,BA12,Neighbourhood & Planning,SEN Primary,Transport Contracts,Third Party Payments,REVENUE
Wiltshire,http://opendatacommunities.org/id/unitary-authority/wiltshire,18/01/2018,1902071975,451,D Js Taxis ,101306,BA12,Neighbourhood & Planning,SEN 16+ Secondary,Transport Contracts,Third Party Payments,REVENUE
Wiltshire,http://opendatacommunities.org/id/unitary-authority/wiltshire,29/01/2018,1902075379,773.5,D Js Taxis ,101306,BA12,Neighbourhood & Planning,Mainstream Primary,Transport Contracts,Third Party Payments,REVENUE
Wiltshire,http://opendatacommunities.org/id/unitary-authority/wiltshire,29/01/2018,1902075379,773.5,D Js Taxis ,101306,BA12,Neighbourhood & Planning,SEN Primary,Transport Contracts,Third Party Payments,REVENUE
Wiltshire,http://opendatacommunities.org/id/unitary-authority/wiltshire,26/01/2018,5107165879,1138.05,DACWS Limited ,142787,S72 ,Wiltshire Council,Wiltshire Council,Consultants Fees,Supplies and Services,CAPITAL
Wiltshire,http://opendatacommunities.org/id/unitary-authority/wiltshire,26/01/2018,5107166493,1856,DACWS Limited ,142787,S72 ,Wiltshire Council,Wiltshire Council,Consultants Fees,Supplies and Services,CAPITAL
Wiltshire,http://opendatacommunities.org/id/unitary-authority/wiltshire,26/01/2018,5107166494,256.1,DACWS Limited ,142787,S72 ,Wiltshire Council,Wiltshire Council,Consultants Fees,Supplies and Services,CAPITAL
Wiltshire,http://opendatacommunities.org/id/unitary-authority/wiltshire,26/01/2018,5107166495,643.85,DACWS Limited ,142787,S72 ,Wiltshire Council,Wiltshire Council,Consultants Fees,Supplies and Services,CAPITAL
Wiltshire,http://opendatacommunities.org/id/unitary-authority/wiltshire,26/01/2018,5107166500,2026.4,DACWS Limited ,142787,S72 ,Wiltshire Council,Wiltshire Council,Consultants Fees,Supplies and Services,CAPITAL
Wiltshire,http://opendatacommunities.org/id/unitary-authority/wiltshire,26/01/2018,5107166501,1822.65,DACWS Limited ,142787,S72 ,Wiltshire Council,Wiltshire Council,Consultants Fees,Supplies and Services,CAPITAL
Wiltshire,http://opendatacommunities.org/id/unitary-authority/wiltshire,04/01/2018,1902061074,2107.28,Daisy Communications Ltd ,127760,BB9 ,Resources,Main xchg phon lines,Telephones - Landlines,Supplies and Services,REVENUE
Wiltshire,http://opendatacommunities.org/id/unitary-authority/wiltshire,04/01/2018,1902061075,298.04,Daisy Communications Ltd ,127760,BB9 ,Resources,Main xchg phon lines,Telephones - Landlines,Supplies and Services,REVENUE
Wiltshire,http://opendatacommunities.org/id/unitary-authority/wiltshire,05/01/2018,1902061088,286.1,Daisy Communications Ltd ,127760,BB9 ,Resources,Main xchg phon lines,Telephones - Landlines,Supplies and Services,REVENUE
Wiltshire,http://opendatacommunities.org/id/unitary-authority/wiltshire,05/01/2018,1902061089,1870.87,Daisy Communications Ltd ,127760,BB9 ,Resources,Main xchg phon lines,Telephones - Landlines,Supplies and Services,REVENUE
Wiltshire,http://opendatacommunities.org/id/unitary-authority/wiltshire,25/01/2018,5107165765,607,Danuk Innovative Gifts Limited ,123484,WN7 ,Resources,News & Information,Marketing and Promotions,Supplies and Services,REVENUE
Wiltshire,http://opendatacommunities.org/id/unitary-authority/wiltshire,25/01/2018,5107165766,607,Danuk Innovative Gifts Limited ,123484,WN7 ,Resources,News & Information,Marketing and Promotions,Supplies and Services,REVENUE
Wiltshire,http://opendatacommunities.org/id/unitary-authority/wiltshire,26/01/2018,5107162159,6000,Darnton B3 Architecture ,134322,CF10,Wiltshire Council,Wiltshire Council,Consultants Fees,Supplies and Services,CAPITAL
Wiltshire,http://opendatacommunities.org/id/unitary-authority/wiltshire,23/01/2018,1902072669,500,Dartington Hall Trust ,115235,TQ9 ,Resources,HR Central Training,Staff Training - Children's Services,Employee Related,REVENUE
Wiltshire,http://opendatacommunities.org/id/unitary-authority/wiltshire,24/01/2018,1902073269,500,Dartington Hall Trust ,115235,TQ9 ,Resources,HR Central Training,Staff Training - Children's Services,Employee Related,REVENUE
Wiltshire,http://opendatacommunities.org/id/unitary-authority/wiltshire,16/01/2018,5107163531,485,David Kent Architects ,100942,BA2 ,Wiltshire Council,Wiltshire Council,Consultants Fees,Supplies and Services,CAPITAL
Wiltshire,http://opendatacommunities.org/id/unitary-authority/wiltshire,18/01/2018,5107164215,500,David Kent Architects ,100942,BA2 ,Wiltshire Council,Wiltshire Council,Consultants Fees,Supplies and Services,CAPITAL
Wiltshire,http://opendatacommunities.org/id/unitary-authority/wiltshire,19/01/2018,5107164339,1500,David Kent Architects ,100942,BA2 ,Wiltshire Council,Wiltshire Council,Consultants Fees,Supplies and Services,CAPITAL
Wiltshire,http://opendatacommunities.org/id/unitary-authority/wiltshire,19/01/2018,5107164411,3351.16,David Kent Architects ,100942,BA2 ,Wiltshire Council,Wiltshire Council,Buildings Minor Alterations,Premises Related,CAPITAL
Wiltshire,http://opendatacommunities.org/id/unitary-authority/wiltshire,19/01/2018,5107164413,2260,David Kent Architects ,100942,BA2 ,Wiltshire Council,Wiltshire Council,Consultants Fees,Supplies and Services,CAPITAL
Wiltshire,http://opendatacommunities.org/id/unitary-authority/wiltshire,19/01/2018,5107164415,3045,David Kent Architects ,100942,BA2 ,Wiltshire Council,Wiltshire Council,Consultants Fees,Supplies and Services,CAPITAL
Wiltshire,http://opendatacommunities.org/id/unitary-authority/wiltshire,19/01/2018,5107164416,3045,David Kent Architects ,100942,BA2 ,Wiltshire Council,Wiltshire Council,Consultants Fees,Supplies and Services,CAPITAL
Wiltshire,http://opendatacommunities.org/id/unitary-authority/wiltshire,29/01/2018,5107167375,630,David Kent Architects ,100942,BA2 ,Wiltshire Council,Wiltshire Council,Consultants Fees,Supplies and Services,CAPITAL
Wiltshire,http://opendatacommunities.org/id/unitary-authority/wiltshire,09/01/2018,5107157770,1604.7,Dawson Rentals ,143627,HD6 ,Neighbourhood & Planning,Amenity Street Clean,Equipment Hire,Supplies and Services,REVENUE
Wiltshire,http://opendatacommunities.org/id/unitary-authority/wiltshire,09/01/2018,5107157771,1604.7,Dawson Rentals ,143627,HD6 ,Neighbourhood & Planning,Amenity Street Clean,Equipment Hire,Supplies and Services,REVENUE
Wiltshire,http://opendatacommunities.org/id/unitary-authority/wiltshire,29/01/2018,5107165863,1604.7,Dawson Rentals ,143627,HD6 ,Neighbourhood & Planning,Amenity Street Clean,Waste Contracts,Third Party Payments,REVENUE
Wiltshire,http://opendatacommunities.org/id/unitary-authority/wiltshire,29/01/2018,5107165871,1604.7,Dawson Rentals ,143627,HD6 ,Neighbourhood & Planning,Amenity Street Clean,Waste Contracts,Third Party Payments,REVENUE
Wiltshire,http://opendatacommunities.org/id/unitary-authority/wiltshire,29/01/2018,1902075496,324,Day Lewis ,143543,BA15,Community Services,(8)ShardCareOth(PCT),Public Health Commissioning,Supplies and Services,REVENUE
Wiltshire,http://opendatacommunities.org/id/unitary-authority/wiltshire,08/01/2018,5107157631,62500,Daybreak Family Group ,134165,SO21,Children & Education,Family&Parenting Sup,Other Social & Welfare Costs,Third Party Payments,REVENUE
Wiltshire,http://opendatacommunities.org/id/unitary-authority/wiltshire,08/01/2018,5107157632,5000,Daybreak Family Group ,134165,SO21,Children & Education,Family&Parenting Sup,Other Social & Welfare Costs,Third Party Payments,REVENUE
Wiltshire,http://opendatacommunities.org/id/unitary-authority/wiltshire,11/01/2018,1902063152,2880,DCAMonisyst Ltd ,138108,RM6 ,Neighbourhood & Planning,Road Safety,Materials,Supplies and Services,REVENUE
Wiltshire,http://opendatacommunities.org/id/unitary-authority/wiltshire,16/01/2018,1902064434,3000,DCAMonisyst Ltd ,138108,RM6 ,Neighbourhood & Planning,Road Safety,Consultants Fees,Supplies and Services,REVENUE
Wiltshire,http://opendatacommunities.org/id/unitary-authority/wiltshire,10/01/2018,1902062657,303.8,Deandrive ,100861,SP3 ,Community Services,MH AOWA N&E Locality,Transport Contracts,Third Party Payments,REVENUE
Wiltshire,http://opendatacommunities.org/id/unitary-authority/wiltshire,02/01/2018,5107154516,629.09,DENNIS EAGLE LTD ,110710,CV34,Neighbourhood & Planning,Fleet,Vehicle 3rd Party Repairs,Transport Related,REVENUE
Wiltshire,http://opendatacommunities.org/id/unitary-authority/wiltshire,22/01/2018,5107164510,279,DENNIS EAGLE LTD ,110710,CV34,Neighbourhood & Planning,Fleet,Vehicle 3rd Party Repairs,Transport Related,REVENUE
Wiltshire,http://opendatacommunities.org/id/unitary-authority/wiltshire,24/01/2018,5107165256,417.15,Department For Work  and  Pensions ,115314,FY5 ,Children & Education,Troubled Families Gr,Distance Learning / Adult Education/Other Training,Supplies and Services,REVENUE
Wiltshire,http://opendatacommunities.org/id/unitary-authority/wiltshire,16/01/2018,1902064956,665,Department for Work & Pensions ,141693,NE38,Resources,Insurance,Insurance Claims,Supplies and Services,REVENUE
Wiltshire,http://opendatacommunities.org/id/unitary-authority/wiltshire,22/01/2018,5107164452,9125,Developing Health and Independance ,101061,BA1 ,Community Services,Acorn House,Substance Misuse Contracts,Third Party Payments,REVENUE
Wiltshire,http://opendatacommunities.org/id/unitary-authority/wiltshire,22/01/2018,5107164454,9125,Developing Health and Independance ,101061,BA1 ,Community Services,Acorn House,Substance Misuse Contracts,Third Party Payments,REVENUE
Wiltshire,http://opendatacommunities.org/id/unitary-authority/wiltshire,18/01/2018,5107164160,19681.25,Devizes and District Opportunity Ce ,115347,SN10,Children & Education,DSC & Portage,Nursery / Childminder Fees / Sitting Service,Third Party Payments,REVENUE
Wiltshire,http://opendatacommunities.org/id/unitary-authority/wiltshire,18/01/2018,1902071977,286.5,Devizes Taxis ,100136,SN10,Children & Education,Safeguarding Ass Nth,Transport Contracts,Third Party Payments,REVENUE
Wiltshire,http://opendatacommunities.org/id/unitary-authority/wiltshire,18/01/2018,1902071977,365.65,Devizes Taxis ,100136,SN10,Neighbourhood & Planning,SEN Primary,Transport Contracts,Third Party Payments,REVENUE
Wiltshire,http://opendatacommunities.org/id/unitary-authority/wiltshire,18/01/2018,1902071994,832.28,Devizes Taxis ,100136,SN10,Neighbourhood & Planning,SEN Secondary,Transport Contracts,Third Party Payments,REVENUE
Wiltshire,http://opendatacommunities.org/id/unitary-authority/wiltshire,18/01/2018,1902071995,773.3,Devizes Taxis ,100136,SN10,Neighbourhood & Planning,SEN Secondary,Transport Contracts,Third Party Payments,REVENUE
Wiltshire,http://opendatacommunities.org/id/unitary-authority/wiltshire,18/01/2018,1902071996,457.6,Devizes Taxis ,100136,SN10,Neighbourhood & Planning,SEN Secondary,Transport Contracts,Third Party Payments,REVENUE
Wiltshire,http://opendatacommunities.org/id/unitary-authority/wiltshire,18/01/2018,1902071997,409.64,Devizes Taxis ,100136,SN10,Neighbourhood & Planning,SEN Secondary,Transport Contracts,Third Party Payments,REVENUE
Wiltshire,http://opendatacommunities.org/id/unitary-authority/wiltshire,18/01/2018,1902072001,836,Devizes Taxis ,100136,SN10,Neighbourhood & Planning,SEN Secondary,Transport Contracts,Third Party Payments,REVENUE
Wiltshire,http://opendatacommunities.org/id/unitary-authority/wiltshire,18/01/2018,1902072002,756,Devizes Taxis ,100136,SN10,Neighbourhood & Planning,Mainstream Secondary,Transport Contracts,Third Party Payments,REVENUE
Wiltshire,http://opendatacommunities.org/id/unitary-authority/wiltshire,18/01/2018,1902072003,903.94,Devizes Taxis ,100136,SN10,Neighbourhood & Planning,SEN 16+ Secondary,Transport Contracts,Third Party Payments,REVENUE
Wiltshire,http://opendatacommunities.org/id/unitary-authority/wiltshire,18/01/2018,1902072004,749,Devizes Taxis ,100136,SN10,Neighbourhood & Planning,SEN 16+ Secondary,Transport Contracts,Third Party Payments,REVENUE
Wiltshire,http://opendatacommunities.org/id/unitary-authority/wiltshire,18/01/2018,1902072005,520.08,Devizes Taxis ,100136,SN10,Neighbourhood & Planning,SEN Secondary,Transport Contracts,Third Party Payments,REVENUE
Wiltshire,http://opendatacommunities.org/id/unitary-authority/wiltshire,18/01/2018,1902072006,294,Devizes Taxis ,100136,SN10,Children & Education,0-25 SEND Locality T,Transport Contracts,Third Party Payments,REVENUE
Wiltshire,http://opendatacommunities.org/id/unitary-authority/wiltshire,22/01/2018,1902072502,258.34,Devizes Taxis ,100136,SN10,Neighbourhood & Planning,SEN Primary,Transport Contracts,Third Party Payments,REVENUE
Wiltshire,http://opendatacommunities.org/id/unitary-authority/wiltshire,22/01/2018,1902072502,1097.96,Devizes Taxis ,100136,SN10,Neighbourhood & Planning,SEN Secondary,Transport Contracts,Third Party Payments,REVENUE
Wiltshire,http://opendatacommunities.org/id/unitary-authority/wiltshire,31/01/2018,1902075971,1218.94,Devizes Taxis ,100136,SN10,Neighbourhood & Planning,Mainstream Primary,Transport Contracts,Third Party Payments,REVENUE
Wiltshire,http://opendatacommunities.org/id/unitary-authority/wiltshire,31/01/2018,1902075971,1819.26,Devizes Taxis ,100136,SN10,Neighbourhood & Planning,Public Transport,Transport Contracts,Third Party Payments,REVENUE
Wiltshire,http://opendatacommunities.org/id/unitary-authority/wiltshire,12/01/2018,5107162635,626.08,Devizes Town Council ,110721,SN10,Children & Education,School Effectvnss Tm,Premises Rental,Premises Related,REVENUE
Wiltshire,http://opendatacommunities.org/id/unitary-authority/wiltshire,25/01/2018,5107165600,318.75,Devizes Town Council ,110721,SN10,Resources,News & Information,IT Hardware Purchases,Supplies and Services,REVENUE
Wiltshire,http://opendatacommunities.org/id/unitary-authority/wiltshire,04/01/2018,1902060302,2000,Dilton Marsh Memorial Hall ,115396,BA13,Wiltshire Council,Wiltshire Council,Area Board Grants,Supplies and Services,CAPITAL
Wiltshire,http://opendatacommunities.org/id/unitary-authority/wiltshire,23/01/2018,1902072959,2040,Doctor K Gruffydd-Jones & Partners ,110767,SN13,Neighbourhood & Planning,NHS Health Checks,Public Health Commissioning,Supplies and Services,REVENUE
Wiltshire,http://opendatacommunities.org/id/unitary-authority/wiltshire,23/01/2018,1902073004,790,Doctor K Gruffydd-Jones & Partners ,110767,SN13,Neighbourhood & Planning,Sexual Health Commun,Public Health Commissioning,Supplies and Services,REVENUE
Wiltshire,http://opendatacommunities.org/id/unitary-authority/wiltshire,23/01/2018,1902073019,720,Doctor P Davies & Partners ,132941,SP5 ,Neighbourhood & Planning,Sexual Health Commun,Public Health Commissioning,Supplies and Services,REVENUE
Wiltshire,http://opendatacommunities.org/id/unitary-authority/wiltshire,23/01/2018,1902073066,367.74,Doctor P Davies & Partners ,132941,SP5 ,Neighbourhood & Planning,Sexual Health Commun,Public Health Commissioning,Supplies and Services,REVENUE
Wiltshire,http://opendatacommunities.org/id/unitary-authority/wiltshire,19/01/2018,5107164441,3530.86,Document Despatch Ltd ,110731,RG22,Resources,News & Information,Printing,Supplies and Services,REVENUE
Wiltshire,http://opendatacommunities.org/id/unitary-authority/wiltshire,11/01/2018,5107159739,76593,Dorset & Wiltshire Fire and Rescue ,143370,SP1 ,Resources,WC Bus Rate Ret Schm,BRRS Fire Share Payment - NOT FOR GENERAL USE,Balance Sheet Accounts,REVENUE
Wiltshire,http://opendatacommunities.org/id/unitary-authority/wiltshire,02/01/2018,1902059889,490,Dorset County Hospital NHS Foundation Trust,124603,DT1 ,Neighbourhood & Planning,Sexual Health,Public Health Commissioning,Supplies and Services,REVENUE
Wiltshire,http://opendatacommunities.org/id/unitary-authority/wiltshire,17/01/2018,1902071488,460,Dorset County Hospital NHS Foundation Trust,124603,DT1 ,Neighbourhood & Planning,Sexual Health Commun,Public Health Commissioning,Supplies and Services,REVENUE
Wiltshire,http://opendatacommunities.org/id/unitary-authority/wiltshire,05/01/2018,1902061327,420,Downton Minibus Hire ,101038,SP5 ,Neighbourhood & Planning,Mainstream Primary,Transport Contracts,Third Party Payments,REVENUE
Wiltshire,http://opendatacommunities.org/id/unitary-authority/wiltshire,23/01/2018,5107164970,1258.4,Dr Darko Lazic Ultrasound World Ltd,115479,SN3 ,Resources,Coroner,Pathology Fees,Supplies and Services,REVENUE
Wiltshire,http://opendatacommunities.org/id/unitary-authority/wiltshire,26/01/2018,5107165809,1231.4,Dr Darko Lazic Ultrasound World Ltd,115479,SN3 ,Resources,Coroner,Pathology Fees,Supplies and Services,REVENUE
Wiltshire,http://opendatacommunities.org/id/unitary-authority/wiltshire,23/01/2018,1902072991,368,DR N J HARDING & PARTNERS ,136056,SP8 ,Neighbourhood & Planning,NHS Health Checks,Public Health Commissioning,Supplies and Services,REVENUE
Wiltshire,http://opendatacommunities.org/id/unitary-authority/wiltshire,23/01/2018,1902072977,1920,Dr Paul Harris  and  Partners ,110785,SN11,Neighbourhood & Planning,NHS Health Checks,Public Health Commissioning,Supplies and Services,REVENUE
Wiltshire,http://opendatacommunities.org/id/unitary-authority/wiltshire,23/01/2018,1902073024,598,Dr Paul Harris  and  Partners ,110785,SN11,Neighbourhood & Planning,Sexual Health Commun,Public Health Commissioning,Supplies and Services,REVENUE
Wiltshire,http://opendatacommunities.org/id/unitary-authority/wiltshire,23/01/2018,1902073070,796.77,Dr Paul Harris  and  Partners ,110785,SN11,Neighbourhood & Planning,Sexual Health Commun,Public Health Commissioning,Supplies and Services,REVENUE
Wiltshire,http://opendatacommunities.org/id/unitary-authority/wiltshire,18/01/2018,1902063583,300,Dr R Jilumudi & Associates ,110771,SP1 ,Neighbourhood & Planning,Smoking-Mgt & Commss,Public Health Commissioning,Supplies and Services,REVENUE
Wiltshire,http://opendatacommunities.org/id/unitary-authority/wiltshire,23/01/2018,1902072978,368,Dr R Jilumudi & Associates ,110771,SP1 ,Neighbourhood & Planning,NHS Health Checks,Public Health Commissioning,Supplies and Services,REVENUE
Wiltshire,http://opendatacommunities.org/id/unitary-authority/wiltshire,23/01/2018,1902073025,772,Dr R Jilumudi & Associates ,110771,SP1 ,Neighbourhood & Planning,Sexual Health Commun,Public Health Commissioning,Supplies and Services,REVENUE
Wiltshire,http://opendatacommunities.org/id/unitary-authority/wiltshire,23/01/2018,1902073071,490.32,Dr R Jilumudi & Associates ,110771,SP1 ,Neighbourhood & Planning,Sexual Health Commun,Public Health Commissioning,Supplies and Services,REVENUE
Wiltshire,http://opendatacommunities.org/id/unitary-authority/wiltshire,23/01/2018,1902072961,2808,DR S M Locke & Partners ,110055,BA14,Neighbourhood & Planning,NHS Health Checks,Public Health Commissioning,Supplies and Services,REVENUE
Wiltshire,http://opendatacommunities.org/id/unitary-authority/wiltshire,23/01/2018,1902073006,3830,DR S M Locke & Partners ,110055,BA14,Neighbourhood & Planning,Sexual Health Commun,Public Health Commissioning,Supplies and Services,REVENUE
Wiltshire,http://opendatacommunities.org/id/unitary-authority/wiltshire,23/01/2018,1902073053,5454.81,DR S M Locke & Partners ,110055,BA14,Neighbourhood & Planning,Sexual Health Commun,Public Health Commissioning,Supplies and Services,REVENUE
Wiltshire,http://opendatacommunities.org/id/unitary-authority/wiltshire,23/01/2018,1902073166,510.9,DR S M Locke & Partners ,110055,BA14,Community Services,(8)SharedCareGPAct,Public Health Commissioning,Supplies and Services,REVENUE
Wiltshire,http://opendatacommunities.org/id/unitary-authority/wiltshire,04/01/2018,1902060733,253.25,Drain Services Ltd ,101715,SP2 ,Neighbourhood & Planning,Responsive Repairs,Emergency Property Repairs,Premises Related,REVENUE
Wiltshire,http://opendatacommunities.org/id/unitary-authority/wiltshire,10/01/2018,1902062447,310,Drain Services Ltd ,101715,SP2 ,Resources,5 Rivers LC,Property Maintenance,Premises Related,REVENUE
Wiltshire,http://opendatacommunities.org/id/unitary-authority/wiltshire,10/01/2018,1902062449,4229.9,Drain Services Ltd ,101715,SP2 ,Resources,FM Highway Depots,Property Maintenance,Premises Related,REVENUE
Wiltshire,http://opendatacommunities.org/id/unitary-authority/wiltshire,23/01/2018,1902072635,5152.4,Drain Services Ltd ,101715,SP2 ,Resources,FM Highway Depots,Property Maintenance,Premises Related,REVENUE
Wiltshire,http://opendatacommunities.org/id/unitary-authority/wiltshire,23/01/2018,1902072636,819.96,Drain Services Ltd ,101715,SP2 ,Resources,FM Highway Depots,Property Maintenance,Premises Related,REVENUE
Wiltshire,http://opendatacommunities.org/id/unitary-authority/wiltshire,23/01/2018,1902072637,5490,Drain Services Ltd ,101715,SP2 ,Resources,FM Highway Depots,Property Maintenance,Premises Related,REVENUE
Wiltshire,http://opendatacommunities.org/id/unitary-authority/wiltshire,23/01/2018,5107165071,14607.05,Drain Services Ltd ,101715,SP2 ,Neighbourhood & Planning,Housg Rprs Contracts,Premises Related Other Maintenance Costs,Premises Related,REVENUE
Wiltshire,http://opendatacommunities.org/id/unitary-authority/wiltshire,10/01/2018,1902062499,17941.1,DTZ Debenham Tie Leung Ltd ,144813,B4 6,Resources,FM Leisure Centres,Premises Rental,Premises Related,REVENUE
